Workbook

Sheet 1_aciklikli
B2: ÇERÇEVE CROSS (1 AÇIKLIKLI) (inş.müh. Gürcan BERBEROĞLU tel: 0532 366 02 04 www.betoncelik.com )
I3: pas payı d ' = | M3: 0.03 | O3: m | V3: dikkat sadece sarı hücrelere rakam giriniz.
G4: 0.5 | I4: m | Q4: 0.5 | S4: m
I6: m | S6: m
I7: 0.6 | S7: 0.6
G11: dm4 | Q11: dm4
D13: =SUM(D14:E18) -> -11.64238102 | G13: =I7*G4^3/12*10000 -> 62.5 | I13: =SUM(I14:J18) -> -10.72324568 | Q13: =S7*Q4^3/12*10000 -> 62.5
D14: =-I30*G22 -> -0.0001384626442 | I14: =-I30*G18 -> -0.0001275313828 | N14: =SUM(N15:O18) -> 10.59608158 | S14: =SUM(S15:T18) -> 9.759548821 | W14: m
D15: =-I28*G22 -> -0.003400555399 | I15: =-I28*G18 -> -0.003132090499 | N15: =-(O29)*Q22 -> 0.0006861850277 | S15: =-(O29)*Q18 -> 0.0006320125255 | W15: 3.8
D16: =-I26*G22 -> -0.08351550046 | G16: I = | I16: =-I26*G18 -> -0.07692217148 | N16: =-(O27)*Q22 -> 0.01685227243 | Q16: I = | S16: =-(O27)*Q18 -> 0.01552182987
D17: =-I24*G22 -> -2.051088131 | I17: =-I24*G18 -> -1.88916012 | N17: =-(O25)*Q22 -> 0.4138812049 | S17: =-(O25)*Q18 -> 0.3812063729
D18: =-(E22+I22)*G22 -> -9.504238375 | G18: =(4*G13/W15)/((4*G13/W15)+(4*L21/L35)+(4*G27/W26)) -> 0.2859584734 | I18: =-(E22+I22)*G18 -> -8.753903766 | N18: =-(O22+O23+S22)*Q22 -> 10.16466191 | Q18: =(4*Q13/W15)/((4*Q13/W15)+(4*Q27/W26)+(4*L21/L35)) -> 0.2859584734 | S18: =-(O22+O23+S22)*Q18 -> 9.362188606
B20: q = | C20: 10 | E20: KN/m | K20: q = | L20: 15 | N20: KN/m | S20: q = | T20: 10 | V20: KN/m
F21: 0 | H21: =(4*L21/L35)/((4*G13/W15)+(4*L21/L35)+(4*G27/W26)) -> 0.4035723269 | K21: I = | L21: =(L43*H45^3/12+H45*L43*(((H45*L43*H45/2+L50*(O46-H45)*((O46-H45)/2+H45))/(L43*H45+(O46-H45)*L50))-H45/2)^2+L50*(O46-H45)^3/12+L50*(O46-H45)*(O46-((H45*L43*H45/2+L50*(O46-H45)*((O46-H45)/2+H45))/(L43*H45+(O46-H45)*L50))-(O46-H45)/2)^2)*10000 -> 127.6666667 | N21: dm4 | P21: =(4*L21/L35)/((4*Q13/W15)+(4*Q27/W26)+(4*L21/L35)) -> 0.4035723269 | R21: 0
E22: =-C20*E35*E35/2 -> -7.2 | G22: =(4*G27/W26)/((4*G13/W15)+(4*L21/L35)+(4*G27/W26)) -> 0.3104691997 | I22: =L20*L35^2/12 -> 37.8125 | O22: =-L20*L35^2/12 -> -37.8125 | Q22: =(4*Q27/W26)/((4*Q13/W15)+(4*Q27/W26)+(4*L21/L35)) -> 0.3104691997 | S22: =T20*R35^2/2 -> 11.25
I23: =-(E22+I22)*H21 -> -12.35435786 | O23: =+I23/2 -> -6.177178929
I24: =+O24/2 -> 6.606414204 | O24: =-(O22+O23+S22)*P21 -> 13.21282841
G25: dm4 | I25: =-I24*H21 -> -2.666165953 | O25: =+I25/2 -> -1.333082977 | Q25: dm4 | W25: m
I26: =+O26/2 -> 0.2689976994 | O26: =-(O25)*P21 -> 0.5379953989 | W26: 3.5
G27: =I38*G41^3/12*10000 -> 62.5 | I27: =-I26*H21 -> -0.1085600275 | O27: =+I27/2 -> -0.05428001375 | Q27: =S38*Q41^3/12*10000 -> 62.5
I28: =+O28/2 -> 0.01095295573 | O28: =-(O27)*P21 -> 0.02190591146
I29: =-I28*H21 -> -0.00442030983 | O29: =+I29/2 -> -0.002210154915
G30: I = | I30: =+O30/2 -> 0.000445978681 | O30: =-(O29)*P21 -> 0.000891957362 | Q30: I =
I31: =-I30*H21 -> -0.0001799846541 | O31: =SUM(O22:P30) -> -31.6056304
I32: =SUM(I22:J31) -> 29.5656267
E35: 1.2 | G35: m | L35: 5.5 | N35: m | R35: 1.5 | T35: m
I37: m | S37: m
I38: 0.6 | S38: 0.6
G41: 0.5 | I41: m | Q41: 0.5 | S41: m
L43: 1.2 | N43: m
H45: 0.1 | J45: m | O45: m
O46: 0.7
L50: 0.25 | N50: m
D52: =IF(I13<0,I13/2,"") -> -5.36162284 | J52: =IF(I13>0,I13/2,"") ->  | N52: =IF(S14<0,S14/2,"") ->  | T52: =IF(S14>0,S14/2,"") -> 4.87977441
J55: moment diyagramı (KNm)
H57: =-I32 -> -29.5656267
P58: =O31 -> -31.6056304
H59: =IF(E22=0,"",+E22) -> -7.2 | R59: =IF(S22=0,"",-S22) -> -11.25
E61: =IF(I13>0,-I13,"") ->  | I61: =IF(I13<0,-I13,"") -> 10.72324568 | O61: =IF(S14>0,-S14,"") -> -9.759548821 | S61: =IF(S14<0,-S14,"") -> 
E62: =IF(D13<0,D13,"") -> -11.64238102 | I62: =IF(D13>0,D13,"") ->  | O62: =IF(N14<0,N14,"") ->  | S62: =IF(N14>0,N14,"") -> 10.59608158
L65: =(((I32-(-O31))/L35+L20*L35*0.5)^2/(2*L20))-I32 -> 26.13770725
D74: =IF(D13>0,-D13/2,"") ->  | J74: =IF(D13<0,-D13/2,"") -> 5.821190512 | N74: =IF(N14>0,-N14/2,"") -> -5.298040789 | T74: =IF(N14<0,-N14/2,"") -> 
D77: =IF(I13<0,(I13+I13/2)/$W$15,"") -> -4.232860137 | J77: =IF(I13>0,(I13+I13/2)/$W$15,"") ->  | N77: =IF(S14<0,(S14+S14/2)/$W$15,"") ->  | T77: =IF(S14>0,(S14+S14/2)/$W$15,"") -> 3.852453482
J80: kesme kuvveti diyagramı (KN)
H84: =L20*L35+P89 -> 40.87909024 | R84: =IF(S22=0,"",T20*R35) -> 15
D86: =IF(D77<0,D77,"") -> -4.232860137 | J86: =IF(J77>0,J77,"") ->  | N86: =IF(N77<0,N77,"") ->  | T86: =IF(T77>0,T77,"") -> 3.852453482
D87: =IF(D99<0,D99,"") -> -4.989591868 | J87: =IF(J99>0,J99,"") ->  | N87: =IF(N99<0,N99,"") ->  | T87: =IF(T99>0,T99,"") -> 4.541177819
P89: =-(0.5*L20*L35^2+(-O31)-I32)/L35 -> -41.62090976
F90: =IF(E22=0,"",-C20*E35) -> -12
J91: =((L20*L35-((0.5*L20*L35^2+(-O31)-I32)/L35))*L35)/((L20*L35-((0.5*L20*L35^2+(-O31)-I32)/L35))+((0.5*L20*L35^2+(-O31)-I32)/L35)) -> 2.725272683 | L91: m
D99: =IF(D13<0,(D13+D13/2)/$W$26,"") -> -4.989591868 | J99: =IF(D13>0,(D13+D13/2)/$W$26,"") ->  | N99: =IF(N14<0,(N14+N14/2)/$W$26,"") ->  | T99: =IF(N14>0,(N14+N14/2)/$W$26,"") -> 4.541177819
B101: kiriş faydalı yükseklik d (m) | H101: =O46-M3 -> 0.67
B103: kiriş kolon yüzünden d mesafede kesme kuvveti (KN) | H103: =(L20*L35-((0.5*L20*L35^2-O31-I32)/L35))-L20*(MIN(G4,G41)/2+H101) -> 27.07909024 | O103: =((0.5*L20*L35^2-O31-I32)/L35)-L20*(MIN(Q4,Q41)/2+H101) -> 27.82090976
B105: kiriş kolon yüzünden 2*h mesafede kesme kuvveti (KN) | H105: =(L20*L35-((0.5*L20*L35^2-O31-I32)/L35))-L20*(MIN(G4,G41)/2+2*O46) -> 16.12909024 | O105: =((0.5*L20*L35^2-O31-I32)/L35)-L20*(MIN(Q4,Q41)/2+2*O46) -> 16.87090976
B107: kiriş kolon yüzü kesme kuvveti (KN) | H107: =(L20*L35-((0.5*L20*L35^2-O31-I32)/L35))-L20*MIN(G4,G41)/2 -> 37.12909024 | O107: =((0.5*L20*L35^2-O31-I32)/L35)-L20*MIN(Q4,Q41)/2 -> 37.87090976
B109: kiriş kolon yüzü moment (KNm) | H109: =+I32-(L20*L35-((0.5*L20*L35^2-O31-I32)/L35))*MIN(G4,G41)/3 -> 22.752445 | O109: =-O31-((0.5*L20*L35^2-O31-I32)/L35)*MIN(Q4,Q41)/3 -> 24.6688121

Sheet 2_aciklikli
B2: ÇERÇEVE CROSS (2 AÇIKLIKLI) (inş.müh. Gürcan BERBEROĞLU tel: 0532 366 02 04 www.betoncelik.com )
I3: pas payı d ' = | M3: 0.03 | O3: m | V3: dikkat sadece sarı hücrelere rakam giriniz.
G4: 0.3 | I4: m | Q4: 0.3 | S4: m | AA4: 0.3 | AC4: m
I6: m | S6: m | AC6: m
I7: 0.25 | S7: 0.4 | AC7: 0.25
G11: dm4 | Q11: dm4 | AA11: dm4
D13: =SUM(D14:E18) -> -2.160767507 | G13: =I7*G4^3/12*10000 -> 5.625 | I13: =SUM(I14:J18) -> -1.336418054 | Q13: =S7*Q4^3/12*10000 -> 9 | X13: =SUM(X14:Y18) -> 5.60789298 | AA13: =AC7*AA4^3/12*10000 -> 5.625 | AC13: =SUM(AC14:AD18) -> 3.468438599
D14: =-I30*G22 -> 0.0009910359405 | I14: =-I30*G18 -> 0.0006129480931 | N14: =SUM(N15:O18) -> -2.535860942 | S14: =SUM(S15:T18) -> -1.67297115 | X14: =-Y30*AA22 -> 0.000964326662 | AC14: =-Y30*AA18 -> 0.0005964286102 | AF14: m
D15: =-I28*G22 -> 0.007940526881 | I15: =-I28*G18 -> 0.004911154693 | N15: =-(O29+S29)*Q22 -> -0.004315734805 | S15: =-(O29+S29)*Q18 -> -0.002847198638 | X15: =-Y28*AA22 -> 0.007726522792 | AC15: =-Y28*AA18 -> 0.004778794813 | AF15: 2.8
D16: =-I26*G22 -> 0.06362228107 | G16: I = | I16: =-I26*G18 -> 0.03934989062 | N16: =-(O27+S27)*Q22 -> -0.03457917804 | Q16: I = | S16: =-(O27+S27)*Q18 -> -0.02281275219 | X16: =-Y26*AA22 -> 0.06190760539 | AA16: I = | AC16: =-Y26*AA18 -> 0.03828937693
D17: =-I24*G22 -> 0.5097639878 | I17: =-I24*G18 -> 0.3152850987 | N17: =-(O25+S25)*Q22 -> -0.2770604794 | S17: =-(O25+S25)*Q18 -> -0.1827837565 | X17: =-Y24*AA22 -> 0.496025406 | AC17: =-Y24*AA18 -> 0.3067878917
D18: =-(E22+I22)*G22 -> -2.743085339 | G18: =(4*G13/AF15)/((4*G13/AF15)+(4*L21/L35)+(4*G27/AF26)) -> 0.118884238 | I18: =-(E22+I22)*G18 -> -1.696577146 | N18: =-(O22+O23+S22+S23)*Q22 -> -2.21990555 | Q18: =(4*Q13/AF15)/((4*Q13/AF15)+(4*V21/V35)+(4*Q27/AF26)+(4*L21/L35)) -> 0.1056737386 | S18: =-(O22+O23+S22+S23)*Q18 -> -1.464527443 | X18: =-(Y22+AC22)*AA22 -> 5.04126912 | AA18: =(4*AA13/AF15)/((4*AA13/AF15)+(4*AA27/AF26)+(4*V21/V35)) -> 0.1259792366 | AC18: =-(Y22+AC22)*AA18 -> 3.117986107
B20: q = | C20: 10 | E20: KN/m | K20: q = | L20: 25 | N20: KN/m | U20: q = | V20: 27 | X20: KN/m | AC20: q = | AD20: 10 | AF20: KN/m
F21: 0 | H21: =(4*L21/L35)/((4*G13/AF15)+(4*L21/L35)+(4*G27/AF26)) -> 0.6888995631 | K21: I = | L21: =(L43*H45^3/12+H45*L43*(((H45*L43*H45/2+L50*(O46-H45)*((O46-H45)/2+H45))/(L43*H45+(O46-H45)*L50))-H45/2)^2+L50*(O46-H45)^3/12+L50*(O46-H45)*(O46-((H45*L43*H45/2+L50*(O46-H45)*((O46-H45)/2+H45))/(L43*H45+(O46-H45)*L50))-(O46-H45)/2)^2)*10000 -> 40.74404762 | N21: dm4 | P21: =(4*L21/L35)/((4*Q13/AF15)+(4*V21/V35)+(4*Q27/AF26)+(4*L21/L35)) -> 0.3827178522 | R21: =(4*V21/V35)/((4*Q13/AF15)+(4*V21/V35)+(4*Q27/AF26)+(4*L21/L35)) -> 0.3514299708 | U21: I = | V21: =(V43*R45^3/12+R45*V43*(((R45*V43*R45/2+V50*(Y46-R45)*((Y46-R45)/2+R45))/(V43*R45+(Y46-R45)*V50))-R45/2)^2+V50*(Y46-R45)^3/12+V50*(Y46-R45)*(Y46-((R45*V43*R45/2+V50*(Y46-R45)*((Y46-R45)/2+R45))/(V43*R45+(Y46-R45)*V50))-(Y46-R45)/2)^2)*10000 -> 42.75788288 | X21: dm4 | Z21: =(4*V21/V35)/((4*AA13/AF15)+(4*AA27/AF26)+(4*V21/V35)) -> 0.6703331222 | AB21: 0
E22: =-C20*E35*E35/2 -> -11.25 | G22: =(4*G27/AF26)/((4*G13/AF15)+(4*L21/L35)+(4*G27/AF26)) -> 0.1922161989 | I22: =L20*L35^2/12 -> 25.52083333 | O22: =-L20*L35^2/12 -> -25.52083333 | Q22: =(4*Q27/AF26)/((4*Q13/AF15)+(4*V21/V35)+(4*Q27/AF26)+(4*L21/L35)) -> 0.1601784384 | S22: =V20*V35^2/12 -> 36 | Y22: =-V20*V35^2/12 -> -36 | AA22: =(4*AA27/AF26)/((4*AA13/AF15)+(4*AA27/AF26)+(4*V21/V35)) -> 0.2036876412 | AC22: =AD20*AB35*AB35/2 -> 11.25
I23: =-(E22+I22)*H21 -> -9.831170849 | O23: =+I23/2 -> -4.915585424 | S23: =+Y23/2 -> 8.295372387 | Y23: =-(Y22+AC22)*Z21 -> 16.59074477
I24: =+O24/2 -> -2.652034484 | O24: =-(O22+O23+S22+S23)*P21 -> -5.304068967 | S24: =-(O22+O23+S22+S23)*R21 -> -4.870451669 | Y24: =+S24/2 -> -2.435225835
G25: dm4 | I25: =-I24*H21 -> 1.826985397 | O25: =+I25/2 -> 0.9134926985 | Q25: dm4 | S25: =+Y25/2 -> 0.8162062684 | Y25: =-Y24*Z21 -> 1.632412537 | AA25: dm4 | AF25: m
I26: =+O26/2 -> -0.3309933368 | O26: =-(O25+S25)*P21 -> -0.6619866737 | S26: =-(O25+S25)*R21 -> -0.6078680575 | Y26: =+S26/2 -> -0.3039340287 | AF26: 3.3
G27: =I38*G41^3/12*10000 -> 10.71875 | I27: =-I26*H21 -> 0.2280211651 | O27: =+I27/2 -> 0.1140105826 | Q27: =S38*Q41^3/12*10000 -> 16.078125 | S27: =+Y27/2 -> 0.1018685232 | Y27: =-Y26*Z21 -> 0.2037370464 | AA27: =AC38*AA41^3/12*10000 -> 10.71875
I28: =+O28/2 -> -0.04131039385 | O28: =-(O27+S27)*P21 -> -0.0826207877 | S28: =-(O27+S27)*R21 -> -0.07586638784 | Y28: =+S28/2 -> -0.03793319392
I29: =-I28*H21 -> 0.02845871228 | O29: =+I29/2 -> 0.01422935614 | S29: =+Y29/2 -> 0.01271393816 | Y29: =-Y28*Z21 -> 0.02542787631
G30: I = | I30: =+O30/2 -> -0.005155839862 | O30: =-(O29+S29)*P21 -> -0.01031167972 | Q30: I = | S30: =-(O29+S29)*R21 -> -0.009468681127 | Y30: =+S30/2 -> -0.004734340564 | AA30: I =
I31: =-I30*H21 -> 0.003551855829 | O31: =SUM(O22:P30) -> -35.45367423 | S31: =SUM(S22:T30) -> 39.66250632 | Y31: =-Y30*Z21 -> 0.003173585291
I32: =SUM(I22:J31) -> 14.74718556 | Y32: =SUM(Y22:Z31) -> -20.32633158
E35: 1.5 | G35: m | L35: 3.5 | N35: m | V35: 4 | X35: m | AB35: 1.5 | AD35: m
I37: m | S37: m | AC37: m
I38: 0.3 | S38: 0.45 | AC38: 0.3
G41: 0.35 | I41: m | Q41: 0.35 | S41: m | AA41: 0.35 | AC41: m
L43: 0.75 | N43: m | V43: 0.85 | X43: m
H45: 0.1 | J45: m | O45: m | R45: 0.1 | T45: m | Y45: m
O46: 0.5 | Y46: 0.5
L50: 0.25 | N50: m | V50: 0.25 | X50: m
D52: =IF(I13<0,I13/2,"") -> -0.668209027 | J52: =IF(I13>0,I13/2,"") ->  | N52: =IF(S14<0,S14/2,"") -> -0.8364855752 | T52: =IF(S14>0,S14/2,"") ->  | X52: =IF(AC13<0,AC13/2,"") ->  | AD52: =IF(AC13>0,AC13/2,"") -> 1.734219299
J55: moment diyagramı (KNm)
R56: =-S31 -> -39.66250632
H57: =-I32 -> -14.74718556 | Z57: =Y32 -> -20.32633158
P58: =O31 -> -35.45367423
H59: =IF(E22=0,"",+E22) -> -11.25 | AB59: =IF(AC22=0,"",-AC22) -> -11.25
E61: =IF(I13>0,-I13,"") ->  | I61: =IF(I13<0,-I13,"") -> 1.336418054 | O61: =IF(S14>0,-S14,"") ->  | S61: =IF(S14<0,-S14,"") -> 1.67297115 | Y61: =IF(AC13>0,-AC13,"") -> -3.468438599 | AC61: =IF(AC13<0,-AC13,"") -> 
E62: =IF(D13<0,D13,"") -> -2.160767507 | I62: =IF(D13>0,D13,"") ->  | O62: =IF(N14<0,N14,"") -> -2.535860942 | S62: =IF(N14>0,N14,"") ->  | Y62: =IF(X13<0,X13,"") ->  | AC62: =IF(X13>0,X13,"") -> 5.60789298
L65: =(((I32-(-O31))/L35+L20*L35*0.5)^2/(2*L20))-I32 -> 13.88083427 | V65: =(((S31-(-Y32))/V35+V20*V35*0.5)^2/(2*V20))-S31 -> 24.43832139
D74: =IF(D13>0,-D13/2,"") ->  | J74: =IF(D13<0,-D13/2,"") -> 1.080383753 | N74: =IF(N14>0,-N14/2,"") ->  | T74: =IF(N14<0,-N14/2,"") -> 1.267930471 | X74: =IF(X13>0,-X13/2,"") -> -2.80394649 | AD74: =IF(X13<0,-X13/2,"") -> 
D77: =IF(I13<0,(I13+I13/2)/$AF$15,"") -> -0.7159382432 | J77: =IF(I13>0,(I13+I13/2)/$AF$15,"") ->  | N77: =IF(S14<0,(S14+S14/2)/$AF$15,"") -> -0.8962345449 | T77: =IF(S14>0,(S14+S14/2)/$AF$15,"") ->  | X77: =IF(AC13<0,(AC13+AC13/2)/$AF$15,"") ->  | AD77: =IF(AC13>0,(AC13+AC13/2)/$AF$15,"") -> 1.858092107
J80: kesme kuvveti diyagramı (KN)
H84: =L20*L35+P89 -> 37.83386038 | R84: =V20*V35+Z89 -> 58.83404369 | AB84: =IF(AC22=0,"",AD20*AB35) -> 15
D86: =IF(D77<0,D77,"") -> -0.7159382432 | J86: =IF(J77>0,J77,"") ->  | N86: =IF(N77<0,N77,"") -> -0.8962345449 | T86: =IF(T77>0,T77,"") ->  | X86: =IF(X77<0,X77,"") ->  | AD86: =IF(AD77>0,AD77,"") -> 1.858092107
D87: =IF(D99<0,D99,"") -> -0.9821670486 | J87: =IF(J99>0,J99,"") ->  | N87: =IF(N99<0,N99,"") -> -1.152664065 | T87: =IF(T99>0,T99,"") ->  | X87: =IF(X99<0,X99,"") ->  | AD87: =IF(AD99>0,AD99,"") -> 2.549042264
P89: =-(0.5*L20*L35^2+(-O31)-I32)/L35 -> -49.66613962 | Z89: =-(0.5*V20*V35^2+(-Y32)-S31)/V35 -> -49.16595631
F90: =IF(E22=0,"",-C20*E35) -> -15
J91: =((L20*L35-((0.5*L20*L35^2+(-O31)-I32)/L35))*L35)/((L20*L35-((0.5*L20*L35^2+(-O31)-I32)/L35))+((0.5*L20*L35^2+(-O31)-I32)/L35)) -> 1.513354415 | L91: m | T91: =((V20*V35-((0.5*V20*V35^2+(-Y32)-S31)/V35))*V35)/((V20*V35-((0.5*V20*V35^2+(-Y32)-S31)/V35))+((0.5*V20*V35^2+(-Y32)-S31)/V35)) -> 2.179038655 | V91: m
D99: =IF(D13<0,(D13+D13/2)/$AF$26,"") -> -0.9821670486 | J99: =IF(D13>0,(D13+D13/2)/$AF$26,"") ->  | N99: =IF(N14<0,(N14+N14/2)/$AF$26,"") -> -1.152664065 | T99: =IF(N14>0,(N14+N14/2)/$AF$26,"") ->  | X99: =IF(X13<0,(X13+X13/2)/$AF$26,"") ->  | AD99: =IF(X13>0,(X13+X13/2)/$AF$26,"") -> 2.549042264
B101: kiriş faydalı yükseklik d (m) | H101: =O46-M3 -> 0.47 | R101: =Y46-M3 -> 0.47
B103: kiriş kolon yüzünden d mesafede kesme kuvveti (KN) | H103: =(L20*L35-((0.5*L20*L35^2-O31-I32)/L35))-L20*(MIN(G4,G41)/2+H101) -> 22.33386038 | O103: =((0.5*L20*L35^2-O31-I32)/L35)-L20*(MIN(Q4,Q41)/2+H101) -> 34.16613962 | R103: =(V20*V35-((0.5*V20*V35^2-Y32-S31)/V35))-V20*(MIN(Q4,Q41)/2+R101) -> 42.09404369 | Y103: =((0.5*V20*V35^2-Y32-S31)/V35)-V20*(MIN(AA4,AA41)/2+R101) -> 32.42595631
B105: kiriş kolon yüzünden 2*h mesafede kesme kuvveti (KN) | H105: =(L20*L35-((0.5*L20*L35^2-O31-I32)/L35))-L20*(MIN(G4,G41)/2+2*O46) -> 9.083860381 | O105: =((0.5*L20*L35^2-O31-I32)/L35)-L20*(MIN(Q4,Q41)/2+2*O46) -> 20.91613962 | R105: =(V20*V35-((0.5*V20*V35^2-Y32-S31)/V35))-V20*(MIN(Q4,Q41)/2+2*Y46) -> 27.78404369 | Y105: =((0.5*V20*V35^2-Y32-S31)/V35)-V20*(MIN(AA4,AA41)/2+2*Y46) -> 18.11595631
B107: kiriş kolon yüzü kesme kuvveti (KN) | H107: =(L20*L35-((0.5*L20*L35^2-O31-I32)/L35))-L20*MIN(G4,G41)/2 -> 34.08386038 | O107: =((0.5*L20*L35^2-O31-I32)/L35)-L20*MIN(Q4,Q41)/2 -> 45.91613962 | R107: =(V20*V35-((0.5*V20*V35^2-Y32-S31)/V35))-V20*MIN(Q4,Q41)/2 -> 54.78404369 | Y107: =((0.5*V20*V35^2-Y32-S31)/V35)-V20*MIN(AA4,AA41)/2 -> 45.11595631
B109: kiriş kolon yüzü moment (KNm) | H109: =+I32-(L20*L35-((0.5*L20*L35^2-O31-I32)/L35))*MIN(G4,G41)/3 -> 10.96379952 | O109: =-O31-((0.5*L20*L35^2-O31-I32)/L35)*MIN(Q4,Q41)/3 -> 30.48706027 | R109: =+S31-(V20*V35-((0.5*V20*V35^2-Y32-S31)/V35))*MIN(Q4,Q41)/3 -> 33.77910195 | Y109: =-Y32-((0.5*V20*V35^2-Y32-S31)/V35)*MIN(AA4,AA41)/3 -> 15.40973595

Sheet 3_aciklikli
B2: ÇERÇEVE CROSS (3 AÇIKLIKLI) (inş.müh. Gürcan BERBEROĞLU tel: 0532 366 02 04 www.betoncelik.com )
I3: pas payı d ' = | M3: 0.03 | O3: m | V3: dikkat sadece sarı hücrelere rakam giriniz.
G4: 0.35 | I4: m | Q4: 0.25 | S4: m | AA4: 0.25 | AC4: m | AK4: 0.35 | AM4: m
I6: m | S6: m | AC6: m | AM6: m
I7: 0.25 | S7: 0.35 | AC7: 0.35 | AM7: 0.25
G11: dm4 | Q11: dm4 | AA11: dm4 | AK11: dm4
D13: =SUM(D14:E18) -> -27.98823053 | G13: =I7*G4^3/12*10000 -> 8.932291667 | I13: =SUM(I14:J18) -> -9.599963073 | Q13: =S7*Q4^3/12*10000 -> 4.557291667 | X13: =SUM(X14:Y18) -> -4.584898847 | AA13: =AC7*AA4^3/12*10000 -> 4.557291667 | AC13: =SUM(AC14:AD18) -> -3.566032437 | AK13: =AM7*AK4^3/12*10000 -> 8.932291667
D14: =-I30*G22 -> -0.02681525446 | I14: =-I30*G18 -> -0.00919763228 | N14: =SUM(N15:O18) -> 4.582287603 | S14: =SUM(S15:T18) -> 3.564001469 | X14: =-(Y30+AC30)*AA22 -> -0.008984928442 | AC14: =-(Y30+AC30)*AA18 -> -0.006988277677 | AH14: =SUM(AH15:AI18) -> 27.98043648 | AM14: =SUM(AM15:AN18) -> 9.597289713 | AP14: m
D15: =-I28*G22 -> -0.1596091707 | I15: =-I28*G18 -> -0.05474594556 | N15: =-(O29+S29)*Q22 -> 0.02192851234 | S15: =-(O29+S29)*Q18 -> 0.01705550959 | X15: =-(Y28+AC28)*AA22 -> -0.05353917089 | AC15: =-(Y28+AC28)*AA18 -> -0.04164157736 | AH15: =-AI29*AK22 -> 0.06547030957 | AM15: =-AI29*AK18 -> 0.02245631618 | AP15: 3
D16: =-I26*G22 -> -0.9383601545 | G16: I = | I16: =-I26*G18 -> -0.321857533 | N16: =-(O27+S27)*Q22 -> 0.1305224112 | Q16: I = | S16: =-(O27+S27)*Q18 -> 0.1015174309 | X16: =-(Y26+AC26)*AA22 -> -0.3200390905 | AA16: I = | AC16: =-(Y26+AC26)*AA18 -> -0.2489192926 | AH16: =-AI27*AK22 -> 0.39135941 | AK16: I = | AM16: =-AI27*AK18 -> 0.1342362776
D17: =-I24*G22 -> -4.478660206 | I17: =-I24*G18 -> -1.536180451 | N17: =-(O25+S25)*Q22 -> 0.7673558441 | S17: =-(O25+S25)*Q18 -> 0.5968323232 | X17: =-(Y24+AC24)*AA22 -> -2.002994491 | AC17: =-(Y24+AC24)*AA18 -> -1.557884604 | AH17: =-AI25*AK22 -> 2.449359361 | AM17: =-AI25*AK18 -> 0.8401302608
D18: =-(E22+I22)*G22 -> -22.38478575 | G18: =(4*G13/AP15)/((4*G13/AP15)+(4*L21/L35)+(4*G27/AP26)) -> 0.1148572535 | I18: =-(E22+I22)*G18 -> -7.677981512 | N18: =-(O22+O23+S22+S23)*Q22 -> 3.662480836 | Q18: =(4*Q13/AP15)/((4*Q13/AP15)+(4*V21/V35)+(4*Q27/AP26)+(4*L21/L35)) -> 0.03363019514 | S18: =-(O22+O23+S22+S23)*Q18 -> 2.848596205 | X18: =-(Y22+AC22)*AA22 -> -2.199341166 | AA18: =(4*AA13/AP15)/((4*AA13/AP15)+(4*AA27/AP26)+(4*V21/V35)+(4*AF21/AF35)) -> 0.03363019514 | AC18: =-(Y22+AC22)*AA18 -> -1.710598685 | AH18: =-(AI22+AM22+AI23)*AK22 -> 25.0742474 | AK18: =(4*AK13/AP15)/((4*AK13/AP15)+(4*AK27/AP26)+(4*AF21/AF35)) -> 0.1148572535 | AM18: =-(AI22+AM22+AI23)*AK18 -> 8.600466858
B20: q = | C20: 10 | E20: KN/m | K20: q = | L20: 44.29 | N20: KN/m | U20: q = | V20: 35.13 | X20: KN/m | AE20: q = | AF20: 44.29 | AH20: KN/m | AM20: q = | AN20: 10 | AP20: KN/m
F21: 0 | H21: =(4*L21/L35)/((4*G13/AP15)+(4*L21/L35)+(4*G27/AP26)) -> 0.5502819491 | K21: I = | L21: =(L43*H45^3/12+H45*L43*(((H45*L43*H45/2+L50*(O46-H45)*((O46-H45)/2+H45))/(L43*H45+(O46-H45)*L50))-H45/2)^2+L50*(O46-H45)^3/12+L50*(O46-H45)*(O46-((H45*L43*H45/2+L50*(O46-H45)*((O46-H45)/2+H45))/(L43*H45+(O46-H45)*L50))-(O46-H45)/2)^2)*10000 -> 65.6185021 | N21: dm4 | P21: =(4*L21/L35)/((4*Q13/AP15)+(4*V21/V35)+(4*Q27/AP26)+(4*L21/L35)) -> 0.3158001256 | R21: =(4*V21/V35)/((4*Q13/AP15)+(4*V21/V35)+(4*Q27/AP26)+(4*L21/L35)) -> 0.607330857 | U21: I = | V21: =(V43*R45^3/12+R45*V43*(((R45*V43*R45/2+V50*(Y46-R45)*((Y46-R45)/2+R45))/(V43*R45+(Y46-R45)*V50))-R45/2)^2+V50*(Y46-R45)^3/12+V50*(Y46-R45)*(Y46-((R45*V43*R45/2+V50*(Y46-R45)*((Y46-R45)/2+R45))/(V43*R45+(Y46-R45)*V50))-(Y46-R45)/2)^2)*10000 -> 83.6722348 | X21: dm4 | Z21: =(4*V21/V35)/((4*AA13/AP15)+(4*AA27/AP26)+(4*V21/V35)+(4*AF21/AF35)) -> 0.607330857 | AB21: =(4*AF21/AF35)/((4*AA13/AP15)+(4*AA27/AP26)+(4*V21/V35)+(4*AF21/AF35)) -> 0.3158001256 | AE21: I = | AF21: =(AF43*AB45^3/12+AB45*AF43*(((AB45*AF43*AB45/2+AF50*(AI46-AB45)*((AI46-AB45)/2+AB45))/(AF43*AB45+(AI46-AB45)*AF50))-AB45/2)^2+AF50*(AI46-AB45)^3/12+AF50*(AI46-AB45)*(AI46-((AB45*AF43*AB45/2+AF50*(AI46-AB45)*((AI46-AB45)/2+AB45))/(AF43*AB45+(AI46-AB45)*AF50))-(AI46-AB45)/2)^2)*10000 -> 65.6185021 | AH21: dm4 | AJ21: =(4*AF21/AF35)/((4*AK13/AP15)+(4*AK27/AP26)+(4*AF21/AF35)) -> 0.5502819491 | AL21: 0
E22: =-C20*E35*E35/2 -> -11.25 | G22: =(4*G27/AP26)/((4*G13/AP15)+(4*L21/L35)+(4*G27/AP26)) -> 0.3348607974 | I22: =L20*L35^2/12 -> 78.09803333 | O22: =-L20*L35^2/12 -> -78.09803333 | Q22: =(4*Q27/AP26)/((4*Q13/AP15)+(4*V21/V35)+(4*Q27/AP26)+(4*L21/L35)) -> 0.04323882232 | S22: =V20*V35^2/12 -> 27.23306875 | Y22: =-V20*V35^2/12 -> -27.23306875 | AA22: =(4*AA27/AP26)/((4*AA13/AP15)+(4*AA27/AP26)+(4*V21/V35)+(4*AF21/AF35)) -> 0.04323882232 | AC22: =AF20*AF35^2/12 -> 78.09803333 | AI22: =-AF20*AF35^2/12 -> -78.09803333 | AK22: =(4*AK27/AP26)/((4*AK13/AP15)+(4*AK27/AP26)+(4*AF21/AF35)) -> 0.3348607974 | AM22: =AN20*AL35*AL35/2 -> 11.25
I23: =-(E22+I22)*H21 -> -36.78526607 | O23: =+I23/2 -> -18.39263304 | S23: =+Y23/2 -> -15.44593126 | Y23: =-(Y22+AC22)*Z21 -> -30.89186253 | AC23: =-(Y22+AC22)*AB21 -> -16.0631622 | AI23: =+AC23/2 -> -8.031581102
I24: =+O24/2 -> 13.37469253 | O24: =-(O22+O23+S22+S23)*P21 -> 26.74938506 | S24: =-(O22+O23+S22+S23)*R21 -> 51.44306678 | Y24: =+S24/2 -> 25.72153339 | AC24: =+AI24/2 -> 20.60245009 | AI24: =-(AI22+AM22+AI23)*AJ21 -> 41.20490018
G25: dm4 | I25: =-I24*H21 -> -7.359851873 | O25: =+I25/2 -> -3.679925937 | Q25: dm4 | S25: =+Y25/2 -> -14.06699229 | Y25: =-(Y24+AC24)*Z21 -> -28.13398458 | AA25: dm4 | AC25: =-(Y24+AC24)*AB21 -> -14.6291198 | AI25: =+AC25/2 -> -7.3145599 | AK25: dm4 | AP25: m
I26: =+O26/2 -> 2.802239503 | O26: =-(O25+S25)*P21 -> 5.604479005 | S26: =-(O25+S25)*R21 -> 10.77825106 | Y26: =+S26/2 -> 5.389125528 | AC26: =+AI26/2 -> 2.012535139 | AI26: =-AI25*AJ21 -> 4.025070278 | AP26: 3
G27: =I38*G41^3/12*10000 -> 26.04166667 | I27: =-I26*H21 -> -1.542021815 | O27: =+I27/2 -> -0.7710109076 | Q27: =S38*Q41^3/12*10000 -> 5.859375 | S27: =+Y27/2 -> -2.247628458 | Y27: =-(Y26+AC26)*Z21 -> -4.495256916 | AA27: =AC38*AA41^3/12*10000 -> 5.859375 | AC27: =-(Y26+AC26)*AB21 -> -2.337445368 | AI27: =+AC27/2 -> -1.168722684 | AK27: =AM38*AK41^3/12*10000 -> 26.04166667
I28: =+O28/2 -> 0.4766433454 | O28: =-(O27+S27)*P21 -> 0.9532866908 | S28: =-(O27+S27)*R21 -> 1.833312833 | Y28: =+S28/2 -> 0.9166564164 | AC28: =+AI28/2 -> 0.3215634983 | AI28: =-AI27*AJ21 -> 0.6431269965
I29: =-I28*H21 -> -0.2622882291 | O29: =+I29/2 -> -0.1311441145 | S29: =+Y29/2 -> -0.3760045809 | Y29: =-(Y28+AC28)*Z21 -> -0.7520091619 | AC29: =-(Y28+AC28)*AB21 -> -0.3910300045 | AI29: =+AC29/2 -> -0.1955150023
G30: I = | I30: =+O30/2 -> 0.08007881086 | O30: =-(O29+S29)*P21 -> 0.1601576217 | Q30: I = | S30: =-(O29+S29)*R21 -> 0.3080070518 | Y30: =+S30/2 -> 0.1540035259 | AA30: I = | AC30: =+AI30/2 -> 0.05379418826 | AI30: =-AI29*AJ21 -> 0.1075883765 | AK30: I =
I31: =-I30*H21 -> -0.04406592412 | O31: =SUM(O22:P30) -> -67.60543895 | S31: =SUM(S22:T30) -> 59.45914988 | Y31: =-(Y30+AC30)*Z21 -> -0.1262019638 | AC31: =-(Y30+AC30)*AB21 -> -0.06562254423 | AI31: =SUM(AI22:AJ30) -> -48.82772619
I32: =SUM(I22:J31) -> 48.83819361 | Y32: =SUM(Y22:Z31) -> -59.45106504 | AC32: =SUM(AC22:AD31) -> 67.60199633
E35: 1.5 | G35: m | L35: 4.6 | N35: m | V35: 3.05 | X35: m | AF35: 4.6 | AH35: m | AL35: 1.5 | AN35: m
I37: m | S37: m | AC37: m | AM37: m
I38: 0.25 | S38: 0.45 | AC38: 0.45 | AM38: 0.25
G41: 0.5 | I41: m | Q41: 0.25 | S41: m | AA41: 0.25 | AC41: m | AK41: 0.5 | AM41: m
L43: 0.616 | N43: m | V43: 1.18 | X43: m | AF43: 0.616 | AH43: m
H45: 0.13 | J45: m | O45: m | R45: 0.13 | T45: m | Y45: m | AB45: 0.13 | AD45: m | AI45: m
O46: 0.6 | Y46: 0.6 | AI46: 0.6
L50: 0.25 | N50: m | V50: 0.25 | X50: m | AF50: 0.25 | AH50: m
D52: =IF(I13<0,I13/2,"") -> -4.799981537 | J52: =IF(I13>0,I13/2,"") ->  | N52: =IF(S14<0,S14/2,"") ->  | T52: =IF(S14>0,S14/2,"") -> 1.782000735 | X52: =IF(AC13<0,AC13/2,"") -> -1.783016218 | AD52: =IF(AC13>0,AC13/2,"") ->  | AH52: =IF(AM14<0,AM14/2,"") ->  | AN52: =IF(AM14>0,AM14/2,"") -> 4.798644857
J55: moment diyagramı (KNm)
R56: =-S31 -> -59.45914988
H57: =-I32 -> -48.83819361 | Z57: =Y32 -> -59.45106504 | AB57: =-AC32 -> -67.60199633 | AJ57: =AI31 -> -48.82772619
P58: =O31 -> -67.60543895
H59: =IF(E22=0,"",+E22) -> -11.25 | AL59: =IF(AM22=0,"",-AM22) -> -11.25
E61: =IF(I13>0,-I13,"") ->  | I61: =IF(I13<0,-I13,"") -> 9.599963073 | O61: =IF(S14>0,-S14,"") -> -3.564001469 | S61: =IF(S14<0,-S14,"") ->  | Y61: =IF(AC13>0,-AC13,"") ->  | AC61: =IF(AC13<0,-AC13,"") -> 3.566032437 | AI61: =IF(AM14>0,-AM14,"") -> -9.597289713 | AM61: =IF(AM14<0,-AM14,"") -> 
E62: =IF(D13<0,D13,"") -> -27.98823053 | I62: =IF(D13>0,D13,"") ->  | O62: =IF(N14<0,N14,"") ->  | S62: =IF(N14>0,N14,"") -> 4.582287603 | Y62: =IF(X13<0,X13,"") -> -4.584898847 | AC62: =IF(X13>0,X13,"") ->  | AI62: =IF(AH14<0,AH14,"") ->  | AM62: =IF(AH14>0,AH14,"") -> 27.98043648
L65: =(((I32-(-O31))/L35+L20*L35*0.5)^2/(2*L20))-I32 -> 59.11314365 | V65: =(((S31-(-Y32))/V35+V20*V35*0.5)^2/(2*V20))-S31 -> -18.60550424 | AF65: =(((AC32-(-AI31))/AF35+AF20*AF35*0.5)^2/(2*AF20))-AC32 -> 59.12023937
D74: =IF(D13>0,-D13/2,"") ->  | J74: =IF(D13<0,-D13/2,"") -> 13.99411527 | N74: =IF(N14>0,-N14/2,"") -> -2.291143802 | T74: =IF(N14<0,-N14/2,"") ->  | X74: =IF(X13>0,-X13/2,"") ->  | AD74: =IF(X13<0,-X13/2,"") -> 2.292449423 | AH74: =IF(AH14>0,-AH14/2,"") -> -13.99021824 | AN74: =IF(AH14<0,-AH14/2,"") -> 
D77: =IF(I13<0,(I13+I13/2)/$AP$15,"") -> -4.799981537 | J77: =IF(I13>0,(I13+I13/2)/$AP$15,"") ->  | N77: =IF(S14<0,(S14+S14/2)/$AP$15,"") ->  | T77: =IF(S14>0,(S14+S14/2)/$AP$15,"") -> 1.782000735 | X77: =IF(AC13<0,(AC13+AC13/2)/$AP$15,"") -> -1.783016218 | AD77: =IF(AC13>0,(AC13+AC13/2)/$AP$15,"") ->  | AH77: =IF(AM14<0,(AM14+AM14/2)/$AP$15,"") ->  | AN77: =IF(AM14>0,(AM14+AM14/2)/$AP$15,"") -> 4.798644857
J80: kesme kuvveti diyagramı (KN)
H84: =L20*L35+P89 -> 97.78716406 | R84: =V20*V35+Z89 -> 53.57590077 | AB84: =AF20*AF35+AJ89 -> 105.9483631 | AL84: =IF(AM22=0,"",AN20*AL35) -> 15
D86: =IF(D77<0,D77,"") -> -4.799981537 | J86: =IF(J77>0,J77,"") ->  | N86: =IF(N77<0,N77,"") ->  | T86: =IF(T77>0,T77,"") -> 1.782000735 | X86: =IF(X77<0,X77,"") -> -1.783016218 | AD86: =IF(AD77>0,AD77,"") ->  | AH86: =IF(AH77<0,AH77,"") ->  | AN86: =IF(AN77>0,AN77,"") -> 4.798644857
D87: =IF(D99<0,D99,"") -> -13.99411527 | J87: =IF(J99>0,J99,"") ->  | N87: =IF(N99<0,N99,"") ->  | T87: =IF(T99>0,T99,"") -> 2.291143802 | X87: =IF(X99<0,X99,"") -> -2.292449423 | AD87: =IF(AD99>0,AD99,"") ->  | AH87: =IF(AH99<0,AH99,"") ->  | AN87: =IF(AN99>0,AN99,"") -> 13.99021824
P89: =-(0.5*L20*L35^2+(-O31)-I32)/L35 -> -105.9468359 | Z89: =-(0.5*V20*V35^2+(-Y32)-S31)/V35 -> -53.57059923 | AJ89: =-(0.5*AF20*AF35^2+(-AI31)-AC32)/AF35 -> -97.78563693
F90: =IF(E22=0,"",-C20*E35) -> -15
J91: =((L20*L35-((0.5*L20*L35^2+(-O31)-I32)/L35))*L35)/((L20*L35-((0.5*L20*L35^2+(-O31)-I32)/L35))+((0.5*L20*L35^2+(-O31)-I32)/L35)) -> 2.207883587 | L91: m | T91: =((V20*V35-((0.5*V20*V35^2+(-Y32)-S31)/V35))*V35)/((V20*V35-((0.5*V20*V35^2+(-Y32)-S31)/V35))+((0.5*V20*V35^2+(-Y32)-S31)/V35)) -> 1.525075456 | V91: m | AD91: =((AF20*AF35-((0.5*AF20*AF35^2+(-AI31)-AC32)/AF35))*AF35)/((AF20*AF35-((0.5*AF20*AF35^2+(-AI31)-AC32)/AF35))+((0.5*AF20*AF35^2+(-AI31)-AC32)/AF35)) -> 2.392150893 | AF91: m
D99: =IF(D13<0,(D13+D13/2)/$AP$26,"") -> -13.99411527 | J99: =IF(D13>0,(D13+D13/2)/$AP$26,"") ->  | N99: =IF(N14<0,(N14+N14/2)/$AP$26,"") ->  | T99: =IF(N14>0,(N14+N14/2)/$AP$26,"") -> 2.291143802 | X99: =IF(X13<0,(X13+X13/2)/$AP$26,"") -> -2.292449423 | AD99: =IF(X13>0,(X13+X13/2)/$AP$26,"") ->  | AH99: =IF(AH14<0,(AH14+AH14/2)/$AP$26,"") ->  | AN99: =IF(AH14>0,(AH14+AH14/2)/$AP$26,"") -> 13.99021824
B101: kiriş faydalı yükseklik d (m) | H101: =O46-M3 -> 0.57 | R101: =Y46-M3 -> 0.57 | AB101: =AI46-M3 -> 0.57
B103: kiriş kolon yüzünden d mesafede kesme kuvveti (KN) | H103: =(L20*L35-((0.5*L20*L35^2-O31-I32)/L35))-L20*(MIN(G4,G41)/2+H101) -> 64.79111406 | O103: =((0.5*L20*L35^2-O31-I32)/L35)-L20*(MIN(Q4,Q41)/2+H101) -> 75.16528594 | R103: =(V20*V35-((0.5*V20*V35^2-Y32-S31)/V35))-V20*(MIN(Q4,Q41)/2+R101) -> 29.16055077 | Y103: =((0.5*V20*V35^2-Y32-S31)/V35)-V20*(MIN(AA4,AA41)/2+R101) -> 29.15524923 | AB103: =(AF20*AF35-((0.5*AF20*AF35^2-AI31-AC32)/AF35))-AF20*(MIN(AA4,AA41)/2+AB101) -> 75.16681307 | AI103: =((0.5*AF20*AF35^2-AI31-AC32)/AF35)-AF20*(MIN(AK4,AK41)/2+AB101) -> 64.78958693
B105: kiriş kolon yüzünden 2*h mesafede kesme kuvveti (KN) | H105: =(L20*L35-((0.5*L20*L35^2-O31-I32)/L35))-L20*(MIN(G4,G41)/2+2*O46) -> 36.88841406 | O105: =((0.5*L20*L35^2-O31-I32)/L35)-L20*(MIN(Q4,Q41)/2+2*O46) -> 47.26258594 | R105: =(V20*V35-((0.5*V20*V35^2-Y32-S31)/V35))-V20*(MIN(Q4,Q41)/2+2*Y46) -> 7.028650766 | Y105: =((0.5*V20*V35^2-Y32-S31)/V35)-V20*(MIN(AA4,AA41)/2+2*Y46) -> 7.023349234 | AB105: =(AF20*AF35-((0.5*AF20*AF35^2-AI31-AC32)/AF35))-AF20*(MIN(AA4,AA41)/2+2*AI46) -> 47.26411307 | AI105: =((0.5*AF20*AF35^2-AI31-AC32)/AF35)-AF20*(MIN(AK4,AK41)/2+2*AI46) -> 36.88688693
B107: kiriş kolon yüzü kesme kuvveti (KN) | H107: =(L20*L35-((0.5*L20*L35^2-O31-I32)/L35))-L20*MIN(G4,G41)/2 -> 90.03641406 | O107: =((0.5*L20*L35^2-O31-I32)/L35)-L20*MIN(Q4,Q41)/2 -> 100.4105859 | R107: =(V20*V35-((0.5*V20*V35^2-Y32-S31)/V35))-V20*MIN(Q4,Q41)/2 -> 49.18465077 | Y107: =((0.5*V20*V35^2-Y32-S31)/V35)-V20*MIN(AA4,AA41)/2 -> 49.17934923 | AB107: =(AF20*AF35-((0.5*AF20*AF35^2-AI31-AC32)/AF35))-AF20*MIN(AA4,AA41)/2 -> 100.4121131 | AI107: =((0.5*AF20*AF35^2-AI31-AC32)/AF35)-AF20*MIN(AK4,AK41)/2 -> 90.03488693
B109: kiriş kolon yüzü moment (KNm) | H109: =+I32-(L20*L35-((0.5*L20*L35^2-O31-I32)/L35))*MIN(G4,G41)/3 -> 37.42969113 | O109: =-O31-((0.5*L20*L35^2-O31-I32)/L35)*MIN(Q4,Q41)/3 -> 58.77653596 | R109: =+S31-(V20*V35-((0.5*V20*V35^2-Y32-S31)/V35))*MIN(Q4,Q41)/3 -> 54.99449148 | Y109: =-Y32-((0.5*V20*V35^2-Y32-S31)/V35)*MIN(AA4,AA41)/3 -> 54.98684844 | AB109: =+AC32-(AF20*AF35-((0.5*AF20*AF35^2-AI31-AC32)/AF35))*MIN(AA4,AA41)/3 -> 58.77296607 | AI109: =-AI31-((0.5*AF20*AF35^2-AI31-AC32)/AF35)*MIN(AK4,AK41)/3 -> 37.41940189

Sheet 4_aciklikli
B2: ÇERÇEVE CROSS (4 AÇIKLIKLI) (inş.müh. Gürcan BERBEROĞLU tel: 0532 366 02 04 www.betoncelik.com )
I3: pas payı d ' = | M3: 0.03 | O3: m | V3: dikkat sadece sarı hücrelere rakam giriniz.
G4: 0.5 | I4: m | Q4: 0.5 | S4: m | AA4: 0.5 | AC4: m | AK4: 0.5 | AM4: m | AU4: 0.5 | AW4: m
I6: m | S6: m | AC6: m | AM6: m | AW6: m
I7: 0.6 | S7: 0.6 | AC7: 0.6 | AM7: 0.6 | AW7: 0.6
G11: dm4 | Q11: dm4 | AA11: dm4 | AK11: dm4 | AU11: dm4
D13: =SUM(D14:E18) -> -2.88247402 | G13: =I7*G4^3/12*10000 -> 62.5 | I13: =SUM(I14:J18) -> -2.88247402 | Q13: =S7*Q4^3/12*10000 -> 62.5 | X13: =SUM(X14:Y18) -> -3.735097381e-17 | AA13: =AC7*AA4^3/12*10000 -> 62.5 | AC13: =SUM(AC14:AD18) -> -3.735097381e-17 | AK13: =AM7*AK4^3/12*10000 -> 62.5 | AR13: =SUM(AR14:AS18) -> 2.88247402 | AU13: =AW7*AU4^3/12*10000 -> 62.5 | AW13: =SUM(AW14:AX18) -> 2.88247402
D14: =-I30*G22 -> -2.470614698e-06 | I14: =-I30*G18 -> -2.470614698e-06 | N14: =SUM(N15:O18) -> 0.4240510439 | S14: =SUM(S15:T18) -> 0.4240510439 | X14: =-(Y30+AC30)*AA22 -> -1.533806368e-20 | AC14: =-(Y30+AC30)*AA18 -> -1.533806368e-20 | AH14: =SUM(AH15:AI18) -> -0.4240510439 | AM14: =SUM(AM15:AN18) -> -0.4240510439 | AR14: =-AS30*AU22 -> 2.470614698e-06 | AW14: =-AS30*AU18 -> 2.470614698e-06 | AZ14: m
D15: =-I28*G22 -> -8.056818956e-05 | I15: =-I28*G18 -> -8.056818956e-05 | N15: =-(O29+S29)*Q22 -> 1.185268416e-05 | S15: =-(O29+S29)*Q18 -> 1.185268416e-05 | X15: =-(Y28+AC28)*AA22 -> -2.119441527e-19 | AC15: =-(Y28+AC28)*AA18 -> -2.119441527e-19 | AH15: =-(AI29+AM29)*AK22 -> -1.185268416e-05 | AM15: =-(AI29+AM29)*AK18 -> -1.185268416e-05 | AR15: =-AS28*AU22 -> 8.056818956e-05 | AW15: =-AS28*AU18 -> 8.056818956e-05 | AZ15: 3.5
D16: =-I26*G22 -> -0.00262737576 | G16: I = | I16: =-I26*G18 -> -0.00262737576 | N16: =-(O27+S27)*Q22 -> 0.0003865229594 | Q16: I = | S16: =-(O27+S27)*Q18 -> 0.0003865229594 | X16: =-(Y26+AC26)*AA22 -> -2.855668584e-18 | AA16: I = | AC16: =-(Y26+AC26)*AA18 -> -2.855668584e-18 | AH16: =-(AI27+AM27)*AK22 -> -0.0003865229594 | AK16: I = | AM16: =-(AI27+AM27)*AK18 -> -0.0003865229594 | AR16: =-AS26*AU22 -> 0.00262737576 | AU16: I = | AW16: =-AS26*AU18 -> 0.00262737576
D17: =-I24*G22 -> -0.08568025942 | I17: =-I24*G18 -> -0.08568025942 | N17: =-(O25+S25)*Q22 -> 0.01260473966 | S17: =-(O25+S25)*Q18 -> 0.01260473966 | X17: =-(Y24+AC24)*AA22 -> -3.426802301e-17 | AC17: =-(Y24+AC24)*AA18 -> -3.426802301e-17 | AH17: =-(AI25+AM25)*AK22 -> -0.01260473966 | AM17: =-(AI25+AM25)*AK18 -> -0.01260473966 | AR17: =-AS24*AU22 -> 0.08568025942 | AW17: =-AS24*AU18 -> 0.08568025942
D18: =-(E22+I22)*G22 -> -2.794083346 | G18: =(4*G13/AZ15)/((4*G13/AZ15)+(4*L21/L35)+(4*G27/AZ26)) -> 0.2915565231 | I18: =-(E22+I22)*G18 -> -2.794083346 | N18: =-(O22+O23+S22+S23)*Q22 -> 0.4110479286 | Q18: =(4*Q13/AZ15)/((4*Q13/AZ15)+(4*V21/V35)+(4*Q27/AZ26)+(4*L21/L35)) -> 0.2057726076 | S18: =-(O22+O23+S22+S23)*Q18 -> 0.4110479286 | X18: =-(Y22+AC22)*AA22 -> 0 | AA18: =(4*AA13/AZ15)/((4*AA13/AZ15)+(4*AA27/AZ26)+(4*V21/V35)+(4*AF21/AF35)) -> 0.2057726076 | AC18: =-(Y22+AC22)*AA18 -> 0 | AH18: =-(AI22+AM22+AI23+AM23)*AK22 -> -0.4110479286 | AK18: =(4*AK13/AZ15)/((4*AK13/AZ15)+(4*AK27/AZ26)+(4*AF21/AF35)+(4*AP21/AP35)) -> 0.2057726076 | AM18: =-(AI22+AM22+AI23+AM23)*AK18 -> -0.4110479286 | AR18: =-(AS22+AW22)*AU22 -> 2.794083346 | AU18: =(4*AU13/AZ15)/((4*AU13/AZ15)+(4*AU27/AZ26)+(4*AP21/AP35)) -> 0.2915565231 | AW18: =-(AS22+AW22)*AU18 -> 2.794083346
B20: q = | C20: 10 | E20: KN/m | K20: q = | L20: 10 | N20: KN/m | U20: q = | V20: 10 | X20: KN/m | AE20: q = | AF20: 10 | AH20: KN/m | AO20: q = | AP20: 10 | AR20: KN/m | AW20: q = | AX20: 10 | AZ20: KN/m
F21: 0 | H21: =(4*L21/L35)/((4*G13/AZ15)+(4*L21/L35)+(4*G27/AZ26)) -> 0.4168869538 | K21: I = | L21: =(L43*H45^3/12+H45*L43*(((H45*L43*H45/2+L50*(O46-H45)*((O46-H45)/2+H45))/(L43*H45+(O46-H45)*L50))-H45/2)^2+L50*(O46-H45)^3/12+L50*(O46-H45)*(O46-((H45*L43*H45/2+L50*(O46-H45)*((O46-H45)/2+H45))/(L43*H45+(O46-H45)*L50))-(O46-H45)/2)^2)*10000 -> 127.6666667 | N21: dm4 | P21: =(4*L21/L35)/((4*Q13/AZ15)+(4*V21/V35)+(4*Q27/AZ26)+(4*L21/L35)) -> 0.2942273924 | R21: =(4*V21/V35)/((4*Q13/AZ15)+(4*V21/V35)+(4*Q27/AZ26)+(4*L21/L35)) -> 0.2942273924 | U21: I = | V21: =(V43*R45^3/12+R45*V43*(((R45*V43*R45/2+V50*(Y46-R45)*((Y46-R45)/2+R45))/(V43*R45+(Y46-R45)*V50))-R45/2)^2+V50*(Y46-R45)^3/12+V50*(Y46-R45)*(Y46-((R45*V43*R45/2+V50*(Y46-R45)*((Y46-R45)/2+R45))/(V43*R45+(Y46-R45)*V50))-(Y46-R45)/2)^2)*10000 -> 127.6666667 | X21: dm4 | Z21: =(4*V21/V35)/((4*AA13/AZ15)+(4*AA27/AZ26)+(4*V21/V35)+(4*AF21/AF35)) -> 0.2942273924 | AB21: =(4*AF21/AF35)/((4*AA13/AZ15)+(4*AA27/AZ26)+(4*V21/V35)+(4*AF21/AF35)) -> 0.2942273924 | AE21: I = | AF21: =(AF43*AB45^3/12+AB45*AF43*(((AB45*AF43*AB45/2+AF50*(AI46-AB45)*((AI46-AB45)/2+AB45))/(AF43*AB45+(AI46-AB45)*AF50))-AB45/2)^2+AF50*(AI46-AB45)^3/12+AF50*(AI46-AB45)*(AI46-((AB45*AF43*AB45/2+AF50*(AI46-AB45)*((AI46-AB45)/2+AB45))/(AF43*AB45+(AI46-AB45)*AF50))-(AI46-AB45)/2)^2)*10000 -> 127.6666667 | AH21: dm4 | AJ21: =(4*AF21/AF35)/((4*AK13/AZ15)+(4*AK27/AZ26)+(4*AF21/AF35)+(4*AP21/AP35)) -> 0.2942273924 | AL21: =(4*AP21/AP35)/((4*AK13/AZ15)+(4*AK27/AZ26)+(4*AF21/AF35)+(4*AP21/AP35)) -> 0.2942273924 | AO21: I = | AP21: =(AP43*AL45^3/12+AL45*AP43*(((AL45*AP43*AL45/2+AP50*(AS46-AL45)*((AS46-AL45)/2+AL45))/(AP43*AL45+(AS46-AL45)*AP50))-AL45/2)^2+AP50*(AS46-AL45)^3/12+AP50*(AS46-AL45)*(AS46-((AL45*AP43*AL45/2+AP50*(AS46-AL45)*((AS46-AL45)/2+AL45))/(AP43*AL45+(AS46-AL45)*AP50))-(AS46-AL45)/2)^2)*10000 -> 127.6666667 | AR21: dm4 | AT21: =(4*AP21/AP35)/((4*AU13/AZ15)+(4*AU27/AZ26)+(4*AP21/AP35)) -> 0.4168869538 | AV21: 0
E22: =-C20*E35*E35/2 -> -11.25 | G22: =(4*G27/AZ26)/((4*G13/AZ15)+(4*L21/L35)+(4*G27/AZ26)) -> 0.2915565231 | I22: =L20*L35^2/12 -> 20.83333333 | O22: =-L20*L35^2/12 -> -20.83333333 | Q22: =(4*Q27/AZ26)/((4*Q13/AZ15)+(4*V21/V35)+(4*Q27/AZ26)+(4*L21/L35)) -> 0.2057726076 | S22: =V20*V35^2/12 -> 20.83333333 | Y22: =-V20*V35^2/12 -> -20.83333333 | AA22: =(4*AA27/AZ26)/((4*AA13/AZ15)+(4*AA27/AZ26)+(4*V21/V35)+(4*AF21/AF35)) -> 0.2057726076 | AC22: =AF20*AF35^2/12 -> 20.83333333 | AI22: =-AF20*AF35^2/12 -> -20.83333333 | AK22: =(4*AK27/AZ26)/((4*AK13/AZ15)+(4*AK27/AZ26)+(4*AF21/AF35)+(4*AP21/AP35)) -> 0.2057726076 | AM22: =AP20*AP35^2/12 -> 20.83333333 | AS22: =-AP20*AP35^2/12 -> -20.83333333 | AU22: =(4*AU27/AZ26)/((4*AU13/AZ15)+(4*AU27/AZ26)+(4*AP21/AP35)) -> 0.2915565231 | AW22: =AX20*AV35*AV35/2 -> 11.25
I23: =-(E22+I22)*H21 -> -3.995166641 | O23: =+I23/2 -> -1.99758332 | S23: =+Y23/2 -> 0 | Y23: =-(Y22+AC22)*Z21 -> 0 | AC23: =-(Y22+AC22)*AB21 -> 0 | AI23: =+AC23/2 -> 0 | AM23: =+AS23/2 -> 1.99758332 | AS23: =-(AS22+AW22)*AT21 -> 3.995166641
I24: =+O24/2 -> 0.2938718658 | O24: =-(O22+O23+S22+S23)*P21 -> 0.5877437316 | S24: =-(O22+O23+S22+S23)*R21 -> 0.5877437316 | Y24: =+S24/2 -> 0.2938718658 | AC24: =+AI24/2 -> -0.2938718658 | AI24: =-(AI22+AM22+AI23+AM23)*AJ21 -> -0.5877437316 | AM24: =-(AI22+AI23+AM22+AM23)*AL21 -> -0.5877437316 | AS24: =+AM24/2 -> -0.2938718658
G25: dm4 | I25: =-I24*H21 -> -0.1225113469 | O25: =+I25/2 -> -0.06125567347 | Q25: dm4 | S25: =+Y25/2 -> -2.449935192e-17 | Y25: =-(Y24+AC24)*Z21 -> -4.899870384e-17 | AA25: dm4 | AC25: =-(Y24+AC24)*AB21 -> -4.899870384e-17 | AI25: =+AC25/2 -> -2.449935192e-17 | AK25: dm4 | AM25: =+AS25/2 -> 0.06125567347 | AS25: =-AS24*AT21 -> 0.1225113469 | AU25: dm4 | AZ25: m
I26: =+O26/2 -> 0.009011548539 | O26: =-(O25+S25)*P21 -> 0.01802309708 | S26: =-(O25+S25)*R21 -> 0.01802309708 | Y26: =+S26/2 -> 0.009011548539 | AC26: =+AI26/2 -> -0.009011548539 | AI26: =-(AI25+AM25)*AJ21 -> -0.01802309708 | AM26: =-(AI25+AM25)*AL21 -> -0.01802309708 | AS26: =+AM26/2 -> -0.009011548539 | AZ26: 3.5
G27: =I38*G41^3/12*10000 -> 62.5 | I27: =-I26*H21 -> -0.003756797019 | O27: =+I27/2 -> -0.00187839851 | Q27: =S38*Q41^3/12*10000 -> 62.5 | S27: =+Y27/2 -> -2.04161266e-18 | Y27: =-(Y26+AC26)*Z21 -> -4.08322532e-18 | AA27: =AC38*AA41^3/12*10000 -> 62.5 | AC27: =-(Y26+AC26)*AB21 -> -4.08322532e-18 | AI27: =+AC27/2 -> -2.04161266e-18 | AK27: =AM38*AK41^3/12*10000 -> 62.5 | AM27: =+AS27/2 -> 0.00187839851 | AS27: =-AS26*AT21 -> 0.003756797019 | AU27: =AW38*AU41^3/12*10000 -> 62.5
I28: =+O28/2 -> 0.0002763381477 | O28: =-(O27+S27)*P21 -> 0.0005526762955 | S28: =-(O27+S27)*R21 -> 0.0005526762955 | Y28: =+S28/2 -> 0.0002763381477 | AC28: =+AI28/2 -> -0.0002763381477 | AI28: =-(AI27+AM27)*AJ21 -> -0.0005526762955 | AM28: =-(AI27+AM27)*AL21 -> -0.0005526762955 | AS28: =+AM28/2 -> -0.0002763381477
I29: =-I28*H21 -> -0.0001152017686 | O29: =+I29/2 -> -5.760088432e-05 | S29: =+Y29/2 -> -1.515259396e-19 | Y29: =-(Y28+AC28)*Z21 -> -3.030518792e-19 | AC29: =-(Y28+AC28)*AB21 -> -3.030518792e-19 | AI29: =+AC29/2 -> -1.515259396e-19 | AM29: =+AS29/2 -> 5.760088432e-05 | AS29: =-AS28*AT21 -> 0.0001152017686
G30: I = | I30: =+O30/2 -> 8.473878998e-06 | O30: =-(O29+S29)*P21 -> 1.6947758e-05 | Q30: I = | S30: =-(O29+S29)*R21 -> 1.6947758e-05 | Y30: =+S30/2 -> 8.473878998e-06 | AA30: I = | AC30: =+AI30/2 -> -8.473878998e-06 | AI30: =-(AI29+AM29)*AJ21 -> -1.6947758e-05 | AK30: I = | AM30: =-(AI29+AM29)*AL21 -> -1.6947758e-05 | AS30: =+AM30/2 -> -8.473878998e-06 | AU30: I =
I31: =-I30*H21 -> -3.532649603e-06 | O31: =SUM(O22:P30) -> -22.28777187 | S31: =SUM(S22:T30) -> 21.43966979 | Y31: =-(Y30+AC30)*Z21 -> -2.193138599e-20 | AC31: =-(Y30+AC30)*AB21 -> -2.193138599e-20 | AI31: =SUM(AI22:AJ30) -> -21.43966979 | AM31: =SUM(AM22:AN30) -> 22.28777187 | AS31: =-AS30*AT21 -> 3.532649603e-06
I32: =SUM(I22:J31) -> 17.01494804 | Y32: =SUM(Y22:Z31) -> -20.53016511 | AC32: =SUM(AC22:AD31) -> 20.53016511 | AS32: =SUM(AS22:AT31) -> -17.01494804
E35: 1.5 | G35: m | L35: 5 | N35: m | V35: 5 | X35: m | AF35: 5 | AH35: m | AP35: 5 | AR35: m | AV35: 1.5 | AX35: m
I37: m | S37: m | AC37: m | AM37: m | AW37: m
I38: 0.6 | S38: 0.6 | AC38: 0.6 | AM38: 0.6 | AW38: 0.6
G41: 0.5 | I41: m | Q41: 0.5 | S41: m | AA41: 0.5 | AC41: m | AK41: 0.5 | AM41: m | AU41: 0.5 | AW41: m
L43: 1.2 | N43: m | V43: 1.2 | X43: m | AF43: 1.2 | AH43: m | AP43: 1.2 | AR43: m
H45: 0.1 | J45: m | O45: m | R45: 0.1 | T45: m | Y45: m | AB45: 0.1 | AD45: m | AI45: m | AL45: 0.1 | AN45: m | AS45: m
O46: 0.7 | Y46: 0.7 | AI46: 0.7 | AS46: 0.7
L50: 0.25 | N50: m | V50: 0.25 | X50: m | AF50: 0.25 | AH50: m | AP50: 0.25 | AR50: m
D52: =IF(I13<0,I13/2,"") -> -1.44123701 | J52: =IF(I13>0,I13/2,"") ->  | N52: =IF(S14<0,S14/2,"") ->  | T52: =IF(S14>0,S14/2,"") -> 0.212025522 | X52: =IF(AC13<0,AC13/2,"") -> -1.867548691e-17 | AD52: =IF(AC13>0,AC13/2,"") ->  | AH52: =IF(AM14<0,AM14/2,"") -> -0.212025522 | AN52: =IF(AM14>0,AM14/2,"") ->  | AR52: =IF(AW13<0,AW13/2,"") ->  | AX52: =IF(AW13>0,AW13/2,"") -> 1.44123701
J55: moment diyagramı (KNm)
R56: =-S31 -> -21.43966979
H57: =-I32 -> -17.01494804 | Z57: =Y32 -> -20.53016511 | AB57: =-AC32 -> -20.53016511 | AJ57: =AI31 -> -21.43966979 | AL57: =-AM31 -> -22.28777187 | AT57: =AS32 -> -17.01494804
P58: =O31 -> -22.28777187
H59: =IF(E22=0,"",+E22) -> -11.25 | AV59: =IF(AW22=0,"",-AW22) -> -11.25
E61: =IF(I13>0,-I13,"") ->  | I61: =IF(I13<0,-I13,"") -> 2.88247402 | O61: =IF(S14>0,-S14,"") -> -0.4240510439 | S61: =IF(S14<0,-S14,"") ->  | Y61: =IF(AC13>0,-AC13,"") ->  | AC61: =IF(AC13<0,-AC13,"") -> 3.735097381e-17 | AI61: =IF(AM14>0,-AM14,"") ->  | AM61: =IF(AM14<0,-AM14,"") -> 0.4240510439 | AS61: =IF(AW13>0,-AW13,"") -> -2.88247402 | AW61: =IF(AW13<0,-AW13,"") -> 
E62: =IF(D13<0,D13,"") -> -2.88247402 | I62: =IF(D13>0,D13,"") ->  | O62: =IF(N14<0,N14,"") ->  | S62: =IF(N14>0,N14,"") -> 0.4240510439 | Y62: =IF(X13<0,X13,"") -> -3.735097381e-17 | AC62: =IF(X13>0,X13,"") ->  | AI62: =IF(AH14<0,AH14,"") -> -0.4240510439 | AM62: =IF(AH14>0,AH14,"") ->  | AS62: =IF(AR13<0,AR13,"") ->  | AW62: =IF(AR13>0,AR13,"") -> 2.88247402
L65: =(((I32-(-O31))/L35+L20*L35*0.5)^2/(2*L20))-I32 -> 11.65424539 | V65: =(((S31-(-Y32))/V35+V20*V35*0.5)^2/(2*V20))-S31 -> 10.26673695 | AF65: =(((AC32-(-AI31))/AF35+AF20*AF35*0.5)^2/(2*AF20))-AC32 -> 10.26673695 | AP65: =(((AM31-(-AS32))/AP35+AP20*AP35*0.5)^2/(2*AP20))-AM31 -> 11.65424539
D74: =IF(D13>0,-D13/2,"") ->  | J74: =IF(D13<0,-D13/2,"") -> 1.44123701 | N74: =IF(N14>0,-N14/2,"") -> -0.212025522 | T74: =IF(N14<0,-N14/2,"") ->  | X74: =IF(X13>0,-X13/2,"") ->  | AD74: =IF(X13<0,-X13/2,"") -> 1.867548691e-17 | AH74: =IF(AH14>0,-AH14/2,"") ->  | AN74: =IF(AH14<0,-AH14/2,"") -> 0.212025522 | AR74: =IF(AR13>0,-AR13/2,"") -> -1.44123701 | AX74: =IF(AR13<0,-AR13/2,"") -> 
D77: =IF(I13<0,(I13+I13/2)/$AZ$15,"") -> -1.235346009 | J77: =IF(I13>0,(I13+I13/2)/$AZ$15,"") ->  | N77: =IF(S14<0,(S14+S14/2)/$AZ$15,"") ->  | T77: =IF(S14>0,(S14+S14/2)/$AZ$15,"") -> 0.1817361617 | X77: =IF(AC13<0,(AC13+AC13/2)/$AZ$15,"") -> -1.60075602e-17 | AD77: =IF(AC13>0,(AC13+AC13/2)/$AZ$15,"") ->  | AH77: =IF(AM14<0,(AM14+AM14/2)/$AZ$15,"") -> -0.1817361617 | AN77: =IF(AM14>0,(AM14+AM14/2)/$AZ$15,"") ->  | AR77: =IF(AW13<0,(AW13+AW13/2)/$AZ$15,"") ->  | AX77: =IF(AW13>0,(AW13+AW13/2)/$AZ$15,"") -> 1.235346009
J80: kesme kuvveti diyagramı (KN)
H84: =L20*L35+P89 -> 23.94543523 | R84: =V20*V35+Z89 -> 25.18190094 | AB84: =AF20*AF35+AJ89 -> 24.81809906 | AL84: =AP20*AP35+AT89 -> 26.05456477 | AV84: =IF(AW22=0,"",AX20*AV35) -> 15
D86: =IF(D77<0,D77,"") -> -1.235346009 | J86: =IF(J77>0,J77,"") ->  | N86: =IF(N77<0,N77,"") ->  | T86: =IF(T77>0,T77,"") -> 0.1817361617 | X86: =IF(X77<0,X77,"") -> -1.60075602e-17 | AD86: =IF(AD77>0,AD77,"") ->  | AH86: =IF(AH77<0,AH77,"") -> -0.1817361617 | AN86: =IF(AN77>0,AN77,"") ->  | AR86: =IF(AR77<0,AR77,"") ->  | AX86: =IF(AX77>0,AX77,"") -> 1.235346009
D87: =IF(D99<0,D99,"") -> -1.235346009 | J87: =IF(J99>0,J99,"") ->  | N87: =IF(N99<0,N99,"") ->  | T87: =IF(T99>0,T99,"") -> 0.1817361617 | X87: =IF(X99<0,X99,"") -> -1.60075602e-17 | AD87: =IF(AD99>0,AD99,"") ->  | AH87: =IF(AH99<0,AH99,"") -> -0.1817361617 | AN87: =IF(AN99>0,AN99,"") ->  | AR87: =IF(AR99<0,AR99,"") ->  | AX87: =IF(AX99>0,AX99,"") -> 1.235346009
P89: =-(0.5*L20*L35^2+(-O31)-I32)/L35 -> -26.05456477 | Z89: =-(0.5*V20*V35^2+(-Y32)-S31)/V35 -> -24.81809906 | AJ89: =-(0.5*AF20*AF35^2+(-AI31)-AC32)/AF35 -> -25.18190094 | AT89: =-(0.5*AP20*AP35^2+(-AS32)-AM31)/AP35 -> -23.94543523
F90: =IF(E22=0,"",-C20*E35) -> -15
J91: =((L20*L35-((0.5*L20*L35^2+(-O31)-I32)/L35))*L35)/((L20*L35-((0.5*L20*L35^2+(-O31)-I32)/L35))+((0.5*L20*L35^2+(-O31)-I32)/L35)) -> 2.394543523 | L91: m | T91: =((V20*V35-((0.5*V20*V35^2+(-Y32)-S31)/V35))*V35)/((V20*V35-((0.5*V20*V35^2+(-Y32)-S31)/V35))+((0.5*V20*V35^2+(-Y32)-S31)/V35)) -> 2.518190094 | V91: m | AD91: =((AF20*AF35-((0.5*AF20*AF35^2+(-AI31)-AC32)/AF35))*AF35)/((AF20*AF35-((0.5*AF20*AF35^2+(-AI31)-AC32)/AF35))+((0.5*AF20*AF35^2+(-AI31)-AC32)/AF35)) -> 2.481809906 | AF91: m | AN91: =((AP20*AP35-((0.5*AP20*AP35^2+(-AS32)-AM31)/AP35))*AP35)/((AP20*AP35-((0.5*AP20*AP35^2+(-AS32)-AM31)/AP35))+((0.5*AP20*AP35^2+(-AS32)-AM31)/AP35)) -> 2.605456477 | AP91: m
D99: =IF(D13<0,(D13+D13/2)/$AZ$26,"") -> -1.235346009 | J99: =IF(D13>0,(D13+D13/2)/$AZ$26,"") ->  | N99: =IF(N14<0,(N14+N14/2)/$AZ$26,"") ->  | T99: =IF(N14>0,(N14+N14/2)/$AZ$26,"") -> 0.1817361617 | X99: =IF(X13<0,(X13+X13/2)/$AZ$26,"") -> -1.60075602e-17 | AD99: =IF(X13>0,(X13+X13/2)/$AZ$26,"") ->  | AH99: =IF(AH14<0,(AH14+AH14/2)/$AZ$26,"") -> -0.1817361617 | AN99: =IF(AH14>0,(AH14+AH14/2)/$AZ$26,"") ->  | AR99: =IF(AR13<0,(AR13+AR13/2)/$AZ$26,"") ->  | AX99: =IF(AR13>0,(AR13+AR13/2)/$AZ$26,"") -> 1.235346009
B101: kiriş faydalı yükseklik d (m) | H101: =O46-M3 -> 0.67 | R101: =Y46-M3 -> 0.67 | AB101: =AI46-M3 -> 0.67 | AL101: =AS46-M3 -> 0.67
B103: kiriş kolon yüzünden d mesafede kesme kuvveti (KN) | H103: =(L20*L35-((0.5*L20*L35^2-O31-I32)/L35))-L20*(MIN(G4,G41)/2+H101) -> 14.74543523 | O103: =((0.5*L20*L35^2-O31-I32)/L35)-L20*(MIN(Q4,Q41)/2+H101) -> 16.85456477 | R103: =(V20*V35-((0.5*V20*V35^2-Y32-S31)/V35))-V20*(MIN(Q4,Q41)/2+R101) -> 15.98190094 | Y103: =((0.5*V20*V35^2-Y32-S31)/V35)-V20*(MIN(AA4,AA41)/2+R101) -> 15.61809906 | AB103: =(AF20*AF35-((0.5*AF20*AF35^2-AI31-AC32)/AF35))-AF20*(MIN(AA4,AA41)/2+AB101) -> 15.61809906 | AI103: =((0.5*AF20*AF35^2-AI31-AC32)/AF35)-AF20*(MIN(AK4,AK41)/2+AB101) -> 15.98190094 | AL103: =(AP20*AP35-((0.5*AP20*AP35^2-AS32-AM31)/AP35))-AP20*(MIN(AK4,AK41)/2+AL101) -> 16.85456477 | AS103: =((0.5*AP20*AP35^2-AS32-AM31)/AP35)-AP20*(MIN(AU4,AU41)/2+AL101) -> 14.74543523
B105: kiriş kolon yüzünden 2*h mesafede kesme kuvveti (KN) | H105: =(L20*L35-((0.5*L20*L35^2-O31-I32)/L35))-L20*(MIN(G4,G41)/2+2*O46) -> 7.445435233 | O105: =((0.5*L20*L35^2-O31-I32)/L35)-L20*(MIN(Q4,Q41)/2+2*O46) -> 9.554564767 | R105: =(V20*V35-((0.5*V20*V35^2-Y32-S31)/V35))-V20*(MIN(Q4,Q41)/2+2*Y46) -> 8.681900936 | Y105: =((0.5*V20*V35^2-Y32-S31)/V35)-V20*(MIN(AA4,AA41)/2+2*Y46) -> 8.318099064 | AB105: =(AF20*AF35-((0.5*AF20*AF35^2-AI31-AC32)/AF35))-AF20*(MIN(AA4,AA41)/2+2*AI46) -> 8.318099064 | AI105: =((0.5*AF20*AF35^2-AI31-AC32)/AF35)-AF20*(MIN(AK4,AK41)/2+2*AI46) -> 8.681900936 | AL105: =(AP20*AP35-((0.5*AP20*AP35^2-AS32-AM31)/AP35))-AP20*(MIN(AK4,AK41)/2+2*AS46) -> 9.554564767 | AS105: =((0.5*AP20*AP35^2-AS32-AM31)/AP35)-AP20*(MIN(AU4,AU41)/2+2*AS46) -> 7.445435233
B107: kiriş kolon yüzü kesme kuvveti (KN) | H107: =(L20*L35-((0.5*L20*L35^2-O31-I32)/L35))-L20*MIN(G4,G41)/2 -> 21.44543523 | O107: =((0.5*L20*L35^2-O31-I32)/L35)-L20*MIN(Q4,Q41)/2 -> 23.55456477 | R107: =(V20*V35-((0.5*V20*V35^2-Y32-S31)/V35))-V20*MIN(Q4,Q41)/2 -> 22.68190094 | Y107: =((0.5*V20*V35^2-Y32-S31)/V35)-V20*MIN(AA4,AA41)/2 -> 22.31809906 | AB107: =(AF20*AF35-((0.5*AF20*AF35^2-AI31-AC32)/AF35))-AF20*MIN(AA4,AA41)/2 -> 22.31809906 | AI107: =((0.5*AF20*AF35^2-AI31-AC32)/AF35)-AF20*MIN(AK4,AK41)/2 -> 22.68190094 | AL107: =(AP20*AP35-((0.5*AP20*AP35^2-AS32-AM31)/AP35))-AP20*MIN(AK4,AK41)/2 -> 23.55456477 | AS107: =((0.5*AP20*AP35^2-AS32-AM31)/AP35)-AP20*MIN(AU4,AU41)/2 -> 21.44543523
B109: kiriş kolon yüzü moment (KNm) | H109: =+I32-(L20*L35-((0.5*L20*L35^2-O31-I32)/L35))*MIN(G4,G41)/3 -> 13.02404217 | O109: =-O31-((0.5*L20*L35^2-O31-I32)/L35)*MIN(Q4,Q41)/3 -> 17.94534441 | R109: =+S31-(V20*V35-((0.5*V20*V35^2-Y32-S31)/V35))*MIN(Q4,Q41)/3 -> 17.2426863 | Y109: =-Y32-((0.5*V20*V35^2-Y32-S31)/V35)*MIN(AA4,AA41)/3 -> 16.39381526 | AB109: =+AC32-(AF20*AF35-((0.5*AF20*AF35^2-AI31-AC32)/AF35))*MIN(AA4,AA41)/3 -> 16.39381526 | AI109: =-AI31-((0.5*AF20*AF35^2-AI31-AC32)/AF35)*MIN(AK4,AK41)/3 -> 17.2426863 | AL109: =+AM31-(AP20*AP35-((0.5*AP20*AP35^2-AS32-AM31)/AP35))*MIN(AK4,AK41)/3 -> 17.94534441 | AS109: =-AS32-((0.5*AP20*AP35^2-AS32-AM31)/AP35)*MIN(AU4,AU41)/3 -> 13.02404217

Sheet 5_aciklikli
B2: ÇERÇEVE CROSS (5 AÇIKLIKLI) (inş.müh. Gürcan BERBEROĞLU tel: 0532 366 02 04 www.betoncelik.com )
I3: pas payı d ' = | M3: 0.03 | O3: m | V3: dikkat sadece sarı hücrelere rakam giriniz.
G4: 0.5 | I4: m | Q4: 0.5 | S4: m | AA4: 0.5 | AC4: m | AK4: 0.5 | AM4: m | AU4: 0.5 | AW4: m | BE4: 0.5 | BG4: m
I6: m | S6: m | AC6: m | AM6: m | AW6: m | BG6: m
I7: 0.6 | S7: 0.6 | AC7: 0.6 | AM7: 0.6 | AW7: 0.6 | BG7: 0.6
G11: dm4 | Q11: dm4 | AA11: dm4 | AK11: dm4 | AU11: dm4 | BE11: dm4
D13: =SUM(D14:E18) -> -9.794231209 | G13: =I7*G4^3/12*10000 -> 62.5 | I13: =SUM(I14:J18) -> -9.02100243 | Q13: =S7*Q4^3/12*10000 -> 62.5 | X13: =SUM(X14:Y18) -> 5.019300689 | AA13: =AC7*AA4^3/12*10000 -> 62.5 | AC13: =SUM(AC14:AD18) -> 4.623040108 | AK13: =AM7*AK4^3/12*10000 -> 62.5 | AR13: =SUM(AR14:AS18) -> 1.317978696 | AU13: =AW7*AU4^3/12*10000 -> 62.5 | AW13: =SUM(AW14:AX18) -> 1.213927746 | BE13: =BG7*BE4^3/12*10000 -> 62.5
D14: =-I30*G22 -> 4.669388175e-05 | I14: =-I30*G18 -> 4.300752266e-05 | N14: =SUM(N15:O18) -> 1.437129431 | S14: =SUM(S15:T18) -> 1.323671844 | X14: =-(Y30+AC30)*AA22 -> 0.0001719827647 | AC14: =-(Y30+AC30)*AA18 -> 0.000158405178 | AH14: =SUM(AH15:AI18) -> -1.180968456 | AM14: =SUM(AM15:AN18) -> -1.087734104 | AR14: =-(AS30+AW30)*AU22 -> 0.0002324493922 | AW14: =-(AS30+AW30)*AU18 -> 0.0002140981244 | BB14: =SUM(BB15:BC18) -> -1.716149061 | BG14: =SUM(BG15:BH18) -> -1.580663609 | BJ14: m
D15: =-I28*G22 -> 0.0001410481371 | I15: =-I28*G18 -> 0.0001299127579 | N15: =-(O29+S29)*Q22 -> -0.0002314027926 | S15: =-(O29+S29)*Q18 -> -0.0002131341511 | X15: =-(Y28+AC28)*AA22 -> 0.001651388745 | AC15: =-(Y28+AC28)*AA18 -> 0.001521015949 | AH15: =-(AI29+AM29)*AK22 -> -0.0007280631227 | AM15: =-(AI29+AM29)*AK18 -> -0.0006705844551 | AR15: =-(AS28+AW28)*AU22 -> 0.002663844482 | AW15: =-(AS28+AW28)*AU18 -> 0.00245354097 | BB15: =-BC29*BE22 -> -0.0006607739947 | BG15: =-BC29*BE18 -> -0.0006086076267 | BJ15: 3.8
D16: =-I26*G22 -> -0.006886594044 | G16: I = | I16: =-I26*G18 -> -0.006342915567 | N16: =-(O27+S27)*Q22 -> -0.0006989980616 | Q16: I = | S16: =-(O27+S27)*Q18 -> -0.0006438140041 | X16: =-(Y26+AC26)*AA22 -> 0.01363057956 | AA16: I = | AC16: =-(Y26+AC26)*AA18 -> 0.01255448117 | AH16: =-(AI27+AM27)*AK22 -> -0.007810952931 | AK16: I = | AM16: =-(AI27+AM27)*AK18 -> -0.007194298753 | AR16: =-(AS26+AW26)*AU22 -> 0.03278171972 | AU16: I = | AW16: =-(AS26+AW26)*AU18 -> 0.03019368922 | BB16: =-BC27*BE22 -> -0.008131596285 | BE16: I = | BG16: =-BC27*BE18 -> -0.007489628157
D17: =-I24*G22 -> -0.2832939823 | I17: =-I24*G18 -> -0.2609286679 | N17: =-(O25+S25)*Q22 -> 0.0341281777 | S17: =-(O25+S25)*Q18 -> 0.03143384788 | X17: =-(Y24+AC24)*AA22 -> 0.06666422331 | AC17: =-(Y24+AC24)*AA18 -> 0.06140125831 | AH17: =-(AI25+AM25)*AK22 -> -0.08595507016 | AM17: =-(AI25+AM25)*AK18 -> -0.07916914357 | AR17: =-(AS24+AW24)*AU22 -> 0.4464575174 | AW17: =-(AS24+AW24)*AU18 -> 0.4112108713 | BB17: =-BC25*BE22 -> -0.1107450225 | BG17: =-BC25*BE18 -> -0.1020019945
D18: =-(E22+I22)*G22 -> -9.504238375 | G18: =(4*G13/BJ15)/((4*G13/BJ15)+(4*L21/L35)+(4*G27/BJ26)) -> 0.2859584734 | I18: =-(E22+I22)*G18 -> -8.753903766 | N18: =-(O22+O23+S22+S23)*Q22 -> 1.403931654 | Q18: =(4*Q13/BJ15)/((4*Q13/BJ15)+(4*V21/V35)+(4*Q27/BJ26)+(4*L21/L35)) -> 0.2131657287 | S18: =-(O22+O23+S22+S23)*Q18 -> 1.293094945 | X18: =-(Y22+AC22)*AA22 -> 4.937182515 | AA18: =(4*AA13/BJ15)/((4*AA13/BJ15)+(4*AA27/BJ26)+(4*V21/V35)+(4*AF21/AF35)) -> 0.1818961979 | AC18: =-(Y22+AC22)*AA18 -> 4.547404948 | AH18: =-(AI22+AM22+AI23+AM23)*AK22 -> -1.08647437 | AK18: =(4*AK13/BJ15)/((4*AK13/BJ15)+(4*AK27/BJ26)+(4*AF21/AF35)+(4*AP21/AP35)) -> 0.1548079922 | AM18: =-(AI22+AM22+AI23+AM23)*AK18 -> -1.000700078 | AR18: =-(AS22+AW22)*AU22 -> 0.8358431649 | AU18: =(4*AU13/BJ15)/((4*AU13/BJ15)+(4*AU27/BJ26)+(4*AP21/AP35)+(4*AZ21/AZ35)) -> 0.1588477348 | AW18: =-(AS22+AW22)*AU18 -> 0.7698555466 | BB18: =-(BC22+BG22+BC23)*BE22 -> -1.596611668 | BE18: =(4*BE13/BJ15)/((4*BE13/BJ15)+(4*BE27/BJ26)+(4*AZ21/AZ35)) -> 0.2415932371 | BG18: =-(BC22+BG22+BC23)*BE18 -> -1.470563379
B20: q = | C20: 10 | E20: KN/m | K20: q = | L20: 15 | N20: KN/m | U20: q = | V20: 10 | X20: KN/m | AE20: q = | AF20: 10 | AH20: KN/m | AO20: q = | AP20: 10 | AR20: KN/m | AY20: q = | AZ20: 5 | BB20: KN/m | BG20: q = | BH20: 10 | BJ20: KN/m
F21: 0 | H21: =(4*L21/L35)/((4*G13/BJ15)+(4*L21/L35)+(4*G27/BJ26)) -> 0.4035723269 | K21: I = | L21: =(L43*H45^3/12+H45*L43*(((H45*L43*H45/2+L50*(O46-H45)*((O46-H45)/2+H45))/(L43*H45+(O46-H45)*L50))-H45/2)^2+L50*(O46-H45)^3/12+L50*(O46-H45)*(O46-((H45*L43*H45/2+L50*(O46-H45)*((O46-H45)/2+H45))/(L43*H45+(O46-H45)*L50))-(O46-H45)/2)^2)*10000 -> 127.6666667 | N21: dm4 | P21: =(4*L21/L35)/((4*Q13/BJ15)+(4*V21/V35)+(4*Q27/BJ26)+(4*L21/L35)) -> 0.300840147 | R21: =(4*V21/V35)/((4*Q13/BJ15)+(4*V21/V35)+(4*Q27/BJ26)+(4*L21/L35)) -> 0.2545570474 | U21: I = | V21: =(V43*R45^3/12+R45*V43*(((R45*V43*R45/2+V50*(Y46-R45)*((Y46-R45)/2+R45))/(V43*R45+(Y46-R45)*V50))-R45/2)^2+V50*(Y46-R45)^3/12+V50*(Y46-R45)*(Y46-((R45*V43*R45/2+V50*(Y46-R45)*((Y46-R45)/2+R45))/(V43*R45+(Y46-R45)*V50))-(Y46-R45)/2)^2)*10000 -> 127.6666667 | X21: dm4 | Z21: =(4*V21/V35)/((4*AA13/BJ15)+(4*AA27/BJ26)+(4*V21/V35)+(4*AF21/AF35)) -> 0.2172157755 | AB21: =(4*AF21/AF35)/((4*AA13/BJ15)+(4*AA27/BJ26)+(4*V21/V35)+(4*AF21/AF35)) -> 0.403400726 | AE21: I = | AF21: =(AF43*AB45^3/12+AB45*AF43*(((AB45*AF43*AB45/2+AF50*(AI46-AB45)*((AI46-AB45)/2+AB45))/(AF43*AB45+(AI46-AB45)*AF50))-AB45/2)^2+AF50*(AI46-AB45)^3/12+AF50*(AI46-AB45)*(AI46-((AB45*AF43*AB45/2+AF50*(AI46-AB45)*((AI46-AB45)/2+AB45))/(AF43*AB45+(AI46-AB45)*AF50))-(AI46-AB45)/2)^2)*10000 -> 127.6666667 | AH21: dm4 | AJ21: =(4*AF21/AF35)/((4*AK13/BJ15)+(4*AK27/BJ26)+(4*AF21/AF35)+(4*AP21/AP35)) -> 0.3433257933 | AL21: =(4*AP21/AP35)/((4*AK13/BJ15)+(4*AK27/BJ26)+(4*AF21/AF35)+(4*AP21/AP35)) -> 0.3337889657 | AO21: I = | AP21: =(AP43*AL45^3/12+AL45*AP43*(((AL45*AP43*AL45/2+AP50*(AS46-AL45)*((AS46-AL45)/2+AL45))/(AP43*AL45+(AS46-AL45)*AP50))-AL45/2)^2+AP50*(AS46-AL45)^3/12+AP50*(AS46-AL45)*(AS46-((AL45*AP43*AL45/2+AP50*(AS46-AL45)*((AS46-AL45)/2+AL45))/(AP43*AL45+(AS46-AL45)*AP50))-(AS46-AL45)/2)^2)*10000 -> 127.6666667 | AR21: dm4 | AT21: =(4*AP21/AP35)/((4*AU13/BJ15)+(4*AU27/BJ26)+(4*AP21/AP35)+(4*AZ21/AZ35)) -> 0.3424992492 | AV21: =(4*AZ21/AZ35)/((4*AU13/BJ15)+(4*AU27/BJ26)+(4*AP21/AP35)+(4*AZ21/AZ35)) -> 0.3261897611 | AY21: I = | AZ21: =(AZ43*AV45^3/12+AV45*AZ43*(((AV45*AZ43*AV45/2+AZ50*(BC46-AV45)*((BC46-AV45)/2+AV45))/(AZ43*AV45+(BC46-AV45)*AZ50))-AV45/2)^2+AZ50*(BC46-AV45)^3/12+AZ50*(BC46-AV45)*(BC46-((AV45*AZ43*AV45/2+AZ50*(BC46-AV45)*((BC46-AV45)/2+AV45))/(AZ43*AV45+(BC46-AV45)*AZ50))-(BC46-AV45)/2)^2)*10000 -> 127.6666667 | BB21: dm4 | BD21: =(4*AZ21/AZ35)/((4*BE13/BJ15)+(4*BE27/BJ26)+(4*AZ21/AZ35)) -> 0.4961055341 | BF21: 0
E22: =-C20*E35*E35/2 -> -7.2 | G22: =(4*G27/BJ26)/((4*G13/BJ15)+(4*L21/L35)+(4*G27/BJ26)) -> 0.3104691997 | I22: =L20*L35^2/12 -> 37.8125 | O22: =-L20*L35^2/12 -> -37.8125 | Q22: =(4*Q27/BJ26)/((4*Q13/BJ15)+(4*V21/V35)+(4*Q27/BJ26)+(4*L21/L35)) -> 0.2314370769 | S22: =V20*V35^2/12 -> 35.20833333 | Y22: =-V20*V35^2/12 -> -35.20833333 | AA22: =(4*AA27/BJ26)/((4*AA13/BJ15)+(4*AA27/BJ26)+(4*V21/V35)+(4*AF21/AF35)) -> 0.1974873006 | AC22: =AF20*AF35^2/12 -> 10.20833333 | AI22: =-AF20*AF35^2/12 -> -10.20833333 | AK22: =(4*AK27/BJ26)/((4*AK13/BJ15)+(4*AK27/BJ26)+(4*AF21/AF35)+(4*AP21/AP35)) -> 0.1680772487 | AM22: =AP20*AP35^2/12 -> 10.8 | AS22: =-AP20*AP35^2/12 -> -10.8 | AU22: =(4*AU27/BJ26)/((4*AU13/BJ15)+(4*AU27/BJ26)+(4*AP21/AP35)+(4*AZ21/AZ35)) -> 0.1724632549 | AW22: =AZ20*AZ35^2/12 -> 5.9535 | BC22: =-AZ20*AZ35^2/12 -> -5.9535 | BE22: =(4*BE27/BJ26)/((4*BE13/BJ15)+(4*BE27/BJ26)+(4*AZ21/AZ35)) -> 0.2623012288 | BG22: =BH20*BF35*BF35/2 -> 11.25
I23: =-(E22+I22)*H21 -> -12.35435786 | O23: =+I23/2 -> -6.177178929 | S23: =+Y23/2 -> 2.715197194 | Y23: =-(Y22+AC22)*Z21 -> 5.430394388 | AC23: =-(Y22+AC22)*AB21 -> 10.08501815 | AI23: =+AC23/2 -> 5.042509075 | AM23: =+AS23/2 -> 0.8299613056 | AS23: =-(AS22+AW22)*AT21 -> 1.659922611 | AW23: =-(AS22+AW22)*AV21 -> 1.580878677 | BC23: =+AW23/2 -> 0.7904393387
I24: =+O24/2 -> 0.9124704884 | O24: =-(O22+O23+S22+S23)*P21 -> 1.824940977 | S24: =-(O22+O23+S22+S23)*R21 -> 1.544180826 | Y24: =+S24/2 -> 0.7720904132 | AC24: =+AI24/2 -> -1.10965249 | AI24: =-(AI22+AM22+AI23+AM23)*AJ21 -> -2.21930498 | AM24: =-(AI22+AI23+AM22+AM23)*AL21 -> -2.157657619 | AS24: =+AM24/2 -> -1.07882881 | AW24: =+BC24/2 -> -1.509882146 | BC24: =-(BC22+BG22+BC23)*BD21 -> -3.019764291
G25: dm4 | I25: =-I24*H21 -> -0.3682478383 | O25: =+I25/2 -> -0.1841239191 | Q25: dm4 | S25: =+Y25/2 -> 0.03666190414 | Y25: =-(Y24+AC24)*Z21 -> 0.07332380829 | AA25: dm4 | AC25: =-(Y24+AC24)*AB21 -> 0.1361727868 | AI25: =+AC25/2 -> 0.06808639341 | AK25: dm4 | AM25: =+AS25/2 -> 0.4433157793 | AS25: =-(AS24+AW24)*AT21 -> 0.8866315586 | AU25: dm4 | AW25: =-(AS24+AW24)*AV21 -> 0.8444110082 | BC25: =+AW25/2 -> 0.4222055041 | BE25: dm4 | BJ25: m
I26: =+O26/2 -> 0.02218124713 | O26: =-(O25+S25)*P21 -> 0.04436249426 | S26: =-(O25+S25)*R21 -> 0.03753749514 | Y26: =+S26/2 -> 0.01876874757 | AC26: =+AI26/2 -> -0.08778877833 | AI26: =-(AI25+AM25)*AJ21 -> -0.1755775567 | AM26: =-(AI25+AM25)*AL21 -> -0.1707004023 | AS26: =+AM26/2 -> -0.08535020115 | AW26: =+BC26/2 -> -0.1047292435 | BC26: =-BC25*BD21 -> -0.2094584871 | BJ26: 3.5
G27: =I38*G41^3/12*10000 -> 62.5 | I27: =-I26*H21 -> -0.008951737519 | O27: =+I27/2 -> -0.00447586876 | Q27: =S38*Q41^3/12*10000 -> 62.5 | S27: =+Y27/2 -> 0.007496119754 | Y27: =-(Y26+AC26)*Z21 -> 0.01499223951 | AA27: =AC38*AA41^3/12*10000 -> 62.5 | AC27: =-(Y26+AC26)*AB21 -> 0.02784273051 | AI27: =+AC27/2 -> 0.01392136526 | AK27: =AM38*AK41^3/12*10000 -> 62.5 | AM27: =+AS27/2 -> 0.03255103355 | AS27: =-(AS26+AW26)*AT21 -> 0.06510206709 | AU27: =AW38*AU41^3/12*10000 -> 62.5 | AW27: =-(AS26+AW26)*AV21 -> 0.06200196866 | BC27: =+AW27/2 -> 0.03100098433 | BE27: =BG38*BE41^3/12*10000 -> 62.5
I28: =+O28/2 -> -0.0004543063765 | O28: =-(O27+S27)*P21 -> -0.000908612753 | S28: =-(O27+S27)*R21 -> -0.0007688261756 | Y28: =+S28/2 -> -0.0003844130878 | AC28: =+AI28/2 -> -0.007977586594 | AI28: =-(AI27+AM27)*AJ21 -> -0.01595517319 | AM28: =-(AI27+AM27)*AL21 -> -0.01551197393 | AS28: =+AM28/2 -> -0.007755986966 | AW28: =+BC28/2 -> -0.007689879944 | BC28: =-BC27*BD21 -> -0.01537975989
I29: =-I28*H21 -> 0.0001833454815 | O29: =+I29/2 -> 9.167274076e-05 | S29: =+Y29/2 -> 0.0009081791229 | Y29: =-(Y28+AC28)*Z21 -> 0.001816358246 | AC29: =-(Y28+AC28)*AB21 -> 0.003373236742 | AI29: =+AC29/2 -> 0.001686618371 | AM29: =+AS29/2 -> 0.00264509891 | AS29: =-(AS28+AW28)*AT21 -> 0.00529019782 | AW29: =-(AS28+AW28)*AV21 -> 0.005038283638 | BC29: =+AW29/2 -> 0.002519141819
G30: I = | I30: =+O30/2 -> -0.0001503977908 | O30: =-(O29+S29)*P21 -> -0.0003007955816 | Q30: I = | S30: =-(O29+S29)*R21 -> -0.0002545193383 | Y30: =+S30/2 -> -0.0001272596691 | AA30: I = | AC30: =+AI30/2 -> -0.000743595136 | AI30: =-(AI29+AM29)*AJ21 -> -0.001487190272 | AK30: I = | AM30: =-(AI29+AM29)*AL21 -> -0.001445879431 | AS30: =+AM30/2 -> -0.0007229397156 | AU30: I = | AW30: =+BC30/2 -> -0.0006248800987 | BC30: =-BC29*BD21 -> -0.001249760197 | BE30: I =
I31: =-I30*H21 -> 6.06963864e-05 | O31: =SUM(O22:P30) -> -42.31009298 | S31: =SUM(S22:T30) -> 39.54929171 | Y31: =-(Y30+AC30)*Z21 -> 0.0001891634019 | AC31: =-(Y30+AC30)*AB21 -> 0.0003513034606 | AI31: =SUM(AI22:AJ30) -> -7.494454782 | AM31: =SUM(AM22:AN30) -> 9.763157342 | AS31: =-(AS30+AW30)*AT21 -> 0.0004616272744 | AW31: =-(AS30+AW30)*AV21 -> 0.0004396450233 | BC31: =SUM(BC22:BD30) -> -7.95318733
I32: =SUM(I22:J31) -> 26.01523364 | Y32: =SUM(Y22:Z31) -> -28.89726989 | AC32: =SUM(AC22:AD31) -> 19.25492909 | AS32: =SUM(AS22:AT31) -> -9.355249876 | AW32: =SUM(AW22:AX31) -> 6.823343434
E35: 1.2 | G35: m | L35: 5.5 | N35: m | V35: 6.5 | X35: m | AF35: 3.5 | AH35: m | AP35: 3.6 | AR35: m | AZ35: 3.78 | BB35: m | BF35: 1.5 | BH35: m
I37: m | S37: m | AC37: m | AM37: m | AW37: m | BG37: m
I38: 0.6 | S38: 0.6 | AC38: 0.6 | AM38: 0.6 | AW38: 0.6 | BG38: 0.6
G41: 0.5 | I41: m | Q41: 0.5 | S41: m | AA41: 0.5 | AC41: m | AK41: 0.5 | AM41: m | AU41: 0.5 | AW41: m | BE41: 0.5 | BG41: m
L43: 1.2 | N43: m | V43: 1.2 | X43: m | AF43: 1.2 | AH43: m | AP43: 1.2 | AR43: m | AZ43: 1.2 | BB43: m
H45: 0.1 | J45: m | O45: m | R45: 0.1 | T45: m | Y45: m | AB45: 0.1 | AD45: m | AI45: m | AL45: 0.1 | AN45: m | AS45: m | AV45: 0.1 | AX45: m | BC45: m
O46: 0.7 | Y46: 0.7 | AI46: 0.7 | AS46: 0.7 | BC46: 0.7
L50: 0.25 | N50: m | V50: 0.25 | X50: m | AF50: 0.25 | AH50: m | AP50: 0.25 | AR50: m | AZ50: 0.25 | BB50: m
D52: =IF(I13<0,I13/2,"") -> -4.510501215 | J52: =IF(I13>0,I13/2,"") ->  | N52: =IF(S14<0,S14/2,"") ->  | T52: =IF(S14>0,S14/2,"") -> 0.6618359221 | X52: =IF(AC13<0,AC13/2,"") ->  | AD52: =IF(AC13>0,AC13/2,"") -> 2.311520054 | AH52: =IF(AM14<0,AM14/2,"") -> -0.5438670522 | AN52: =IF(AM14>0,AM14/2,"") ->  | AR52: =IF(AW13<0,AW13/2,"") ->  | AX52: =IF(AW13>0,AW13/2,"") -> 0.6069638731 | BB52: =IF(BG14<0,BG14/2,"") -> -0.7903318045 | BH52: =IF(BG14>0,BG14/2,"") -> 
J55: moment diyagramı (KNm)
R56: =-S31 -> -39.54929171
H57: =-I32 -> -26.01523364 | Z57: =Y32 -> -28.89726989 | AB57: =-AC32 -> -19.25492909 | AJ57: =AI31 -> -7.494454782 | AL57: =-+AM31 -> -9.763157342 | AT57: =AS32 -> -9.355249876 | AV57: =-AW32 -> -6.823343434 | BD57: =BC31 -> -7.95318733
P58: =O31 -> -42.31009298
H59: =IF(E22=0,"",+E22) -> -7.2 | BF59: =IF(BG22=0,"",-BG22) -> -11.25
E61: =IF(I13>0,-I13,"") ->  | I61: =IF(I13<0,-I13,"") -> 9.02100243 | O61: =IF(S14>0,-S14,"") -> -1.323671844 | S61: =IF(S14<0,-S14,"") ->  | Y61: =IF(AC13>0,-AC13,"") -> -4.623040108 | AC61: =IF(AC13<0,-AC13,"") ->  | AI61: =IF(AM14>0,-AM14,"") ->  | AM61: =IF(AM14<0,-AM14,"") -> 1.087734104 | AS61: =IF(AW13>0,-AW13,"") -> -1.213927746 | AW61: =IF(AW13<0,-AW13,"") ->  | BC61: =IF(BG14>0,-BG14,"") ->  | BG61: =IF(BG14<0,-BG14,"") -> 1.580663609
E62: =IF(D13<0,D13,"") -> -9.794231209 | I62: =IF(D13>0,D13,"") ->  | O62: =IF(N14<0,N14,"") ->  | S62: =IF(N14>0,N14,"") -> 1.437129431 | Y62: =IF(X13<0,X13,"") ->  | AC62: =IF(X13>0,X13,"") -> 5.019300689 | AI62: =IF(AH14<0,AH14,"") -> -1.180968456 | AM62: =IF(AH14>0,AH14,"") ->  | AS62: =IF(AR13<0,AR13,"") ->  | AW62: =IF(AR13>0,AR13,"") -> 1.317978696 | BC62: =IF(BB14<0,BB14,"") -> -1.716149061 | BG62: =IF(BB14>0,BB14,"") -> 
L65: =(((I32-(-O31))/L35+L20*L35*0.5)^2/(2*L20))-I32 -> 22.8486734 | V65: =(((S31-(-Y32))/V35+V20*V35*0.5)^2/(2*V20))-S31 -> 18.72349798 | AF65: =(((AC32-(-AI31))/AF35+AF20*AF35*0.5)^2/(2*AF20))-AC32 -> 2.502333599 | AP65: =(((AM31-(-AS32))/AP35+AP20*AP35*0.5)^2/(2*AP20))-AM31 -> 6.641438322 | AZ65: =(((AW32-(-BC31))/AZ35+AZ20*AZ35*0.5)^2/(2*AZ20))-AW32 -> 1.550918769
D74: =IF(D13>0,-D13/2,"") ->  | J74: =IF(D13<0,-D13/2,"") -> 4.897115605 | N74: =IF(N14>0,-N14/2,"") -> -0.7185647155 | T74: =IF(N14<0,-N14/2,"") ->  | X74: =IF(X13>0,-X13/2,"") -> -2.509650344 | AD74: =IF(X13<0,-X13/2,"") ->  | AH74: =IF(AH14>0,-AH14/2,"") ->  | AN74: =IF(AH14<0,-AH14/2,"") -> 0.5904842281 | AR74: =IF(AR13>0,-AR13/2,"") -> -0.6589893479 | AX74: =IF(AR13<0,-AR13/2,"") ->  | BB74: =IF(BB14>0,-BB14/2,"") ->  | BH74: =IF(BB14<0,-BB14/2,"") -> 0.8580745306
D77: =IF(I13<0,(I13+I13/2)/$BJ$15,"") -> -3.560922012 | J77: =IF(I13>0,(I13+I13/2)/$BJ$15,"") ->  | N77: =IF(S14<0,(S14+S14/2)/$BJ$15,"") ->  | T77: =IF(S14>0,(S14+S14/2)/$BJ$15,"") -> 0.5225020438 | X77: =IF(AC13<0,(AC13+AC13/2)/$BJ$15,"") ->  | AD77: =IF(AC13>0,(AC13+AC13/2)/$BJ$15,"") -> 1.824884253 | AH77: =IF(AM14<0,(AM14+AM14/2)/$BJ$15,"") -> -0.4293687255 | AN77: =IF(AM14>0,(AM14+AM14/2)/$BJ$15,"") ->  | AR77: =IF(AW13<0,(AW13+AW13/2)/$BJ$15,"") ->  | AX77: =IF(AW13>0,(AW13+AW13/2)/$BJ$15,"") -> 0.4791820051 | BB77: =IF(BG14<0,(BG14+BG14/2)/$BJ$15,"") -> -0.6239461615 | BH77: =IF(BG14>0,(BG14+BG14/2)/$BJ$15,"") -> 
J80: kesme kuvveti diyagramı (KN)
H84: =L20*L35+P89 -> 38.2872983 | R84: =V20*V35+Z89 -> 34.13877259 | AB84: =AF20*AF35+AJ89 -> 20.86013552 | AL84: =AP20*AP35+AT89 -> 18.11330763 | AV84: =AZ20*AZ35+BD89 -> 9.151099498 | BF84: =IF(BG22=0,"",BH20*BF35) -> 15
D86: =IF(D77<0,D77,"") -> -3.560922012 | J86: =IF(J77>0,J77,"") ->  | N86: =IF(N77<0,N77,"") ->  | T86: =IF(T77>0,T77,"") -> 0.5225020438 | X86: =IF(X77<0,X77,"") ->  | AD86: =IF(AD77>0,AD77,"") -> 1.824884253 | AH86: =IF(AH77<0,AH77,"") -> -0.4293687255 | AN86: =IF(AN77>0,AN77,"") ->  | AR86: =IF(AR77<0,AR77,"") ->  | AX86: =IF(AX77>0,AX77,"") -> 0.4791820051 | BB86: =IF(BB77<0,BB77,"") -> -0.6239461615 | BH86: =IF(BH77>0,BH77,"") -> 
D87: =IF(D99<0,D99,"") -> -4.197527661 | J87: =IF(J99>0,J99,"") ->  | N87: =IF(N99<0,N99,"") ->  | T87: =IF(T99>0,T99,"") -> 0.6159126132 | X87: =IF(X99<0,X99,"") ->  | AD87: =IF(AD99>0,AD99,"") -> 2.151128867 | AH87: =IF(AH99<0,AH99,"") -> -0.5061293384 | AN87: =IF(AN99>0,AN99,"") ->  | AR87: =IF(AR99<0,AR99,"") ->  | AX87: =IF(AX99>0,AX99,"") -> 0.5648480125 | BB87: =IF(BB99<0,BB99,"") -> -0.7354924548 | BH87: =IF(BH99>0,BH99,"") -> 
P89: =-(0.5*L20*L35^2+(-O31)-I32)/L35 -> -44.2127017 | Z89: =-(0.5*V20*V35^2+(-Y32)-S31)/V35 -> -30.86122741 | AJ89: =-(0.5*AF20*AF35^2+(-AI31)-AC32)/AF35 -> -14.13986448 | AT89: =-(0.5*AP20*AP35^2+(-AS32)-AM31)/AP35 -> -17.88669237 | BD89: =-(0.5*AZ20*AZ35^2+(-BC31)-AW32)/AZ35 -> -9.748900502
F90: =IF(E22=0,"",-C20*E35) -> -12
J91: =((L20*L35-((0.5*L20*L35^2+(-O31)-I32)/L35))*L35)/((L20*L35-((0.5*L20*L35^2+(-O31)-I32)/L35))+((0.5*L20*L35^2+(-O31)-I32)/L35)) -> 2.552486553 | L91: m | T91: =((V20*V35-((0.5*V20*V35^2+(-Y32)-S31)/V35))*V35)/((V20*V35-((0.5*V20*V35^2+(-Y32)-S31)/V35))+((0.5*V20*V35^2+(-Y32)-S31)/V35)) -> 3.413877259 | V91: m | AD91: =((AF20*AF35-((0.5*AF20*AF35^2+(-AI31)-AC32)/AF35))*AF35)/((AF20*AF35-((0.5*AF20*AF35^2+(-AI31)-AC32)/AF35))+((0.5*AF20*AF35^2+(-AI31)-AC32)/AF35)) -> 2.086013552 | AF91: m | AN91: =((AP20*AP35-((0.5*AP20*AP35^2+(-AS32)-AM31)/AP35))*AP35)/((AP20*AP35-((0.5*AP20*AP35^2+(-AS32)-AM31)/AP35))+((0.5*AP20*AP35^2+(-AS32)-AM31)/AP35)) -> 1.811330763 | AP91: m | AX91: =((AZ20*AZ35-((0.5*AZ20*AZ35^2+(-BC31)-AW32)/AZ35))*AZ35)/((AZ20*AZ35-((0.5*AZ20*AZ35^2+(-BC31)-AW32)/AZ35))+((0.5*AZ20*AZ35^2+(-BC31)-AW32)/AZ35)) -> 1.8302199 | AZ91: m
D99: =IF(D13<0,(D13+D13/2)/$BJ$26,"") -> -4.197527661 | J99: =IF(D13>0,(D13+D13/2)/$BJ$26,"") ->  | N99: =IF(N14<0,(N14+N14/2)/$BJ$26,"") ->  | T99: =IF(N14>0,(N14+N14/2)/$BJ$26,"") -> 0.6159126132 | X99: =IF(X13<0,(X13+X13/2)/$BJ$26,"") ->  | AD99: =IF(X13>0,(X13+X13/2)/$BJ$26,"") -> 2.151128867 | AH99: =IF(AH14<0,(AH14+AH14/2)/$BJ$26,"") -> -0.5061293384 | AN99: =IF(AH14>0,(AH14+AH14/2)/$BJ$26,"") ->  | AR99: =IF(AR13<0,(AR13+AR13/2)/$BJ$26,"") ->  | AX99: =IF(AR13>0,(AR13+AR13/2)/$BJ$26,"") -> 0.5648480125 | BB99: =IF(BB14<0,(BB14+BB14/2)/$BJ$26,"") -> -0.7354924548 | BH99: =IF(BB14>0,(BB14+BB14/2)/$BJ$26,"") -> 
B101: kiriş faydalı yükseklik d (m) | H101: =O46-M3 -> 0.67 | R101: =Y46-M3 -> 0.67 | AB101: =AI46-M3 -> 0.67 | AL101: =AS46-M3 -> 0.67 | AV101: =BC46-M3 -> 0.67
B103: kiriş kolon yüzünden d mesafede kesme kuvveti (KN) | H103: =(L20*L35-((0.5*L20*L35^2-O31-I32)/L35))-L20*(MIN(G4,G41)/2+H101) -> 24.4872983 | O103: =((0.5*L20*L35^2-O31-I32)/L35)-L20*(MIN(Q4,Q41)/2+H101) -> 30.4127017 | R103: =(V20*V35-((0.5*V20*V35^2-Y32-S31)/V35))-V20*(MIN(Q4,Q41)/2+R101) -> 24.93877259 | Y103: =((0.5*V20*V35^2-Y32-S31)/V35)-V20*(MIN(AA4,AA41)/2+R101) -> 21.66122741 | AB103: =(AF20*AF35-((0.5*AF20*AF35^2-AI31-AC32)/AF35))-AF20*(MIN(AA4,AA41)/2+AB101) -> 11.66013552 | AI103: =((0.5*AF20*AF35^2-AI31-AC32)/AF35)-AF20*(MIN(AK4,AK41)/2+AB101) -> 4.939864483 | AL103: =(AP20*AP35-((0.5*AP20*AP35^2-AS32-AM31)/AP35))-AP20*(MIN(AK4,AK41)/2+AL101) -> 8.91330763 | AS103: =((0.5*AP20*AP35^2-AS32-AM31)/AP35)-AP20*(MIN(AU4,AU41)/2+AL101) -> 8.68669237 | AV103: =(AZ20*AZ35-((0.5*AZ20*AZ35^2-BC31-AW32)/AZ35))-AZ20*(MIN(AU4,AU41)/2+AV101) -> 4.551099498 | BC103: =((0.5*AZ20*AZ35^2-BC31-AW32)/AZ35)-AZ20*(MIN(BE4,BE41)/2+AV101) -> 5.148900502
B105: kiriş kolon yüzünden 2*h mesafede kesme kuvveti (KN) | H105: =(L20*L35-((0.5*L20*L35^2-O31-I32)/L35))-L20*(MIN(G4,G41)/2+2*O46) -> 13.5372983 | O105: =((0.5*L20*L35^2-O31-I32)/L35)-L20*(MIN(Q4,Q41)/2+2*O46) -> 19.4627017 | R105: =(V20*V35-((0.5*V20*V35^2-Y32-S31)/V35))-V20*(MIN(Q4,Q41)/2+2*Y46) -> 17.63877259 | Y105: =((0.5*V20*V35^2-Y32-S31)/V35)-V20*(MIN(AA4,AA41)/2+2*Y46) -> 14.36122741 | AB105: =(AF20*AF35-((0.5*AF20*AF35^2-AI31-AC32)/AF35))-AF20*(MIN(AA4,AA41)/2+2*AI46) -> 4.360135517 | AI105: =((0.5*AF20*AF35^2-AI31-AC32)/AF35)-AF20*(MIN(AK4,AK41)/2+2*AI46) -> -2.360135517 | AL105: =(AP20*AP35-((0.5*AP20*AP35^2-AS32-AM31)/AP35))-AP20*(MIN(AK4,AK41)/2+2*AS46) -> 1.61330763 | AS105: =((0.5*AP20*AP35^2-AS32-AM31)/AP35)-AP20*(MIN(AU4,AU41)/2+2*AS46) -> 1.38669237 | AV105: =(AZ20*AZ35-((0.5*AZ20*AZ35^2-BC31-AW32)/AZ35))-AZ20*(MIN(AU4,AU41)/2+2*BC46) -> 0.9010994984 | BC105: =((0.5*AZ20*AZ35^2-BC31-AW32)/AZ35)-AZ20*(MIN(BE4,BE41)/2+2*BC46) -> 1.498900502
B107: kiriş kolon yüzü kesme kuvveti (KN) | H107: =(L20*L35-((0.5*L20*L35^2-O31-I32)/L35))-L20*MIN(G4,G41)/2 -> 34.5372983 | O107: =((0.5*L20*L35^2-O31-I32)/L35)-L20*MIN(Q4,Q41)/2 -> 40.4627017 | R107: =(V20*V35-((0.5*V20*V35^2-Y32-S31)/V35))-V20*MIN(Q4,Q41)/2 -> 31.63877259 | Y107: =((0.5*V20*V35^2-Y32-S31)/V35)-V20*MIN(AA4,AA41)/2 -> 28.36122741 | AB107: =(AF20*AF35-((0.5*AF20*AF35^2-AI31-AC32)/AF35))-AF20*MIN(AA4,AA41)/2 -> 18.36013552 | AI107: =((0.5*AF20*AF35^2-AI31-AC32)/AF35)-AF20*MIN(AK4,AK41)/2 -> 11.63986448 | AL107: =(AP20*AP35-((0.5*AP20*AP35^2-AS32-AM31)/AP35))-AP20*MIN(AK4,AK41)/2 -> 15.61330763 | AS107: =((0.5*AP20*AP35^2-AS32-AM31)/AP35)-AP20*MIN(AU4,AU41)/2 -> 15.38669237 | AV107: =(AZ20*AZ35-((0.5*AZ20*AZ35^2-BC31-AW32)/AZ35))-AZ20*MIN(AU4,AU41)/2 -> 7.901099498 | BC107: =((0.5*AZ20*AZ35^2-BC31-AW32)/AZ35)-AZ20*MIN(BE4,BE41)/2 -> 8.498900502
B109: kiriş kolon yüzü moment (KNm) | H109: =+I32-(L20*L35-((0.5*L20*L35^2-O31-I32)/L35))*MIN(G4,G41)/3 -> 19.63401726 | O109: =-O31-((0.5*L20*L35^2-O31-I32)/L35)*MIN(Q4,Q41)/3 -> 34.94130937 | R109: =+S31-(V20*V35-((0.5*V20*V35^2-Y32-S31)/V35))*MIN(Q4,Q41)/3 -> 33.85949628 | Y109: =-Y32-((0.5*V20*V35^2-Y32-S31)/V35)*MIN(AA4,AA41)/3 -> 23.75373199 | AB109: =+AC32-(AF20*AF35-((0.5*AF20*AF35^2-AI31-AC32)/AF35))*MIN(AA4,AA41)/3 -> 15.77823984 | AI109: =-AI31-((0.5*AF20*AF35^2-AI31-AC32)/AF35)*MIN(AK4,AK41)/3 -> 5.137810701 | AL109: =+AM31-(AP20*AP35-((0.5*AP20*AP35^2-AS32-AM31)/AP35))*MIN(AK4,AK41)/3 -> 6.744272737 | AS109: =-AS32-((0.5*AP20*AP35^2-AS32-AM31)/AP35)*MIN(AU4,AU41)/3 -> 6.374134481 | AV109: =+AW32-(AZ20*AZ35-((0.5*AZ20*AZ35^2-BC31-AW32)/AZ35))*MIN(AU4,AU41)/3 -> 5.298160184 | BC109: =-BC31-((0.5*AZ20*AZ35^2-BC31-AW32)/AZ35)*MIN(BE4,BE41)/3 -> 6.328370579

Sheet 6_aciklikli
B2: ÇERÇEVE CROSS (6 AÇIKLIKLI) (inş.müh. Gürcan BERBEROĞLU tel: 0532 366 02 04 www.betoncelik.com )
I3: pas payı d ' = | M3: 0.03 | O3: m | V3: dikkat sadece sarı hücrelere rakam giriniz.
G4: 0.5 | I4: m | Q4: 0.5 | S4: m | AA4: 0.5 | AC4: m | AK4: 0.5 | AM4: m | AU4: 0.5 | AW4: m | BE4: 0.5 | BG4: m | BO4: 0.5 | BQ4: m
I6: m | S6: m | AC6: m | AM6: m | AW6: m | BG6: m | BQ6: m
I7: 0.6 | S7: 0.6 | AC7: 0.6 | AM7: 0.6 | AW7: 0.6 | BG7: 0.6 | BQ7: 0.6
G11: dm4 | Q11: dm4 | AA11: dm4 | AK11: dm4 | AU11: dm4 | BE11: dm4 | BO11: dm4
D13: =SUM(D14:E18) -> -9.794506991 | G13: =I7*G4^3/12*10000 -> 62.5 | I13: =SUM(I14:J18) -> -9.021256439 | Q13: =S7*Q4^3/12*10000 -> 62.5 | X13: =SUM(X14:Y18) -> 5.008723305 | AA13: =AC7*AA4^3/12*10000 -> 62.5 | AC13: =SUM(AC14:AD18) -> 4.613297781 | AK13: =AM7*AK4^3/12*10000 -> 62.5 | AR13: =SUM(AR14:AS18) -> 1.018776463 | AU13: =AW7*AU4^3/12*10000 -> 62.5 | AW13: =SUM(AW14:AX18) -> 0.9383467425 | BE13: =BG7*BE4^3/12*10000 -> 62.5 | BL13: =SUM(BL14:BM18) -> -1.405175957 | BO13: =BQ7*BO4^3/12*10000 -> 62.5 | BQ13: =SUM(BQ14:BR18) -> -1.294241013
D14: =-I30*G22 -> 8.981857461e-06 | I14: =-I30*G18 -> 8.272763451e-06 | N14: =SUM(N15:O18) -> 1.438496132 | S14: =SUM(S15:T18) -> 1.324930647 | X14: =-(Y30+AC30)*AA22 -> 5.111726895e-05 | AC14: =-(Y30+AC30)*AA18 -> 4.708169508e-05 | AH14: =SUM(AH15:AI18) -> -1.129263297 | AM14: =SUM(AM15:AN18) -> -1.040110932 | AR14: =-(AS30+AW30)*AU22 -> 8.242091416e-05 | AW14: =-(AS30+AW30)*AU18 -> 7.591399989e-05 | BB14: =SUM(BB15:BC18) -> 0.06408918082 | BG14: =SUM(BG15:BH18) -> 0.05902950865 | BL14: =-BM30*BO22 -> 6.558976089e-05 | BQ14: =-BM30*BO18 -> 6.041162187e-05 | BT14: m
D15: =-I28*G22 -> -9.702111176e-05 | I15: =-I28*G18 -> -8.936155031e-05 | N15: =-(O29+S29)*Q22 -> -4.45117609e-05 | S15: =-(O29+S29)*Q18 -> -4.099767451e-05 | X15: =-(Y28+AC28)*AA22 -> 0.0004643806507 | AC15: =-(Y28+AC28)*AA18 -> 0.0004277190203 | AH15: =-(AI29+AM29)*AK22 -> -0.0002294638439 | AM15: =-(AI29+AM29)*AK18 -> -0.0002113482773 | AR15: =-(AS28+AW28)*AU22 -> 0.0008972550422 | AW15: =-(AS28+AW28)*AU18 -> 0.0008264191179 | BB15: =-(BC29+BG29)*BE22 -> -0.0002644185819 | BG15: =-(BC29+BG29)*BE18 -> -0.0002435434307 | BL15: =-BM28*BO22 -> 0.0006975592725 | BQ15: =-BM28*BO18 -> 0.0006424888036 | BT15: 3.8
D16: =-I26*G22 -> -0.006886594044 | G16: I = | I16: =-I26*G18 -> -0.006342915567 | N16: =-(O27+S27)*Q22 -> 0.000480811519 | Q16: I = | S16: =-(O27+S27)*Q18 -> 0.0004428527148 | X16: =-(Y26+AC26)*AA22 -> 0.004361069307 | AA16: I = | AC16: =-(Y26+AC26)*AA18 -> 0.004016774362 | AH16: =-(AI27+AM27)*AK22 -> -0.002561227786 | AK16: I = | AM16: =-(AI27+AM27)*AK18 -> -0.002359025592 | AR16: =-(AS26+AW26)*AU22 -> 0.01086071849 | AU16: I = | AW16: =-(AS26+AW26)*AU18 -> 0.01000329335 | BB16: =-(BC27+BG27)*BE22 -> -0.002812140662 | BE16: I = | BG16: =-(BC27+BG27)*BE18 -> -0.002590129557 | BL16: =-BM26*BO22 -> 0.006100427548 | BO16: I = | BQ16: =-BM26*BO18 -> 0.005618814847
D17: =-I24*G22 -> -0.2832939823 | I17: =-I24*G18 -> -0.2609286679 | N17: =-(O25+S25)*Q22 -> 0.0341281777 | S17: =-(O25+S25)*Q18 -> 0.03143384788 | X17: =-(Y24+AC24)*AA22 -> 0.06666422331 | AC17: =-(Y24+AC24)*AA18 -> 0.06140125831 | AH17: =-(AI25+AM25)*AK22 -> -0.03999823541 | AM17: =-(AI25+AM25)*AK18 -> -0.03684047998 | AR17: =-(AS24+AW24)*AU22 -> 0.171092904 | AW17: =-(AS24+AW24)*AU18 -> 0.1575855694 | BB17: =-(BC25+BG25)*BE22 -> -0.02459326546 | BG17: =-(BC25+BG25)*BE18 -> -0.02265169187 | BL17: =-BM24*BO22 -> -0.02276107522 | BQ17: =-BM24*BO18 -> -0.02096414823
D18: =-(E22+I22)*G22 -> -9.504238375 | G18: =(4*G13/BT15)/((4*G13/BT15)+(4*L21/L35)+(4*G27/BT26)) -> 0.2859584734 | I18: =-(E22+I22)*G18 -> -8.753903766 | N18: =-(O22+O23+S22+S23)*Q22 -> 1.403931654 | Q18: =(4*Q13/BT15)/((4*Q13/BT15)+(4*V21/V35)+(4*Q27/BT26)+(4*L21/L35)) -> 0.2131657287 | S18: =-(O22+O23+S22+S23)*Q18 -> 1.293094945 | X18: =-(Y22+AC22)*AA22 -> 4.937182515 | AA18: =(4*AA13/BT15)/((4*AA13/BT15)+(4*AA27/BT26)+(4*V21/V35)+(4*AF21/AF35)) -> 0.1818961979 | AC18: =-(Y22+AC22)*AA18 -> 4.547404948 | AH18: =-(AI22+AM22+AI23+AM23)*AK22 -> -1.08647437 | AK18: =(4*AK13/BT15)/((4*AK13/BT15)+(4*AK27/BT26)+(4*AF21/AF35)+(4*AP21/AP35)) -> 0.1548079922 | AM18: =-(AI22+AM22+AI23+AM23)*AK18 -> -1.000700078 | AR18: =-(AS22+AW22)*AU22 -> 0.8358431649 | AU18: =(4*AU13/BT15)/((4*AU13/BT15)+(4*AU27/BT26)+(4*AP21/AP35)+(4*AZ21/AZ35)) -> 0.1588477348 | AW18: =-(AS22+AW22)*AU18 -> 0.7698555466 | BB18: =-(BC22+BG22+BC23+BG23)*BE22 -> 0.09175900553 | BE18: =(4*BE13/BT15)/((4*BE13/BT15)+(4*BE27/BT26)+(4*AZ21/AZ35)+(4*BJ21/BJ35)) -> 0.161481414 | BG18: =-(BC22+BG22+BC23+BG23)*BE18 -> 0.08451487351 | BL18: =-(BM22+BQ22)*BO22 -> -1.389278459 | BO18: =(4*BO13/BT15)/((4*BO13/BT15)+(4*BO27/BT26)+(4*BJ21/BJ35)) -> 0.2415932371 | BQ18: =-(BM22+BQ22)*BO18 -> -1.27959858
B20: q = | C20: 10 | E20: KN/m | K20: q = | L20: 15 | N20: KN/m | U20: q = | V20: 10 | X20: KN/m | AE20: q = | AF20: 10 | AH20: KN/m | AO20: q = | AP20: 10 | AR20: KN/m | AY20: q = | AZ20: 5 | BB20: KN/m | BI20: q = | BJ20: 5 | BL20: KN/m | BQ20: q = | BR20: 10 | BT20: KN/m
F21: 0 | H21: =(4*L21/L35)/((4*G13/BT15)+(4*L21/L35)+(4*G27/BT26)) -> 0.4035723269 | K21: I = | L21: =(L43*H45^3/12+H45*L43*(((H45*L43*H45/2+L50*(O46-H45)*((O46-H45)/2+H45))/(L43*H45+(O46-H45)*L50))-H45/2)^2+L50*(O46-H45)^3/12+L50*(O46-H45)*(O46-((H45*L43*H45/2+L50*(O46-H45)*((O46-H45)/2+H45))/(L43*H45+(O46-H45)*L50))-(O46-H45)/2)^2)*10000 -> 127.6666667 | N21: dm4 | P21: =(4*L21/L35)/((4*Q13/BT15)+(4*V21/V35)+(4*Q27/BT26)+(4*L21/L35)) -> 0.300840147 | R21: =(4*V21/V35)/((4*Q13/BT15)+(4*V21/V35)+(4*Q27/BT26)+(4*L21/L35)) -> 0.2545570474 | U21: I = | V21: =(V43*R45^3/12+R45*V43*(((R45*V43*R45/2+V50*(Y46-R45)*((Y46-R45)/2+R45))/(V43*R45+(Y46-R45)*V50))-R45/2)^2+V50*(Y46-R45)^3/12+V50*(Y46-R45)*(Y46-((R45*V43*R45/2+V50*(Y46-R45)*((Y46-R45)/2+R45))/(V43*R45+(Y46-R45)*V50))-(Y46-R45)/2)^2)*10000 -> 127.6666667 | X21: dm4 | Z21: =(4*V21/V35)/((4*AA13/BT15)+(4*AA27/BT26)+(4*V21/V35)+(4*AF21/AF35)) -> 0.2172157755 | AB21: =(4*AF21/AF35)/((4*AA13/BT15)+(4*AA27/BT26)+(4*V21/V35)+(4*AF21/AF35)) -> 0.403400726 | AE21: I = | AF21: =(AF43*AB45^3/12+AB45*AF43*(((AB45*AF43*AB45/2+AF50*(AI46-AB45)*((AI46-AB45)/2+AB45))/(AF43*AB45+(AI46-AB45)*AF50))-AB45/2)^2+AF50*(AI46-AB45)^3/12+AF50*(AI46-AB45)*(AI46-((AB45*AF43*AB45/2+AF50*(AI46-AB45)*((AI46-AB45)/2+AB45))/(AF43*AB45+(AI46-AB45)*AF50))-(AI46-AB45)/2)^2)*10000 -> 127.6666667 | AH21: dm4 | AJ21: =(4*AF21/AF35)/((4*AK13/BT15)+(4*AK27/BT26)+(4*AF21/AF35)+(4*AP21/AP35)) -> 0.3433257933 | AL21: =(4*AP21/AP35)/((4*AK13/BT15)+(4*AK27/BT26)+(4*AF21/AF35)+(4*AP21/AP35)) -> 0.3337889657 | AO21: I = | AP21: =(AP43*AL45^3/12+AL45*AP43*(((AL45*AP43*AL45/2+AP50*(AS46-AL45)*((AS46-AL45)/2+AL45))/(AP43*AL45+(AS46-AL45)*AP50))-AL45/2)^2+AP50*(AS46-AL45)^3/12+AP50*(AS46-AL45)*(AS46-((AL45*AP43*AL45/2+AP50*(AS46-AL45)*((AS46-AL45)/2+AL45))/(AP43*AL45+(AS46-AL45)*AP50))-(AS46-AL45)/2)^2)*10000 -> 127.6666667 | AR21: dm4 | AT21: =(4*AP21/AP35)/((4*AU13/BT15)+(4*AU27/BT26)+(4*AP21/AP35)+(4*AZ21/AZ35)) -> 0.3424992492 | AV21: =(4*AZ21/AZ35)/((4*AU13/BT15)+(4*AU27/BT26)+(4*AP21/AP35)+(4*AZ21/AZ35)) -> 0.3261897611 | AY21: I = | AZ21: =(AZ43*AV45^3/12+AV45*AZ43*(((AV45*AZ43*AV45/2+AZ50*(BC46-AV45)*((BC46-AV45)/2+AV45))/(AZ43*AV45+(BC46-AV45)*AZ50))-AV45/2)^2+AZ50*(BC46-AV45)^3/12+AZ50*(BC46-AV45)*(BC46-((AV45*AZ43*AV45/2+AZ50*(BC46-AV45)*((BC46-AV45)/2+AV45))/(AZ43*AV45+(BC46-AV45)*AZ50))-(BC46-AV45)/2)^2)*10000 -> 127.6666667 | BB21: dm4 | BD21: =(4*AZ21/AZ35)/((4*BE13/BT15)+(4*BE27/BT26)+(4*AZ21/AZ35)+(4*BJ21/BJ35)) -> 0.331597954 | BF21: =(4*BJ21/BJ35)/((4*BE13/BT15)+(4*BE27/BT26)+(4*AZ21/AZ35)+(4*BJ21/BJ35)) -> 0.331597954 | BI21: I = | BJ21: =(BJ43*BF45^3/12+BF45*BJ43*(((BF45*BJ43*BF45/2+BJ50*(BM46-BF45)*((BM46-BF45)/2+BF45))/(BJ43*BF45+(BM46-BF45)*BJ50))-BF45/2)^2+BJ50*(BM46-BF45)^3/12+BJ50*(BM46-BF45)*(BM46-((BF45*BJ43*BF45/2+BJ50*(BM46-BF45)*((BM46-BF45)/2+BF45))/(BJ43*BF45+(BM46-BF45)*BJ50))-(BM46-BF45)/2)^2)*10000 -> 127.6666667 | BL21: dm4 | BN21: =(4*BJ21/BJ35)/((4*BO13/BT15)+(4*BO27/BT26)+(4*BJ21/BJ35)) -> 0.4961055341 | BP21: 0
E22: =-C20*E35*E35/2 -> -7.2 | G22: =(4*G27/BT26)/((4*G13/BT15)+(4*L21/L35)+(4*G27/BT26)) -> 0.3104691997 | I22: =L20*L35^2/12 -> 37.8125 | O22: =-L20*L35^2/12 -> -37.8125 | Q22: =(4*Q27/BT26)/((4*Q13/BT15)+(4*V21/V35)+(4*Q27/BT26)+(4*L21/L35)) -> 0.2314370769 | S22: =V20*V35^2/12 -> 35.20833333 | Y22: =-V20*V35^2/12 -> -35.20833333 | AA22: =(4*AA27/BT26)/((4*AA13/BT15)+(4*AA27/BT26)+(4*V21/V35)+(4*AF21/AF35)) -> 0.1974873006 | AC22: =AF20*AF35^2/12 -> 10.20833333 | AI22: =-AF20*AF35^2/12 -> -10.20833333 | AK22: =(4*AK27/BT26)/((4*AK13/BT15)+(4*AK27/BT26)+(4*AF21/AF35)+(4*AP21/AP35)) -> 0.1680772487 | AM22: =AP20*AP35^2/12 -> 10.8 | AS22: =-AP20*AP35^2/12 -> -10.8 | AU22: =(4*AU27/BT26)/((4*AU13/BT15)+(4*AU27/BT26)+(4*AP21/AP35)+(4*AZ21/AZ35)) -> 0.1724632549 | AW22: =AZ20*AZ35^2/12 -> 5.9535 | BC22: =-AZ20*AZ35^2/12 -> -5.9535 | BE22: =(4*BE27/BT26)/((4*BE13/BT15)+(4*BE27/BT26)+(4*AZ21/AZ35)+(4*BJ21/BJ35)) -> 0.175322678 | BG22: =BJ20*BJ35^2/12 -> 5.9535 | BM22: =-BJ20*BJ35^2/12 -> -5.9535 | BO22: =(4*BO27/BT26)/((4*BO13/BT15)+(4*BO27/BT26)+(4*BJ21/BJ35)) -> 0.2623012288 | BQ22: =BR20*BP35*BP35/2 -> 11.25
I23: =-(E22+I22)*H21 -> -12.35435786 | O23: =+I23/2 -> -6.177178929 | S23: =+Y23/2 -> 2.715197194 | Y23: =-(Y22+AC22)*Z21 -> 5.430394388 | AC23: =-(Y22+AC22)*AB21 -> 10.08501815 | AI23: =+AC23/2 -> 5.042509075 | AM23: =+AS23/2 -> 0.8299613056 | AS23: =-(AS22+AW22)*AT21 -> 1.659922611 | AW23: =-(AS22+AW22)*AV21 -> 1.580878677 | BC23: =+AW23/2 -> 0.7904393387 | BG23: =+BM23/2 -> -1.313811481 | BM23: =-(BM22+BQ22)*BN21 -> -2.627622961
I24: =+O24/2 -> 0.9124704884 | O24: =-(O22+O23+S22+S23)*P21 -> 1.824940977 | S24: =-(O22+O23+S22+S23)*R21 -> 1.544180826 | Y24: =+S24/2 -> 0.7720904132 | AC24: =+AI24/2 -> -1.10965249 | AI24: =-(AI22+AM22+AI23+AM23)*AJ21 -> -2.21930498 | AM24: =-(AI22+AI23+AM22+AM23)*AL21 -> -2.157657619 | AS24: =+AM24/2 -> -1.07882881 | AW24: =+BC24/2 -> 0.08677456572 | BC24: =-(BC22+BG22+BC23+BG23)*BD21 -> 0.1735491314 | BG24: =-(BC22+BC23+BG22+BG23)*BF21 -> 0.1735491314 | BM24: =+BG24/2 -> 0.08677456572
G25: dm4 | I25: =-I24*H21 -> -0.3682478383 | O25: =+I25/2 -> -0.1841239191 | Q25: dm4 | S25: =+Y25/2 -> 0.03666190414 | Y25: =-(Y24+AC24)*Z21 -> 0.07332380829 | AA25: dm4 | AC25: =-(Y24+AC24)*AB21 -> 0.1361727868 | AI25: =+AC25/2 -> 0.06808639341 | AK25: dm4 | AM25: =+AS25/2 -> 0.1698889169 | AS25: =-(AS24+AW24)*AT21 -> 0.3397778337 | AU25: dm4 | AW25: =-(AS24+AW24)*AV21 -> 0.3235979369 | BC25: =+AW25/2 -> 0.1617989684 | BE25: dm4 | BG25: =+BM25/2 -> -0.02152467113 | BM25: =-BM24*BN21 -> -0.04304934227 | BO25: dm4 | BT25: m
I26: =+O26/2 -> 0.02218124713 | O26: =-(O25+S25)*P21 -> 0.04436249426 | S26: =-(O25+S25)*R21 -> 0.03753749514 | Y26: =+S26/2 -> 0.01876874757 | AC26: =+AI26/2 -> -0.0408515311 | AI26: =-(AI25+AM25)*AJ21 -> -0.08170306219 | AM26: =-(AI25+AM25)*AL21 -> -0.07943353269 | AS26: =+AM26/2 -> -0.03971676634 | AW26: =+BC26/2 -> -0.02325733499 | BC26: =-(BC25+BG25)*BD21 -> -0.04651466998 | BG26: =-(BC25+BG25)*BF21 -> -0.04651466998 | BM26: =+BG26/2 -> -0.02325733499 | BT26: 3.5
G27: =I38*G41^3/12*10000 -> 62.5 | I27: =-I26*H21 -> -0.008951737519 | O27: =+I27/2 -> -0.00447586876 | Q27: =S38*Q41^3/12*10000 -> 62.5 | S27: =+Y27/2 -> 0.002398364474 | Y27: =-(Y26+AC26)*Z21 -> 0.004796728949 | AA27: =AC38*AA41^3/12*10000 -> 62.5 | AC27: =-(Y26+AC26)*AB21 -> 0.008908210905 | AI27: =+AC27/2 -> 0.004454105453 | AK27: =AM38*AK41^3/12*10000 -> 62.5 | AM27: =+AS27/2 -> 0.01078429121 | AS27: =-(AS26+AW26)*AT21 -> 0.02156858243 | AU27: =AW38*AU41^3/12*10000 -> 62.5 | AW27: =-(AS26+AW26)*AV21 -> 0.02054150707 | BC27: =+AW27/2 -> 0.01027075354 | BE27: =BG38*BE41^3/12*10000 -> 62.5 | BG27: =+BM27/2 -> 0.005769046298 | BM27: =-BM26*BN21 -> 0.0115380926 | BO27: =BQ38*BO41^3/12*10000 -> 62.5
I28: =+O28/2 -> 0.0003124983472 | O28: =-(O27+S27)*P21 -> 0.0006249966945 | S28: =-(O27+S27)*R21 -> 0.0005288433569 | Y28: =+S28/2 -> 0.0002644216784 | AC28: =+AI28/2 -> -0.002615867312 | AI28: =-(AI27+AM27)*AJ21 -> -0.005231734624 | AM28: =-(AI27+AM27)*AL21 -> -0.005086408662 | AS28: =+AM28/2 -> -0.002543204331 | AW28: =+BC28/2 -> -0.002659382404 | BC28: =-(BC27+BG27)*BD21 -> -0.005318764808 | BG28: =-(BC27+BG27)*BF21 -> -0.005318764808 | BM28: =+BG28/2 -> -0.002659382404
I29: =-I28*H21 -> -0.0001261156852 | O29: =+I29/2 -> -6.305784258e-05 | S29: =+Y29/2 -> 0.0002553855435 | Y29: =-(Y28+AC28)*Z21 -> 0.0005107710869 | AC29: =-(Y28+AC28)*AB21 -> 0.0009485748757 | AI29: =+AC29/2 -> 0.0004742874379 | AM29: =+AS29/2 -> 0.0008909410253 | AS29: =-(AS28+AW28)*AT21 -> 0.001781882051 | AW29: =-(AS28+AW28)*AV21 -> 0.001697030524 | BC29: =+AW29/2 -> 0.0008485152622 | BG29: =+BM29/2 -> 0.0006596671639 | BM29: =-BM28*BN21 -> 0.001319334328
G30: I = | I30: =+O30/2 -> -2.89299469e-05 | O30: =-(O29+S29)*P21 -> -5.78598938e-05 | Q30: I = | S30: =-(O29+S29)*R21 -> -4.895837168e-05 | Y30: =+S30/2 -> -2.447918584e-05 | AA30: I = | AC30: =+AI30/2 -> -0.0002343590726 | AI30: =-(AI29+AM29)*AJ21 -> -0.0004687181452 | AK30: I = | AM30: =-(AI29+AM29)*AL21 -> -0.0004556981967 | AS30: =+AM30/2 -> -0.0002278490984 | AU30: I = | AW30: =+BC30/2 -> -0.0002500551034 | BC30: =-(BC29+BG29)*BD21 -> -0.0005001102067 | BE30: I = | BG30: =-(BC29+BG29)*BF21 -> -0.0005001102067 | BM30: =+BG30/2 -> -0.0002500551034 | BO30: I =
I31: =-I30*H21 -> 1.167532599e-05 | O31: =SUM(O22:P30) -> -42.30847117 | S31: =SUM(S22:T30) -> 39.54504439 | Y31: =-(Y30+AC30)*Z21 -> 5.622375304e-05 | AC31: =-(Y30+AC30)*AB21 -> 0.0001044155414 | AI31: =SUM(AI22:AJ30) -> -7.399517967 | AM31: =SUM(AM22:AN30) -> 9.568892196 | AS31: =-(AS30+AW30)*AT21 -> 0.0001636818303 | AW31: =-(AS30+AW30)*AV21 -> 0.0001558874574 | BC31: =SUM(BC22:BD30) -> -4.868926838 | BG31: =SUM(BG22:BH30) -> 4.745808148 | BM31: =-BM30*BN21 -> 0.0001240537206
I32: =SUM(I22:J31) -> 26.01576343 | Y32: =SUM(Y22:Z31) -> -28.90815231 | AC32: =SUM(AC22:AD31) -> 19.28613122 | AS32: =SUM(AS22:AT31) -> -9.898102038 | AW32: =SUM(AW22:AX31) -> 7.940978832 | BM32: =SUM(BM22:BN31) -> -8.55058303
E35: 1.2 | G35: m | L35: 5.5 | N35: m | V35: 6.5 | X35: m | AF35: 3.5 | AH35: m | AP35: 3.6 | AR35: m | AZ35: 3.78 | BB35: m | BJ35: 3.78 | BL35: m | BP35: 1.5 | BR35: m
I37: m | S37: m | AC37: m | AM37: m | AW37: m | BG37: m | BQ37: m
I38: 0.6 | S38: 0.6 | AC38: 0.6 | AM38: 0.6 | AW38: 0.6 | BG38: 0.6 | BQ38: 0.6
G41: 0.5 | I41: m | Q41: 0.5 | S41: m | AA41: 0.5 | AC41: m | AK41: 0.5 | AM41: m | AU41: 0.5 | AW41: m | BE41: 0.5 | BG41: m | BO41: 0.5 | BQ41: m
L43: 1.2 | N43: m | V43: 1.2 | X43: m | AF43: 1.2 | AH43: m | AP43: 1.2 | AR43: m | AZ43: 1.2 | BB43: m | BJ43: 1.2 | BL43: m
H45: 0.1 | J45: m | O45: m | R45: 0.1 | T45: m | Y45: m | AB45: 0.1 | AD45: m | AI45: m | AL45: 0.1 | AN45: m | AS45: m | AV45: 0.1 | AX45: m | BC45: m | BF45: 0.1 | BH45: m | BM45: m
O46: 0.7 | Y46: 0.7 | AI46: 0.7 | AS46: 0.7 | BC46: 0.7 | BM46: 0.7
L50: 0.25 | N50: m | V50: 0.25 | X50: m | AF50: 0.25 | AH50: m | AP50: 0.25 | AR50: m | AZ50: 0.25 | BB50: m | BJ50: 0.25 | BL50: m
D52: =IF(I13<0,I13/2,"") -> -4.510628219 | J52: =IF(I13>0,I13/2,"") ->  | N52: =IF(S14<0,S14/2,"") ->  | T52: =IF(S14>0,S14/2,"") -> 0.6624653237 | X52: =IF(AC13<0,AC13/2,"") ->  | AD52: =IF(AC13>0,AC13/2,"") -> 2.30664889 | AH52: =IF(AM14<0,AM14/2,"") -> -0.5200554658 | AN52: =IF(AM14>0,AM14/2,"") ->  | AR52: =IF(AW13<0,AW13/2,"") ->  | AX52: =IF(AW13>0,AW13/2,"") -> 0.4691733713 | BB52: =IF(BG14<0,BG14/2,"") ->  | BH52: =IF(BG14>0,BG14/2,"") -> 0.02951475433 | BL52: =IF(BQ13<0,BQ13/2,"") -> -0.6471205066 | BR52: =IF(BQ13>0,BQ13/2,"") -> 
J55: moment diyagramı (KNm)
R56: =-S31 -> -39.54504439
H57: =-I32 -> -26.01576343 | Z57: =Y32 -> -28.90815231 | AB57: =-AC32 -> -19.28613122 | AJ57: =AI31 -> -7.399517967 | AL57: =-AM31 -> -9.568892196 | AT57: =AS32 -> -9.898102038 | AV57: =-AW32 -> -7.940978832 | BD57: =BC31 -> -4.868926838 | BF57: =-BG31 -> -4.745808148 | BN57: =BM32 -> -8.55058303
P58: =O31 -> -42.30847117
H59: =IF(E22=0,"",+E22) -> -7.2 | BP59: =IF(BQ22=0,"",-BQ22) -> -11.25
E61: =IF(I13>0,-I13,"") ->  | I61: =IF(I13<0,-I13,"") -> 9.021256439 | O61: =IF(S14>0,-S14,"") -> -1.324930647 | S61: =IF(S14<0,-S14,"") ->  | Y61: =IF(AC13>0,-AC13,"") -> -4.613297781 | AC61: =IF(AC13<0,-AC13,"") ->  | AI61: =IF(AM14>0,-AM14,"") ->  | AM61: =IF(AM14<0,-AM14,"") -> 1.040110932 | AS61: =IF(AW13>0,-AW13,"") -> -0.9383467425 | AW61: =IF(AW13<0,-AW13,"") ->  | BC61: =IF(BG14>0,-BG14,"") -> -0.05902950865 | BG61: =IF(BG14<0,-BG14,"") ->  | BM61: =IF(BQ13>0,-BQ13,"") ->  | BQ61: =IF(BQ13<0,-BQ13,"") -> 1.294241013
E62: =IF(D13<0,D13,"") -> -9.794506991 | I62: =IF(D13>0,D13,"") ->  | O62: =IF(N14<0,N14,"") ->  | S62: =IF(N14>0,N14,"") -> 1.438496132 | Y62: =IF(X13<0,X13,"") ->  | AC62: =IF(X13>0,X13,"") -> 5.008723305 | AI62: =IF(AH14<0,AH14,"") -> -1.129263297 | AM62: =IF(AH14>0,AH14,"") ->  | AS62: =IF(AR13<0,AR13,"") ->  | AW62: =IF(AR13>0,AR13,"") -> 1.018776463 | BC62: =IF(BB14<0,BB14,"") ->  | BG62: =IF(BB14>0,BB14,"") -> 0.06408918082 | BM62: =IF(BL13<0,BL13,"") -> -1.405175957 | BQ62: =IF(BL13>0,BL13,"") -> 
L65: =(((I32-(-O31))/L35+L20*L35*0.5)^2/(2*L20))-I32 -> 22.84914215 | V65: =(((S31-(-Y32))/V35+V20*V35*0.5)^2/(2*V20))-S31 -> 18.71979925 | AF65: =(((AC32-(-AI31))/AF35+AF20*AF35*0.5)^2/(2*AF20))-AC32 -> 2.54637571 | AP65: =(((AM31-(-AS32))/AP35+AP20*AP35*0.5)^2/(2*AP20))-AM31 -> 6.466921012 | AZ65: =(((AW32-(-BC31))/AZ35+AZ20*AZ35*0.5)^2/(2*AZ20))-AW32 -> 2.591347272 | BJ65: =(((BG31-(-BM32))/BJ35+BJ20*BJ35*0.5)^2/(2*BJ20))-BG31 -> 2.383369547
D74: =IF(D13>0,-D13/2,"") ->  | J74: =IF(D13<0,-D13/2,"") -> 4.897253495 | N74: =IF(N14>0,-N14/2,"") -> -0.7192480658 | T74: =IF(N14<0,-N14/2,"") ->  | X74: =IF(X13>0,-X13/2,"") -> -2.504361653 | AD74: =IF(X13<0,-X13/2,"") ->  | AH74: =IF(AH14>0,-AH14/2,"") ->  | AN74: =IF(AH14<0,-AH14/2,"") -> 0.5646316486 | AR74: =IF(AR13>0,-AR13/2,"") -> -0.5093882317 | AX74: =IF(AR13<0,-AR13/2,"") ->  | BB74: =IF(BB14>0,-BB14/2,"") -> -0.03204459041 | BH74: =IF(BB14<0,-BB14/2,"") ->  | BL74: =IF(BL13>0,-BL13/2,"") ->  | BR74: =IF(BL13<0,-BL13/2,"") -> 0.7025879786
D77: =IF(I13<0,(I13+I13/2)/$BT$15,"") -> -3.561022278 | J77: =IF(I13>0,(I13+I13/2)/$BT$15,"") ->  | N77: =IF(S14<0,(S14+S14/2)/$BT$15,"") ->  | T77: =IF(S14>0,(S14+S14/2)/$BT$15,"") -> 0.5229989398 | X77: =IF(AC13<0,(AC13+AC13/2)/$BT$15,"") ->  | AD77: =IF(AC13>0,(AC13+AC13/2)/$BT$15,"") -> 1.821038598 | AH77: =IF(AM14<0,(AM14+AM14/2)/$BT$15,"") -> -0.4105701046 | AN77: =IF(AM14>0,(AM14+AM14/2)/$BT$15,"") ->  | AR77: =IF(AW13<0,(AW13+AW13/2)/$BT$15,"") ->  | AX77: =IF(AW13>0,(AW13+AW13/2)/$BT$15,"") -> 0.3704000299 | BB77: =IF(BG14<0,(BG14+BG14/2)/$BT$15,"") ->  | BH77: =IF(BG14>0,(BG14+BG14/2)/$BT$15,"") -> 0.02330112184 | BL77: =IF(BQ13<0,(BQ13+BQ13/2)/$BT$15,"") -> -0.5108846105 | BR77: =IF(BQ13>0,(BQ13+BQ13/2)/$BT$15,"") -> 
J80: kesme kuvveti diyagramı (KN)
H84: =L20*L35+P89 -> 38.2876895 | R84: =V20*V35+Z89 -> 34.13644494 | AB84: =AF20*AF35+AJ89 -> 20.89617522 | AL84: =AP20*AP35+AT89 -> 17.90855282 | AV84: =AZ20*AZ35+BD89 -> 10.26271217 | BF84: =BJ20*BJ35+BN89 -> 8.443445799 | BP84: =IF(BQ22=0,"",BR20*BP35) -> 15
D86: =IF(D77<0,D77,"") -> -3.561022278 | J86: =IF(J77>0,J77,"") ->  | N86: =IF(N77<0,N77,"") ->  | T86: =IF(T77>0,T77,"") -> 0.5229989398 | X86: =IF(X77<0,X77,"") ->  | AD86: =IF(AD77>0,AD77,"") -> 1.821038598 | AH86: =IF(AH77<0,AH77,"") -> -0.4105701046 | AN86: =IF(AN77>0,AN77,"") ->  | AR86: =IF(AR77<0,AR77,"") ->  | AX86: =IF(AX77>0,AX77,"") -> 0.3704000299 | BB86: =IF(BB77<0,BB77,"") ->  | BH86: =IF(BH77>0,BH77,"") -> 0.02330112184 | BL86: =IF(BL77<0,BL77,"") -> -0.5108846105 | BR86: =IF(BR77>0,BR77,"") -> 
D87: =IF(D99<0,D99,"") -> -4.197645853 | J87: =IF(J99>0,J99,"") ->  | N87: =IF(N99<0,N99,"") ->  | T87: =IF(T99>0,T99,"") -> 0.6164983421 | X87: =IF(X99<0,X99,"") ->  | AD87: =IF(AD99>0,AD99,"") -> 2.146595702 | AH87: =IF(AH99<0,AH99,"") -> -0.4839699845 | AN87: =IF(AN99>0,AN99,"") ->  | AR87: =IF(AR99<0,AR99,"") ->  | AX87: =IF(AX99>0,AX99,"") -> 0.4366184843 | BB87: =IF(BB99<0,BB99,"") ->  | BH87: =IF(BH99>0,BH99,"") -> 0.02746679178 | BL87: =IF(BL99<0,BL99,"") -> -0.6022182674 | BR87: =IF(BR99>0,BR99,"") -> 
P89: =-(0.5*L20*L35^2+(-O31)-I32)/L35 -> -44.2123105 | Z89: =-(0.5*V20*V35^2+(-Y32)-S31)/V35 -> -30.86355506 | AJ89: =-(0.5*AF20*AF35^2+(-AI31)-AC32)/AF35 -> -14.10382478 | AT89: =-(0.5*AP20*AP35^2+(-AS32)-AM31)/AP35 -> -18.09144718 | BD89: =-(0.5*AZ20*AZ35^2+(-BC31)-AW32)/AZ35 -> -8.637287832 | BN89: =-(0.5*BJ20*BJ35^2+(-BM32)-BG31)/BJ35 -> -10.4565542
F90: =IF(E22=0,"",-C20*E35) -> -12
J91: =((L20*L35-((0.5*L20*L35^2+(-O31)-I32)/L35))*L35)/((L20*L35-((0.5*L20*L35^2+(-O31)-I32)/L35))+((0.5*L20*L35^2+(-O31)-I32)/L35)) -> 2.552512633 | L91: m | T91: =((V20*V35-((0.5*V20*V35^2+(-Y32)-S31)/V35))*V35)/((V20*V35-((0.5*V20*V35^2+(-Y32)-S31)/V35))+((0.5*V20*V35^2+(-Y32)-S31)/V35)) -> 3.413644494 | V91: m | AD91: =((AF20*AF35-((0.5*AF20*AF35^2+(-AI31)-AC32)/AF35))*AF35)/((AF20*AF35-((0.5*AF20*AF35^2+(-AI31)-AC32)/AF35))+((0.5*AF20*AF35^2+(-AI31)-AC32)/AF35)) -> 2.089617522 | AF91: m | AN91: =((AP20*AP35-((0.5*AP20*AP35^2+(-AS32)-AM31)/AP35))*AP35)/((AP20*AP35-((0.5*AP20*AP35^2+(-AS32)-AM31)/AP35))+((0.5*AP20*AP35^2+(-AS32)-AM31)/AP35)) -> 1.790855282 | AP91: m | AX91: =((AZ20*AZ35-((0.5*AZ20*AZ35^2+(-BC31)-AW32)/AZ35))*AZ35)/((AZ20*AZ35-((0.5*AZ20*AZ35^2+(-BC31)-AW32)/AZ35))+((0.5*AZ20*AZ35^2+(-BC31)-AW32)/AZ35)) -> 2.052542434 | AZ91: m | BH91: =((BJ20*BJ35-((0.5*BJ20*BJ35^2+(-BM32)-BG31)/BJ35))*BJ35)/((BJ20*BJ35-((0.5*BJ20*BJ35^2+(-BM32)-BG31)/BJ35))+((0.5*BJ20*BJ35^2+(-BM32)-BG31)/BJ35)) -> 1.68868916 | BJ91: m
D99: =IF(D13<0,(D13+D13/2)/$BT$26,"") -> -4.197645853 | J99: =IF(D13>0,(D13+D13/2)/$BT$26,"") ->  | N99: =IF(N14<0,(N14+N14/2)/$BT$26,"") ->  | T99: =IF(N14>0,(N14+N14/2)/$BT$26,"") -> 0.6164983421 | X99: =IF(X13<0,(X13+X13/2)/$BT$26,"") ->  | AD99: =IF(X13>0,(X13+X13/2)/$BT$26,"") -> 2.146595702 | AH99: =IF(AH14<0,(AH14+AH14/2)/$BT$26,"") -> -0.4839699845 | AN99: =IF(AH14>0,(AH14+AH14/2)/$BT$26,"") ->  | AR99: =IF(AR13<0,(AR13+AR13/2)/$BT$26,"") ->  | AX99: =IF(AR13>0,(AR13+AR13/2)/$BT$26,"") -> 0.4366184843 | BB99: =IF(BB14<0,(BB14+BB14/2)/$BT$26,"") ->  | BH99: =IF(BB14>0,(BB14+BB14/2)/$BT$26,"") -> 0.02746679178 | BL99: =IF(BL13<0,(BL13+BL13/2)/$BT$26,"") -> -0.6022182674 | BR99: =IF(BL13>0,(BL13+BL13/2)/$BT$26,"") -> 
B101: kiriş faydalı yükseklik d (m) | H101: =O46-M3 -> 0.67 | R101: =Y46-M3 -> 0.67 | AB101: =AI46-M3 -> 0.67 | AL101: =AS46-M3 -> 0.67 | AV101: =BC46-M3 -> 0.67 | BF101: =BM46-M3 -> 0.67
B103: kiriş kolon yüzünden d mesafede kesme kuvveti (KN) | H103: =(L20*L35-((0.5*L20*L35^2-O31-I32)/L35))-L20*(MIN(G4,G41)/2+H101) -> 24.4876895 | O103: =((0.5*L20*L35^2-O31-I32)/L35)-L20*(MIN(Q4,Q41)/2+H101) -> 30.4123105 | R103: =(V20*V35-((0.5*V20*V35^2-Y32-S31)/V35))-V20*(MIN(Q4,Q41)/2+R101) -> 24.93644494 | Y103: =((0.5*V20*V35^2-Y32-S31)/V35)-V20*(MIN(AA4,AA41)/2+R101) -> 21.66355506 | AB103: =(AF20*AF35-((0.5*AF20*AF35^2-AI31-AC32)/AF35))-AF20*(MIN(AA4,AA41)/2+AB101) -> 11.69617522 | AI103: =((0.5*AF20*AF35^2-AI31-AC32)/AF35)-AF20*(MIN(AK4,AK41)/2+AB101) -> 4.903824784 | AL103: =(AP20*AP35-((0.5*AP20*AP35^2-AS32-AM31)/AP35))-AP20*(MIN(AK4,AK41)/2+AL101) -> 8.708552822 | AS103: =((0.5*AP20*AP35^2-AS32-AM31)/AP35)-AP20*(MIN(AU4,AU41)/2+AL101) -> 8.891447178 | AV103: =(AZ20*AZ35-((0.5*AZ20*AZ35^2-BC31-AW32)/AZ35))-AZ20*(MIN(AU4,AU41)/2+AV101) -> 5.662712168 | BC103: =((0.5*AZ20*AZ35^2-BC31-AW32)/AZ35)-AZ20*(MIN(BE4,BE41)/2+AV101) -> 4.037287832 | BF103: =(BJ20*BJ35-((0.5*BJ20*BJ35^2-BM32-BG31)/BJ35))-BJ20*(MIN(BE4,BE41)/2+BF101) -> 3.843445799 | BM103: =((0.5*BJ20*BJ35^2-BM32-BG31)/BJ35)-BJ20*(MIN(BO4,BO41)/2+BF101) -> 5.856554201
B105: kiriş kolon yüzünden 2*h mesafede kesme kuvveti (KN) | H105: =(L20*L35-((0.5*L20*L35^2-O31-I32)/L35))-L20*(MIN(G4,G41)/2+2*O46) -> 13.5376895 | O105: =((0.5*L20*L35^2-O31-I32)/L35)-L20*(MIN(Q4,Q41)/2+2*O46) -> 19.4623105 | R105: =(V20*V35-((0.5*V20*V35^2-Y32-S31)/V35))-V20*(MIN(Q4,Q41)/2+2*Y46) -> 17.63644494 | Y105: =((0.5*V20*V35^2-Y32-S31)/V35)-V20*(MIN(AA4,AA41)/2+2*Y46) -> 14.36355506 | AB105: =(AF20*AF35-((0.5*AF20*AF35^2-AI31-AC32)/AF35))-AF20*(MIN(AA4,AA41)/2+2*AI46) -> 4.396175216 | AI105: =((0.5*AF20*AF35^2-AI31-AC32)/AF35)-AF20*(MIN(AK4,AK41)/2+2*AI46) -> -2.396175216 | AL105: =(AP20*AP35-((0.5*AP20*AP35^2-AS32-AM31)/AP35))-AP20*(MIN(AK4,AK41)/2+2*AS46) -> 1.408552822 | AS105: =((0.5*AP20*AP35^2-AS32-AM31)/AP35)-AP20*(MIN(AU4,AU41)/2+2*AS46) -> 1.591447178 | AV105: =(AZ20*AZ35-((0.5*AZ20*AZ35^2-BC31-AW32)/AZ35))-AZ20*(MIN(AU4,AU41)/2+2*BC46) -> 2.012712168 | BC105: =((0.5*AZ20*AZ35^2-BC31-AW32)/AZ35)-AZ20*(MIN(BE4,BE41)/2+2*BC46) -> 0.3872878321 | BF105: =(BJ20*BJ35-((0.5*BJ20*BJ35^2-BM32-BG31)/BJ35))-BJ20*(MIN(BE4,BE41)/2+2*BM46) -> 0.1934457986 | BM105: =((0.5*BJ20*BJ35^2-BM32-BG31)/BJ35)-BJ20*(MIN(BO4,BO41)/2+2*BM46) -> 2.206554201
B107: kiriş kolon yüzü kesme kuvveti (KN) | H107: =(L20*L35-((0.5*L20*L35^2-O31-I32)/L35))-L20*MIN(G4,G41)/2 -> 34.5376895 | O107: =((0.5*L20*L35^2-O31-I32)/L35)-L20*MIN(Q4,Q41)/2 -> 40.4623105 | R107: =(V20*V35-((0.5*V20*V35^2-Y32-S31)/V35))-V20*MIN(Q4,Q41)/2 -> 31.63644494 | Y107: =((0.5*V20*V35^2-Y32-S31)/V35)-V20*MIN(AA4,AA41)/2 -> 28.36355506 | AB107: =(AF20*AF35-((0.5*AF20*AF35^2-AI31-AC32)/AF35))-AF20*MIN(AA4,AA41)/2 -> 18.39617522 | AI107: =((0.5*AF20*AF35^2-AI31-AC32)/AF35)-AF20*MIN(AK4,AK41)/2 -> 11.60382478 | AL107: =(AP20*AP35-((0.5*AP20*AP35^2-AS32-AM31)/AP35))-AP20*MIN(AK4,AK41)/2 -> 15.40855282 | AS107: =((0.5*AP20*AP35^2-AS32-AM31)/AP35)-AP20*MIN(AU4,AU41)/2 -> 15.59144718 | AV107: =(AZ20*AZ35-((0.5*AZ20*AZ35^2-BC31-AW32)/AZ35))-AZ20*MIN(AU4,AU41)/2 -> 9.012712168 | BC107: =((0.5*AZ20*AZ35^2-BC31-AW32)/AZ35)-AZ20*MIN(BE4,BE41)/2 -> 7.387287832 | BF107: =(BJ20*BJ35-((0.5*BJ20*BJ35^2-BM32-BG31)/BJ35))-BJ20*MIN(BE4,BE41)/2 -> 7.193445799 | BM107: =((0.5*BJ20*BJ35^2-BM32-BG31)/BJ35)-BJ20*MIN(BO4,BO41)/2 -> 9.206554201
B109: kiriş kolon yüzü moment (KNm) | H109: =+I32-(L20*L35-((0.5*L20*L35^2-O31-I32)/L35))*MIN(G4,G41)/3 -> 19.63448185 | O109: =-O31-((0.5*L20*L35^2-O31-I32)/L35)*MIN(Q4,Q41)/3 -> 34.93975275 | R109: =+S31-(V20*V35-((0.5*V20*V35^2-Y32-S31)/V35))*MIN(Q4,Q41)/3 -> 33.8556369 | Y109: =-Y32-((0.5*V20*V35^2-Y32-S31)/V35)*MIN(AA4,AA41)/3 -> 23.76422647 | AB109: =+AC32-(AF20*AF35-((0.5*AF20*AF35^2-AI31-AC32)/AF35))*MIN(AA4,AA41)/3 -> 15.80343535 | AI109: =-AI31-((0.5*AF20*AF35^2-AI31-AC32)/AF35)*MIN(AK4,AK41)/3 -> 5.048880503 | AL109: =+AM31-(AP20*AP35-((0.5*AP20*AP35^2-AS32-AM31)/AP35))*MIN(AK4,AK41)/3 -> 6.584133392 | AS109: =-AS32-((0.5*AP20*AP35^2-AS32-AM31)/AP35)*MIN(AU4,AU41)/3 -> 6.882860842 | AV109: =+AW32-(AZ20*AZ35-((0.5*AZ20*AZ35^2-BC31-AW32)/AZ35))*MIN(AU4,AU41)/3 -> 6.230526804 | BC109: =-BC31-((0.5*AZ20*AZ35^2-BC31-AW32)/AZ35)*MIN(BE4,BE41)/3 -> 3.429378866 | BF109: =+BG31-(BJ20*BJ35-((0.5*BJ20*BJ35^2-BM32-BG31)/BJ35))*MIN(BE4,BE41)/3 -> 3.338567182 | BM109: =-BM32-((0.5*BJ20*BJ35^2-BM32-BG31)/BJ35)*MIN(BO4,BO41)/3 -> 6.807823996

Sheet 7_aciklikli
B2: ÇERÇEVE CROSS (7 AÇIKLIKLI) (inş.müh. Gürcan BERBEROĞLU tel: 0532 366 02 04 www.betoncelik.com )
I3: pas payı d ' = | M3: 0.03 | O3: m | V3: dikkat sadece sarı hücrelere rakam giriniz.
G4: 0.5 | I4: m | Q4: 0.5 | S4: m | AA4: 0.5 | AC4: m | AK4: 0.5 | AM4: m | AU4: 0.5 | AW4: m | BE4: 0.5 | BG4: m | BO4: 0.5 | BQ4: m | BY4: 0.5 | CA4: m
I6: m | S6: m | AC6: m | AM6: m | AW6: m | BG6: m | BQ6: m | CA6: m
I7: 0.6 | S7: 0.6 | AC7: 0.6 | AM7: 0.6 | AW7: 0.6 | BG7: 0.6 | BQ7: 0.6 | CA7: 0.6
G11: dm4 | Q11: dm4 | AA11: dm4 | AK11: dm4 | AU11: dm4 | BE11: dm4 | BO11: dm4 | BY11: dm4
D13: =SUM(D14:E18) -> -9.794512944 | G13: =I7*G4^3/12*10000 -> 62.5 | I13: =SUM(I14:J18) -> -9.021261922 | Q13: =S7*Q4^3/12*10000 -> 62.5 | X13: =SUM(X14:Y18) -> 5.008456989 | AA13: =AC7*AA4^3/12*10000 -> 62.5 | AC13: =SUM(AC14:AD18) -> 4.61305249 | AK13: =AM7*AK4^3/12*10000 -> 62.5 | AR13: =SUM(AR14:AS18) -> 1.011109437 | AU13: =AW7*AU4^3/12*10000 -> 62.5 | AW13: =SUM(AW14:AX18) -> 0.9312850076 | BE13: =BG7*BE4^3/12*10000 -> 62.5 | BL13: =SUM(BL14:BM18) -> -1.672985009 | BO13: =BQ7*BO4^3/12*10000 -> 62.5 | BQ13: =SUM(BQ14:BR18) -> -1.540907245 | BY13: =CA7*BY4^3/12*10000 -> 62.5
D14: =-I30*G22 -> 4.12957103e-06 | I14: =-I30*G18 -> 3.803552265e-06 | N14: =SUM(N15:O18) -> 1.438525637 | S14: =SUM(S15:T18) -> 1.324957824 | X14: =-(Y30+AC30)*AA22 -> 1.531745148e-05 | AC14: =-(Y30+AC30)*AA18 -> 1.4108179e-05 | AH14: =SUM(AH15:AI18) -> -1.127958828 | AM14: =SUM(AM15:AN18) -> -1.038909447 | AR14: =-(AS30+AW30)*AU22 -> -5.57819466e-06 | AW14: =-(AS30+AW30)*AU18 -> -5.137810871e-06 | BB14: =SUM(BB15:BC18) -> 0.1097290966 | BG14: =SUM(BG15:BH18) -> 0.1010662732 | BL14: =-(BM30+BQ30)*BO22 -> -4.988702395e-05 | BQ14: =-(BM30+BQ30)*BO18 -> -4.594857469e-05 | BV14: =SUM(BV15:BW18) -> 1.23238751 | CA14: =SUM(CA15:CB18) -> 1.135093759 | CD14: m
D15: =-I28*G22 -> -9.812262702e-05 | I15: =-I28*G18 -> -9.037610384e-05 | N15: =-(O29+S29)*Q22 -> -2.046508521e-05 | S15: =-(O29+S29)*Q18 -> -1.884942059e-05 | X15: =-(Y28+AC28)*AA22 -> 0.0002767528798 | AC15: =-(Y28+AC28)*AA18 -> 0.0002549039683 | AH15: =-(AI29+AM29)*AK22 -> -6.492195458e-05 | AM15: =-(AI29+AM29)*AK18 -> -5.979653712e-05 | AR15: =-(AS28+AW28)*AU22 -> 0.0001043398995 | AW15: =-(AS28+AW28)*AU18 -> 9.610253901e-05 | BB15: =-(BC29+BG29)*BE22 -> 0.0001023701967 | BG15: =-(BC29+BG29)*BE18 -> 9.42883391e-05 | BL15: =-(BM28+BQ28)*BO22 -> -0.000721775535 | BQ15: =-(BM28+BQ28)*BO18 -> -0.0006647932559 | BV15: =-BW29*BY22 -> 0.0001885917323 | CA15: =-BW29*BY18 -> 0.0001737029113 | CD15: 3.8
D16: =-I26*G22 -> -0.006886594044 | G16: I = | I16: =-I26*G18 -> -0.006342915567 | N16: =-(O27+S27)*Q22 -> 0.0004862703435 | Q16: I = | S16: =-(O27+S27)*Q18 -> 0.0004478805795 | X16: =-(Y26+AC26)*AA22 -> 0.004318180496 | AA16: I = | AC16: =-(Y26+AC26)*AA18 -> 0.00397727151 | AH16: =-(AI27+AM27)*AK22 -> -0.001633936944 | AK16: I = | AM16: =-(AI27+AM27)*AK18 -> -0.001504941922 | AR16: =-(AS26+AW26)*AU22 -> 0.005348682331 | AU16: I = | AW16: =-(AS26+AW26)*AU18 -> 0.004926417937 | BB16: =-(BC27+BG27)*BE22 -> 0.0010758841 | BE16: I = | BG16: =-(BC27+BG27)*BE18 -> 0.0009909458815 | BL16: =-(BM26+BQ26)*BO22 -> -0.01183777002 | BO16: I = | BQ16: =-(BM26+BQ26)*BO18 -> -0.01090320923 | BV16: =-BW27*BY22 -> 0.003093074571 | BY16: I = | CA16: =-BW27*BY18 -> 0.002848884474
D17: =-I24*G22 -> -0.2832939823 | I17: =-I24*G18 -> -0.2609286679 | N17: =-(O25+S25)*Q22 -> 0.0341281777 | S17: =-(O25+S25)*Q18 -> 0.03143384788 | X17: =-(Y24+AC24)*AA22 -> 0.06666422331 | AC17: =-(Y24+AC24)*AA18 -> 0.06140125831 | AH17: =-(AI25+AM25)*AK22 -> -0.03978559915 | AM17: =-(AI25+AM25)*AK18 -> -0.03664463079 | AR17: =-(AS24+AW24)*AU22 -> 0.1698188279 | AW17: =-(AS24+AW24)*AU18 -> 0.1564120784 | BB17: =-(BC25+BG25)*BE22 -> 0.008979966641 | BG17: =-(BC25+BG25)*BE18 -> 0.008271021906 | BL17: =-(BM24+BQ24)*BO22 -> -0.2239806014 | BQ17: =-(BM24+BQ24)*BO18 -> -0.2062979224 | BV17: =-BW25*BY22 -> 0.05852358187 | CA17: =-BW25*BY18 -> 0.05390329909
D18: =-(E22+I22)*G22 -> -9.504238375 | G18: =(4*G13/CD15)/((4*G13/CD15)+(4*L21/L35)+(4*G27/CD26)) -> 0.2859584734 | I18: =-(E22+I22)*G18 -> -8.753903766 | N18: =-(O22+O23+S22+S23)*Q22 -> 1.403931654 | Q18: =(4*Q13/CD15)/((4*Q13/CD15)+(4*V21/V35)+(4*Q27/CD26)+(4*L21/L35)) -> 0.2131657287 | S18: =-(O22+O23+S22+S23)*Q18 -> 1.293094945 | X18: =-(Y22+AC22)*AA22 -> 4.937182515 | AA18: =(4*AA13/CD15)/((4*AA13/CD15)+(4*AA27/CD26)+(4*V21/V35)+(4*AF21/AF35)) -> 0.1818961979 | AC18: =-(Y22+AC22)*AA18 -> 4.547404948 | AH18: =-(AI22+AM22+AI23+AM23)*AK22 -> -1.08647437 | AK18: =(4*AK13/CD15)/((4*AK13/CD15)+(4*AK27/CD26)+(4*AF21/AF35)+(4*AP21/AP35)) -> 0.1548079922 | AM18: =-(AI22+AM22+AI23+AM23)*AK18 -> -1.000700078 | AR18: =-(AS22+AW22)*AU22 -> 0.8358431649 | AU18: =(4*AU13/CD15)/((4*AU13/CD15)+(4*AU27/CD26)+(4*AP21/AP35)+(4*AZ21/AZ35)) -> 0.1588477348 | AW18: =-(AS22+AW22)*AU18 -> 0.7698555466 | BB18: =-(BC22+BG22+BC23+BG23)*BE22 -> 0.0995708757 | BE18: =(4*BE13/CD15)/((4*BE13/CD15)+(4*BE27/CD26)+(4*AZ21/AZ35)+(4*BJ21/BJ35)) -> 0.161481414 | BG18: =-(BC22+BG22+BC23+BG23)*BE18 -> 0.09171001709 | BL18: =-(BM22+BQ22)*BO22 -> -1.436394975 | BO18: =(4*BO13/CD15)/((4*BO13/CD15)+(4*BO27/CD26)+(4*BJ21/BJ35)+(4*BT21/BT35)) -> 0.1557106304 | BQ18: =-(BM22+BQ22)*BO18 -> -1.322995371 | BV18: =-(BW22+CA22+BW23)*BY22 -> 1.170582261 | BY18: =(4*BY13/CD15)/((4*BY13/CD15)+(4*BY27/CD26)+(4*BT21/BT35)) -> 0.2289013249 | CA18: =-(BW22+CA22+BW23)*BY18 -> 1.078167872
B20: q = | C20: 10 | E20: KN/m | K20: q = | L20: 15 | N20: KN/m | U20: q = | V20: 10 | X20: KN/m | AE20: q = | AF20: 10 | AH20: KN/m | AO20: q = | AP20: 10 | AR20: KN/m | AY20: q = | AZ20: 5 | BB20: KN/m | BI20: q = | BJ20: 5 | BL20: KN/m | BS20: q = | BT20: 15 | BV20: KN/m | CA20: q = | CB20: 10 | CD20: KN/m
F21: 0 | H21: =(4*L21/L35)/((4*G13/CD15)+(4*L21/L35)+(4*G27/CD26)) -> 0.4035723269 | K21: I = | L21: =(L43*H45^3/12+H45*L43*(((H45*L43*H45/2+L50*(O46-H45)*((O46-H45)/2+H45))/(L43*H45+(O46-H45)*L50))-H45/2)^2+L50*(O46-H45)^3/12+L50*(O46-H45)*(O46-((H45*L43*H45/2+L50*(O46-H45)*((O46-H45)/2+H45))/(L43*H45+(O46-H45)*L50))-(O46-H45)/2)^2)*10000 -> 127.6666667 | N21: dm4 | P21: =(4*L21/L35)/((4*Q13/CD15)+(4*V21/V35)+(4*Q27/CD26)+(4*L21/L35)) -> 0.300840147 | R21: =(4*V21/V35)/((4*Q13/CD15)+(4*V21/V35)+(4*Q27/CD26)+(4*L21/L35)) -> 0.2545570474 | U21: I = | V21: =(V43*R45^3/12+R45*V43*(((R45*V43*R45/2+V50*(Y46-R45)*((Y46-R45)/2+R45))/(V43*R45+(Y46-R45)*V50))-R45/2)^2+V50*(Y46-R45)^3/12+V50*(Y46-R45)*(Y46-((R45*V43*R45/2+V50*(Y46-R45)*((Y46-R45)/2+R45))/(V43*R45+(Y46-R45)*V50))-(Y46-R45)/2)^2)*10000 -> 127.6666667 | X21: dm4 | Z21: =(4*V21/V35)/((4*AA13/CD15)+(4*AA27/CD26)+(4*V21/V35)+(4*AF21/AF35)) -> 0.2172157755 | AB21: =(4*AF21/AF35)/((4*AA13/CD15)+(4*AA27/CD26)+(4*V21/V35)+(4*AF21/AF35)) -> 0.403400726 | AE21: I = | AF21: =(AF43*AB45^3/12+AB45*AF43*(((AB45*AF43*AB45/2+AF50*(AI46-AB45)*((AI46-AB45)/2+AB45))/(AF43*AB45+(AI46-AB45)*AF50))-AB45/2)^2+AF50*(AI46-AB45)^3/12+AF50*(AI46-AB45)*(AI46-((AB45*AF43*AB45/2+AF50*(AI46-AB45)*((AI46-AB45)/2+AB45))/(AF43*AB45+(AI46-AB45)*AF50))-(AI46-AB45)/2)^2)*10000 -> 127.6666667 | AH21: dm4 | AJ21: =(4*AF21/AF35)/((4*AK13/CD15)+(4*AK27/CD26)+(4*AF21/AF35)+(4*AP21/AP35)) -> 0.3433257933 | AL21: =(4*AP21/AP35)/((4*AK13/CD15)+(4*AK27/CD26)+(4*AF21/AF35)+(4*AP21/AP35)) -> 0.3337889657 | AO21: I = | AP21: =(AP43*AL45^3/12+AL45*AP43*(((AL45*AP43*AL45/2+AP50*(AS46-AL45)*((AS46-AL45)/2+AL45))/(AP43*AL45+(AS46-AL45)*AP50))-AL45/2)^2+AP50*(AS46-AL45)^3/12+AP50*(AS46-AL45)*(AS46-((AL45*AP43*AL45/2+AP50*(AS46-AL45)*((AS46-AL45)/2+AL45))/(AP43*AL45+(AS46-AL45)*AP50))-(AS46-AL45)/2)^2)*10000 -> 127.6666667 | AR21: dm4 | AT21: =(4*AP21/AP35)/((4*AU13/CD15)+(4*AU27/CD26)+(4*AP21/AP35)+(4*AZ21/AZ35)) -> 0.3424992492 | AV21: =(4*AZ21/AZ35)/((4*AU13/CD15)+(4*AU27/CD26)+(4*AP21/AP35)+(4*AZ21/AZ35)) -> 0.3261897611 | AY21: I = | AZ21: =(AZ43*AV45^3/12+AV45*AZ43*(((AV45*AZ43*AV45/2+AZ50*(BC46-AV45)*((BC46-AV45)/2+AV45))/(AZ43*AV45+(BC46-AV45)*AZ50))-AV45/2)^2+AZ50*(BC46-AV45)^3/12+AZ50*(BC46-AV45)*(BC46-((AV45*AZ43*AV45/2+AZ50*(BC46-AV45)*((BC46-AV45)/2+AV45))/(AZ43*AV45+(BC46-AV45)*AZ50))-(BC46-AV45)/2)^2)*10000 -> 127.6666667 | BB21: dm4 | BD21: =(4*AZ21/AZ35)/((4*BE13/CD15)+(4*BE27/CD26)+(4*AZ21/AZ35)+(4*BJ21/BJ35)) -> 0.331597954 | BF21: =(4*BJ21/BJ35)/((4*BE13/CD15)+(4*BE27/CD26)+(4*AZ21/AZ35)+(4*BJ21/BJ35)) -> 0.331597954 | BI21: I = | BJ21: =(BJ43*BF45^3/12+BF45*BJ43*(((BF45*BJ43*BF45/2+BJ50*(BM46-BF45)*((BM46-BF45)/2+BF45))/(BJ43*BF45+(BM46-BF45)*BJ50))-BF45/2)^2+BJ50*(BM46-BF45)^3/12+BJ50*(BM46-BF45)*(BM46-((BF45*BJ43*BF45/2+BJ50*(BM46-BF45)*((BM46-BF45)/2+BF45))/(BJ43*BF45+(BM46-BF45)*BJ50))-(BM46-BF45)/2)^2)*10000 -> 127.6666667 | BL21: dm4 | BN21: =(4*BJ21/BJ35)/((4*BO13/CD15)+(4*BO27/CD26)+(4*BJ21/BJ35)+(4*BT21/BT35)) -> 0.3197477976 | BP21: =(4*BT21/BT35)/((4*BO13/CD15)+(4*BO27/CD26)+(4*BJ21/BJ35)+(4*BT21/BT35)) -> 0.3554843161 | BS21: I = | BT21: =(BT43*BP45^3/12+BP45*BT43*(((BP45*BT43*BP45/2+BT50*(BW46-BP45)*((BW46-BP45)/2+BP45))/(BT43*BP45+(BW46-BP45)*BT50))-BP45/2)^2+BT50*(BW46-BP45)^3/12+BT50*(BW46-BP45)*(BW46-((BP45*BT43*BP45/2+BT50*(BW46-BP45)*((BW46-BP45)/2+BP45))/(BT43*BP45+(BW46-BP45)*BT50))-(BW46-BP45)/2)^2)*10000 -> 127.6666667 | BV21: dm4 | BX21: =(4*BT21/BT35)/((4*BY13/CD15)+(4*BY27/CD26)+(4*BT21/BT35)) -> 0.5225772366 | BZ21: 0
E22: =-C20*E35*E35/2 -> -7.2 | G22: =(4*G27/CD26)/((4*G13/CD15)+(4*L21/L35)+(4*G27/CD26)) -> 0.3104691997 | I22: =L20*L35^2/12 -> 37.8125 | O22: =-L20*L35^2/12 -> -37.8125 | Q22: =(4*Q27/CD26)/((4*Q13/CD15)+(4*V21/V35)+(4*Q27/CD26)+(4*L21/L35)) -> 0.2314370769 | S22: =V20*V35^2/12 -> 35.20833333 | Y22: =-V20*V35^2/12 -> -35.20833333 | AA22: =(4*AA27/CD26)/((4*AA13/CD15)+(4*AA27/CD26)+(4*V21/V35)+(4*AF21/AF35)) -> 0.1974873006 | AC22: =AF20*AF35^2/12 -> 10.20833333 | AI22: =-AF20*AF35^2/12 -> -10.20833333 | AK22: =(4*AK27/CD26)/((4*AK13/CD15)+(4*AK27/CD26)+(4*AF21/AF35)+(4*AP21/AP35)) -> 0.1680772487 | AM22: =AP20*AP35^2/12 -> 10.8 | AS22: =-AP20*AP35^2/12 -> -10.8 | AU22: =(4*AU27/CD26)/((4*AU13/CD15)+(4*AU27/CD26)+(4*AP21/AP35)+(4*AZ21/AZ35)) -> 0.1724632549 | AW22: =AZ20*AZ35^2/12 -> 5.9535 | BC22: =-AZ20*AZ35^2/12 -> -5.9535 | BE22: =(4*BE27/CD26)/((4*BE13/CD15)+(4*BE27/CD26)+(4*AZ21/AZ35)+(4*BJ21/BJ35)) -> 0.175322678 | BG22: =BJ20*BJ35^2/12 -> 5.9535 | BM22: =-BJ20*BJ35^2/12 -> -5.9535 | BO22: =(4*BO27/CD26)/((4*BO13/CD15)+(4*BO27/CD26)+(4*BJ21/BJ35)+(4*BT21/BT35)) -> 0.1690572559 | BQ22: =BT20*BT35^2/12 -> 14.45 | BW22: =-BT20*BT35^2/12 -> -14.45 | BY22: =(4*BY27/CD26)/((4*BY13/CD15)+(4*BY27/CD26)+(4*BT21/BT35)) -> 0.2485214385 | CA22: =CB20*BZ35*BZ35/2 -> 11.25
I23: =-(E22+I22)*H21 -> -12.35435786 | O23: =+I23/2 -> -6.177178929 | S23: =+Y23/2 -> 2.715197194 | Y23: =-(Y22+AC22)*Z21 -> 5.430394388 | AC23: =-(Y22+AC22)*AB21 -> 10.08501815 | AI23: =+AC23/2 -> 5.042509075 | AM23: =+AS23/2 -> 0.8299613056 | AS23: =-(AS22+AW22)*AT21 -> 1.659922611 | AW23: =-(AS22+AW22)*AV21 -> 1.580878677 | BC23: =+AW23/2 -> 0.7904393387 | BG23: =+BM23/2 -> -1.358368581 | BM23: =-(BM22+BQ22)*BN21 -> -2.716737162 | BQ23: =-(BM22+BQ22)*BP21 -> -3.020372492 | BW23: =+BQ23/2 -> -1.510186246
I24: =+O24/2 -> 0.9124704884 | O24: =-(O22+O23+S22+S23)*P21 -> 1.824940977 | S24: =-(O22+O23+S22+S23)*R21 -> 1.544180826 | Y24: =+S24/2 -> 0.7720904132 | AC24: =+AI24/2 -> -1.10965249 | AI24: =-(AI22+AM22+AI23+AM23)*AJ21 -> -2.21930498 | AM24: =-(AI22+AI23+AM22+AM23)*AL21 -> -2.157657619 | AS24: =+AM24/2 -> -1.07882881 | AW24: =+BC24/2 -> 0.09416208739 | BC24: =-(BC22+BG22+BC23+BG23)*BD21 -> 0.1883241748 | BG24: =-(BC22+BC23+BG22+BG23)*BF21 -> 0.1883241748 | BM24: =+BG24/2 -> 0.09416208739 | BQ24: =+BW24/2 -> 1.230718056 | BW24: =-(BW22+CA22+BW23)*BX21 -> 2.461436112
G25: dm4 | I25: =-I24*H21 -> -0.3682478383 | O25: =+I25/2 -> -0.1841239191 | Q25: dm4 | S25: =+Y25/2 -> 0.03666190414 | Y25: =-(Y24+AC24)*Z21 -> 0.07332380829 | AA25: dm4 | AC25: =-(Y24+AC24)*AB21 -> 0.1361727868 | AI25: =+AC25/2 -> 0.06808639341 | AK25: dm4 | AM25: =+AS25/2 -> 0.1686238065 | AS25: =-(AS24+AW24)*AT21 -> 0.3372476131 | AU25: dm4 | AW25: =-(AS24+AW24)*AV21 -> 0.3211882029 | BC25: =+AW25/2 -> 0.1605941015 | BE25: dm4 | BG25: =+BM25/2 -> -0.211813754 | BM25: =-(BM24+BQ24)*BN21 -> -0.4236275079 | BO25: dm4 | BQ25: =-(BM24+BQ24)*BP21 -> -0.4709741117 | BW25: =+BQ25/2 -> -0.2354870559 | BY25: dm4 | CD25: m
I26: =+O26/2 -> 0.02218124713 | O26: =-(O25+S25)*P21 -> 0.04436249426 | S26: =-(O25+S25)*R21 -> 0.03753749514 | Y26: =+S26/2 -> 0.01876874757 | AC26: =+AI26/2 -> -0.04063435859 | AI26: =-(AI25+AM25)*AJ21 -> -0.08126871719 | AM26: =-(AI25+AM25)*AL21 -> -0.07901125282 | AS26: =+AM26/2 -> -0.03950562641 | AW26: =+BC26/2 -> 0.008492165984 | BC26: =-(BC25+BG25)*BD21 -> 0.01698433197 | BG26: =-(BC25+BG25)*BF21 -> 0.01698433197 | BM26: =+BG26/2 -> 0.008492165984 | BQ26: =+BW26/2 -> 0.06153008745 | BW26: =-BW25*BX21 -> 0.1230601749 | CD26: 3.5
G27: =I38*G41^3/12*10000 -> 62.5 | I27: =-I26*H21 -> -0.008951737519 | O27: =+I27/2 -> -0.00447586876 | Q27: =S38*Q41^3/12*10000 -> 62.5 | S27: =+Y27/2 -> 0.002374777828 | Y27: =-(Y26+AC26)*Z21 -> 0.004749555656 | AA27: =AC38*AA41^3/12*10000 -> 62.5 | AC27: =-(Y26+AC26)*AB21 -> 0.008820603361 | AI27: =+AC27/2 -> 0.00441030168 | AK27: =AM38*AK41^3/12*10000 -> 62.5 | AM27: =+AS27/2 -> 0.005311043456 | AS27: =-(AS26+AW26)*AT21 -> 0.01062208691 | AU27: =AW38*AU41^3/12*10000 -> 62.5 | AW27: =-(AS26+AW26)*AV21 -> 0.01011627325 | BC27: =+AW27/2 -> 0.005058136624 | BE27: =BG38*BE41^3/12*10000 -> 62.5 | BG27: =+BM27/2 -> -0.01119473066 | BM27: =-(BM26+BQ26)*BN21 -> -0.02238946132 | BO27: =BQ38*BO41^3/12*10000 -> 62.5 | BQ27: =-(BM26+BQ26)*BP21 -> -0.02489181287 | BW27: =+BQ27/2 -> -0.01244590644 | BY27: =CA38*BY41^3/12*10000 -> 62.5
I28: =+O28/2 -> 0.0003160462523 | O28: =-(O27+S27)*P21 -> 0.0006320925047 | S28: =-(O27+S27)*R21 -> 0.000534847504 | Y28: =+S28/2 -> 0.000267423752 | AC28: =+AI28/2 -> -0.001668794266 | AI28: =-(AI27+AM27)*AJ21 -> -0.003337588531 | AM28: =-(AI27+AM27)*AL21 -> -0.003244877739 | AS28: =+AM28/2 -> -0.001622438869 | AW28: =+BC28/2 -> 0.001017441013 | BC28: =-(BC27+BG27)*BD21 -> 0.002034882026 | BG28: =-(BC27+BG27)*BF21 -> 0.002034882026 | BM28: =+BG28/2 -> 0.001017441013 | BQ28: =+BW28/2 -> 0.003251973696 | BW28: =-BW27*BX21 -> 0.006503947393
I29: =-I28*H21 -> -0.0001275475215 | O29: =+I29/2 -> -6.377376074e-05 | S29: =+Y29/2 -> 0.0001521998915 | Y29: =-(Y28+AC28)*Z21 -> 0.0003043997829 | AC29: =-(Y28+AC28)*AB21 -> 0.0005653138825 | AI29: =+AC29/2 -> 0.0002826569413 | AM29: =+AS29/2 -> 0.0001036056558 | AS29: =-(AS28+AW28)*AT21 -> 0.0002072113115 | AW29: =-(AS28+AW28)*AV21 -> 0.0001973441062 | BC29: =+AW29/2 -> 9.86720531e-05 | BG29: =+BM29/2 -> -0.0006825679751 | BM29: =-(BM28+BQ28)*BN21 -> -0.00136513595 | BQ29: =-(BM28+BQ28)*BP21 -> -0.001517709968 | BW29: =+BQ29/2 -> -0.0007588549841
G30: I = | I30: =+O30/2 -> -1.330106508e-05 | O30: =-(O29+S29)*P21 -> -2.660213016e-05 | Q30: I = | S30: =-(O29+S29)*R21 -> -2.250949475e-05 | Y30: =+S30/2 -> -1.125474738e-05 | AA30: I = | AC30: =+AI30/2 -> -6.630695628e-05 | AI30: =-(AI29+AM29)*AJ21 -> -0.0001326139126 | AK30: I = | AM30: =-(AI29+AM29)*AL21 -> -0.0001289301928 | AS30: =+AM30/2 -> -6.446509638e-05 | AU30: I = | AW30: =+BC30/2 -> 9.680934654e-05 | BC30: =-(BC29+BG29)*BD21 -> 0.0001936186931 | BE30: I = | BG30: =-(BC29+BG29)*BF21 -> 0.0001936186931 | BM30: =+BG30/2 -> 9.680934654e-05 | BO30: I = | BQ30: =+BW30/2 -> 0.0001982801703 | BW30: =-BW29*BX21 -> 0.0003965603405 | BY30: I =
I31: =-I30*H21 -> 5.367941785e-06 | O31: =SUM(O22:P30) -> -42.30843353 | S31: =SUM(S22:T30) -> 39.54495007 | Y31: =-(Y30+AC30)*Z21 -> 1.684762561e-05 | AC31: =-(Y30+AC30)*AB21 -> 3.128844756e-05 | AI31: =SUM(AI22:AJ30) -> -7.397088806 | AM31: =SUM(AM22:AN30) -> 9.563957081 | AS31: =-(AS30+AW30)*AT21 -> -1.107788139e-05 | AW31: =-(AS30+AW30)*AV21 -> -1.055036323e-05 | BC31: =SUM(BC22:BD30) -> -4.789772744 | BG31: =SUM(BG22:BH30) -> 4.578977374 | BM31: =-(BM30+BQ30)*BN21 -> -9.435422308e-05 | BQ31: =-(BM30+BQ30)*BP21 -> -0.0001048996951 | BW31: =SUM(BW22:BX30) -> -13.61748127
I32: =SUM(I22:J31) -> 26.01577487 | Y32: =SUM(Y22:Z31) -> -28.908429 | AC32: =SUM(AC22:AD31) -> 19.28691953 | AS32: =SUM(AS22:AT31) -> -9.912032895 | AW32: =SUM(AW22:AX31) -> 7.969638451 | BM32: =SUM(BM22:BN31) -> -9.013945118 | BQ32: =SUM(BQ22:BR31) -> 12.22783737
E35: 1.2 | G35: m | L35: 5.5 | N35: m | V35: 6.5 | X35: m | AF35: 3.5 | AH35: m | AP35: 3.6 | AR35: m | AZ35: 3.78 | BB35: m | BJ35: 3.78 | BL35: m | BT35: 3.4 | BV35: m | BZ35: 1.5 | CB35: m
I37: m | S37: m | AC37: m | AM37: m | AW37: m | BG37: m | BQ37: m | CA37: m
I38: 0.6 | S38: 0.6 | AC38: 0.6 | AM38: 0.6 | AW38: 0.6 | BG38: 0.6 | BQ38: 0.6 | CA38: 0.6
G41: 0.5 | I41: m | Q41: 0.5 | S41: m | AA41: 0.5 | AC41: m | AK41: 0.5 | AM41: m | AU41: 0.5 | AW41: m | BE41: 0.5 | BG41: m | BO41: 0.5 | BQ41: m | BY41: 0.5 | CA41: m
L43: 1.2 | N43: m | V43: 1.2 | X43: m | AF43: 1.2 | AH43: m | AP43: 1.2 | AR43: m | AZ43: 1.2 | BB43: m | BJ43: 1.2 | BL43: m | BT43: 1.2 | BV43: m
H45: 0.1 | J45: m | O45: m | R45: 0.1 | T45: m | Y45: m | AB45: 0.1 | AD45: m | AI45: m | AL45: 0.1 | AN45: m | AS45: m | AV45: 0.1 | AX45: m | BC45: m | BF45: 0.1 | BH45: m | BM45: m | BP45: 0.1 | BR45: m | BW45: m
O46: 0.7 | Y46: 0.7 | AI46: 0.7 | AS46: 0.7 | BC46: 0.7 | BM46: 0.7 | BW46: 0.7
L50: 0.25 | N50: m | V50: 0.25 | X50: m | AF50: 0.25 | AH50: m | AP50: 0.25 | AR50: m | AZ50: 0.25 | BB50: m | BJ50: 0.25 | BL50: m | BT50: 0.25 | BV50: m
D52: =IF(I13<0,I13/2,"") -> -4.510630961 | J52: =IF(I13>0,I13/2,"") ->  | N52: =IF(S14<0,S14/2,"") ->  | T52: =IF(S14>0,S14/2,"") -> 0.6624789118 | X52: =IF(AC13<0,AC13/2,"") ->  | AD52: =IF(AC13>0,AC13/2,"") -> 2.306526245 | AH52: =IF(AM14<0,AM14/2,"") -> -0.5194547235 | AN52: =IF(AM14>0,AM14/2,"") ->  | AR52: =IF(AW13<0,AW13/2,"") ->  | AX52: =IF(AW13>0,AW13/2,"") -> 0.4656425038 | BB52: =IF(BG14<0,BG14/2,"") ->  | BH52: =IF(BG14>0,BG14/2,"") -> 0.05053313661 | BL52: =IF(BQ13<0,BQ13/2,"") -> -0.7704536224 | BR52: =IF(BQ13>0,BQ13/2,"") ->  | BV52: =IF(CA14<0,CA14/2,"") ->  | CB52: =IF(CA14>0,CA14/2,"") -> 0.5675468794
J55: moment diyagramı (KNm)
R56: =-S31 -> -39.54495007
H57: =-I32 -> -26.01577487 | Z57: =Y32 -> -28.908429 | AB57: =-AC32 -> -19.28691953 | AJ57: =AI31 -> -7.397088806 | AL57: =-AM31 -> -9.563957081 | AT57: =AS32 -> -9.912032895 | AV57: =-AW32 -> -7.969638451 | BD57: =BC31 -> -4.789772744 | BF57: =-BG31 -> -4.578977374 | BN57: =BM32 -> -9.013945118 | BP57: =-BQ32 -> -12.22783737 | BX57: =BW31 -> -13.61748127
P58: =O31 -> -42.30843353
H59: =IF(E22=0,"",+E22) -> -7.2 | BZ59: =IF(CA22=0,"",-CA22) -> -11.25
E61: =IF(I13>0,-I13,"") ->  | I61: =IF(I13<0,-I13,"") -> 9.021261922 | O61: =IF(S14>0,-S14,"") -> -1.324957824 | S61: =IF(S14<0,-S14,"") ->  | Y61: =IF(AC13>0,-AC13,"") -> -4.61305249 | AC61: =IF(AC13<0,-AC13,"") ->  | AI61: =IF(AM14>0,-AM14,"") ->  | AM61: =IF(AM14<0,-AM14,"") -> 1.038909447 | AS61: =IF(AW13>0,-AW13,"") -> -0.9312850076 | AW61: =IF(AW13<0,-AW13,"") ->  | BC61: =IF(BG14>0,-BG14,"") -> -0.1010662732 | BG61: =IF(BG14<0,-BG14,"") ->  | BM61: =IF(BQ13>0,-BQ13,"") ->  | BQ61: =IF(BQ13<0,-BQ13,"") -> 1.540907245 | BW61: =IF(CA14>0,-CA14,"") -> -1.135093759 | CA61: =IF(CA14<0,-CA14,"") -> 
E62: =IF(D13<0,D13,"") -> -9.794512944 | I62: =IF(D13>0,D13,"") ->  | O62: =IF(N14<0,N14,"") ->  | S62: =IF(N14>0,N14,"") -> 1.438525637 | Y62: =IF(X13<0,X13,"") ->  | AC62: =IF(X13>0,X13,"") -> 5.008456989 | AI62: =IF(AH14<0,AH14,"") -> -1.127958828 | AM62: =IF(AH14>0,AH14,"") ->  | AS62: =IF(AR13<0,AR13,"") ->  | AW62: =IF(AR13>0,AR13,"") -> 1.011109437 | BC62: =IF(BB14<0,BB14,"") ->  | BG62: =IF(BB14>0,BB14,"") -> 0.1097290966 | BM62: =IF(BL13<0,BL13,"") -> -1.672985009 | BQ62: =IF(BL13>0,BL13,"") ->  | BW62: =IF(BV14<0,BV14,"") ->  | CA62: =IF(BV14>0,BV14,"") -> 1.23238751
L65: =(((I32-(-O31))/L35+L20*L35*0.5)^2/(2*L20))-I32 -> 22.84915349 | V65: =(((S31-(-Y32))/V35+V20*V35*0.5)^2/(2*V20))-S31 -> 18.71969872 | AF65: =(((AC32-(-AI31))/AF35+AF20*AF35*0.5)^2/(2*AF20))-AC32 -> 2.547508383 | AP65: =(((AM31-(-AS32))/AP35+AP20*AP35*0.5)^2/(2*AP20))-AM31 -> 6.462472438 | AZ65: =(((AW32-(-BC31))/AZ35+AZ20*AZ35*0.5)^2/(2*AZ20))-AW32 -> 2.62131192 | BJ65: =(((BG31-(-BM32))/BJ35+BJ20*BJ35*0.5)^2/(2*BJ20))-BG31 -> 2.271445447 | BT65: =(((BQ32-(-BW31))/BT35+BT20*BT35*0.5)^2/(2*BT20))-BQ32 -> 8.757909049
D74: =IF(D13>0,-D13/2,"") ->  | J74: =IF(D13<0,-D13/2,"") -> 4.897256472 | N74: =IF(N14>0,-N14/2,"") -> -0.7192628185 | T74: =IF(N14<0,-N14/2,"") ->  | X74: =IF(X13>0,-X13/2,"") -> -2.504228494 | AD74: =IF(X13<0,-X13/2,"") ->  | AH74: =IF(AH14>0,-AH14/2,"") ->  | AN74: =IF(AH14<0,-AH14/2,"") -> 0.5639794141 | AR74: =IF(AR13>0,-AR13/2,"") -> -0.5055547184 | AX74: =IF(AR13<0,-AR13/2,"") ->  | BB74: =IF(BB14>0,-BB14/2,"") -> -0.05486454832 | BH74: =IF(BB14<0,-BB14/2,"") ->  | BL74: =IF(BL13>0,-BL13/2,"") ->  | BR74: =IF(BL13<0,-BL13/2,"") -> 0.8364925044 | BV74: =IF(BV14>0,-BV14/2,"") -> -0.6161937548 | CB74: =IF(BV14<0,-BV14/2,"") -> 
D77: =IF(I13<0,(I13+I13/2)/$CD$15,"") -> -3.561024443 | J77: =IF(I13>0,(I13+I13/2)/$CD$15,"") ->  | N77: =IF(S14<0,(S14+S14/2)/$CD$15,"") ->  | T77: =IF(S14>0,(S14+S14/2)/$CD$15,"") -> 0.5230096672 | X77: =IF(AC13<0,(AC13+AC13/2)/$CD$15,"") ->  | AD77: =IF(AC13>0,(AC13+AC13/2)/$CD$15,"") -> 1.820941772 | AH77: =IF(AM14<0,(AM14+AM14/2)/$CD$15,"") -> -0.4100958343 | AN77: =IF(AM14>0,(AM14+AM14/2)/$CD$15,"") ->  | AR77: =IF(AW13<0,(AW13+AW13/2)/$CD$15,"") ->  | AX77: =IF(AW13>0,(AW13+AW13/2)/$CD$15,"") -> 0.367612503 | BB77: =IF(BG14<0,(BG14+BG14/2)/$CD$15,"") ->  | BH77: =IF(BG14>0,(BG14+BG14/2)/$CD$15,"") -> 0.03989458153 | BL77: =IF(BQ13<0,(BQ13+BQ13/2)/$CD$15,"") -> -0.6082528598 | BR77: =IF(BQ13>0,(BQ13+BQ13/2)/$CD$15,"") ->  | BV77: =IF(CA14<0,(CA14+CA14/2)/$CD$15,"") ->  | CB77: =IF(CA14>0,(CA14+CA14/2)/$CD$15,"") -> 0.4480633259
J80: kesme kuvveti diyagramı (KN)
H84: =L20*L35+P89 -> 38.28769842 | R84: =V20*V35+Z89 -> 34.13638786 | AB84: =AF20*AF35+AJ89 -> 20.89709449 | AL84: =AP20*AP35+AT89 -> 17.90331227 | AV84: =AZ20*AZ35+BD89 -> 10.29123431 | BF84: =BJ20*BJ35+BN89 -> 8.27672811 | BP84: =BT20*BT35+BX89 -> 25.09128121 | BZ84: =IF(CA22=0,"",CB20*BZ35) -> 15
D86: =IF(D77<0,D77,"") -> -3.561024443 | J86: =IF(J77>0,J77,"") ->  | N86: =IF(N77<0,N77,"") ->  | T86: =IF(T77>0,T77,"") -> 0.5230096672 | X86: =IF(X77<0,X77,"") ->  | AD86: =IF(AD77>0,AD77,"") -> 1.820941772 | AH86: =IF(AH77<0,AH77,"") -> -0.4100958343 | AN86: =IF(AN77>0,AN77,"") ->  | AR86: =IF(AR77<0,AR77,"") ->  | AX86: =IF(AX77>0,AX77,"") -> 0.367612503 | BB86: =IF(BB77<0,BB77,"") ->  | BH86: =IF(BH77>0,BH77,"") -> 0.03989458153 | BL86: =IF(BL77<0,BL77,"") -> -0.6082528598 | BR86: =IF(BR77>0,BR77,"") ->  | BV86: =IF(BV77<0,BV77,"") ->  | CB86: =IF(CB77>0,CB77,"") -> 0.4480633259
D87: =IF(D99<0,D99,"") -> -4.197648405 | J87: =IF(J99>0,J99,"") ->  | N87: =IF(N99<0,N99,"") ->  | T87: =IF(T99>0,T99,"") -> 0.6165109873 | X87: =IF(X99<0,X99,"") ->  | AD87: =IF(AD99>0,AD99,"") -> 2.146481567 | AH87: =IF(AH99<0,AH99,"") -> -0.4834109263 | AN87: =IF(AN99>0,AN99,"") ->  | AR87: =IF(AR99<0,AR99,"") ->  | AX87: =IF(AX99>0,AX99,"") -> 0.4333326158 | BB87: =IF(BB99<0,BB99,"") ->  | BH87: =IF(BH99>0,BH99,"") -> 0.0470267557 | BL87: =IF(BL99<0,BL99,"") -> -0.7169935752 | BR87: =IF(BR99>0,BR99,"") ->  | BV87: =IF(BV99<0,BV99,"") ->  | CB87: =IF(CB99>0,CB99,"") -> 0.5281660756
P89: =-(0.5*L20*L35^2+(-O31)-I32)/L35 -> -44.21230158 | Z89: =-(0.5*V20*V35^2+(-Y32)-S31)/V35 -> -30.86361214 | AJ89: =-(0.5*AF20*AF35^2+(-AI31)-AC32)/AF35 -> -14.10290551 | AT89: =-(0.5*AP20*AP35^2+(-AS32)-AM31)/AP35 -> -18.09668773 | BD89: =-(0.5*AZ20*AZ35^2+(-BC31)-AW32)/AZ35 -> -8.608765686 | BN89: =-(0.5*BJ20*BJ35^2+(-BM32)-BG31)/BJ35 -> -10.62327189 | BX89: =-(0.5*BT20*BT35^2+(-BW31)-BQ32)/BT35 -> -25.90871879
F90: =IF(E22=0,"",-C20*E35) -> -12
J91: =((L20*L35-((0.5*L20*L35^2+(-O31)-I32)/L35))*L35)/((L20*L35-((0.5*L20*L35^2+(-O31)-I32)/L35))+((0.5*L20*L35^2+(-O31)-I32)/L35)) -> 2.552513228 | L91: m | T91: =((V20*V35-((0.5*V20*V35^2+(-Y32)-S31)/V35))*V35)/((V20*V35-((0.5*V20*V35^2+(-Y32)-S31)/V35))+((0.5*V20*V35^2+(-Y32)-S31)/V35)) -> 3.413638786 | V91: m | AD91: =((AF20*AF35-((0.5*AF20*AF35^2+(-AI31)-AC32)/AF35))*AF35)/((AF20*AF35-((0.5*AF20*AF35^2+(-AI31)-AC32)/AF35))+((0.5*AF20*AF35^2+(-AI31)-AC32)/AF35)) -> 2.089709449 | AF91: m | AN91: =((AP20*AP35-((0.5*AP20*AP35^2+(-AS32)-AM31)/AP35))*AP35)/((AP20*AP35-((0.5*AP20*AP35^2+(-AS32)-AM31)/AP35))+((0.5*AP20*AP35^2+(-AS32)-AM31)/AP35)) -> 1.790331227 | AP91: m | AX91: =((AZ20*AZ35-((0.5*AZ20*AZ35^2+(-BC31)-AW32)/AZ35))*AZ35)/((AZ20*AZ35-((0.5*AZ20*AZ35^2+(-BC31)-AW32)/AZ35))+((0.5*AZ20*AZ35^2+(-BC31)-AW32)/AZ35)) -> 2.058246863 | AZ91: m | BH91: =((BJ20*BJ35-((0.5*BJ20*BJ35^2+(-BM32)-BG31)/BJ35))*BJ35)/((BJ20*BJ35-((0.5*BJ20*BJ35^2+(-BM32)-BG31)/BJ35))+((0.5*BJ20*BJ35^2+(-BM32)-BG31)/BJ35)) -> 1.655345622 | BJ91: m | BR91: =((BT20*BT35-((0.5*BT20*BT35^2+(-BW31)-BQ32)/BT35))*BT35)/((BT20*BT35-((0.5*BT20*BT35^2+(-BW31)-BQ32)/BT35))+((0.5*BT20*BT35^2+(-BW31)-BQ32)/BT35)) -> 1.67275208 | BT91: m
D99: =IF(D13<0,(D13+D13/2)/$CD$26,"") -> -4.197648405 | J99: =IF(D13>0,(D13+D13/2)/$CD$26,"") ->  | N99: =IF(N14<0,(N14+N14/2)/$CD$26,"") ->  | T99: =IF(N14>0,(N14+N14/2)/$CD$26,"") -> 0.6165109873 | X99: =IF(X13<0,(X13+X13/2)/$CD$26,"") ->  | AD99: =IF(X13>0,(X13+X13/2)/$CD$26,"") -> 2.146481567 | AH99: =IF(AH14<0,(AH14+AH14/2)/$CD$26,"") -> -0.4834109263 | AN99: =IF(AH14>0,(AH14+AH14/2)/$CD$26,"") ->  | AR99: =IF(AR13<0,(AR13+AR13/2)/$CD$26,"") ->  | AX99: =IF(AR13>0,(AR13+AR13/2)/$CD$26,"") -> 0.4333326158 | BB99: =IF(BB14<0,(BB14+BB14/2)/$CD$26,"") ->  | BH99: =IF(BB14>0,(BB14+BB14/2)/$CD$26,"") -> 0.0470267557 | BL99: =IF(BL13<0,(BL13+BL13/2)/$CD$26,"") -> -0.7169935752 | BR99: =IF(BL13>0,(BL13+BL13/2)/$CD$26,"") ->  | BV99: =IF(BV14<0,(BV14+BV14/2)/$CD$26,"") ->  | CB99: =IF(BV14>0,(BV14+BV14/2)/$CD$26,"") -> 0.5281660756
B101: kiriş faydalı yükseklik d (m) | H101: =O46-M3 -> 0.67 | R101: =Y46-M3 -> 0.67 | AB101: =AI46-M3 -> 0.67 | AL101: =AS46-M3 -> 0.67 | AV101: =BC46-M3 -> 0.67 | BF101: =BM46-M3 -> 0.67 | BP101: =BW46-M3 -> 0.67
B103: kiriş kolon yüzünden d mesafede kesme kuvveti (KN) | H103: =(L20*L35-((0.5*L20*L35^2-O31-I32)/L35))-L20*(MIN(G4,G41)/2+H101) -> 24.48769842 | O103: =((0.5*L20*L35^2-O31-I32)/L35)-L20*(MIN(Q4,Q41)/2+H101) -> 30.41230158 | R103: =(V20*V35-((0.5*V20*V35^2-Y32-S31)/V35))-V20*(MIN(Q4,Q41)/2+R101) -> 24.93638786 | Y103: =((0.5*V20*V35^2-Y32-S31)/V35)-V20*(MIN(AA4,AA41)/2+R101) -> 21.66361214 | AB103: =(AF20*AF35-((0.5*AF20*AF35^2-AI31-AC32)/AF35))-AF20*(MIN(AA4,AA41)/2+AB101) -> 11.69709449 | AI103: =((0.5*AF20*AF35^2-AI31-AC32)/AF35)-AF20*(MIN(AK4,AK41)/2+AB101) -> 4.902905509 | AL103: =(AP20*AP35-((0.5*AP20*AP35^2-AS32-AM31)/AP35))-AP20*(MIN(AK4,AK41)/2+AL101) -> 8.703312274 | AS103: =((0.5*AP20*AP35^2-AS32-AM31)/AP35)-AP20*(MIN(AU4,AU41)/2+AL101) -> 8.896687726 | AV103: =(AZ20*AZ35-((0.5*AZ20*AZ35^2-BC31-AW32)/AZ35))-AZ20*(MIN(AU4,AU41)/2+AV101) -> 5.691234314 | BC103: =((0.5*AZ20*AZ35^2-BC31-AW32)/AZ35)-AZ20*(MIN(BE4,BE41)/2+AV101) -> 4.008765686 | BF103: =(BJ20*BJ35-((0.5*BJ20*BJ35^2-BM32-BG31)/BJ35))-BJ20*(MIN(BE4,BE41)/2+BF101) -> 3.67672811 | BM103: =((0.5*BJ20*BJ35^2-BM32-BG31)/BJ35)-BJ20*(MIN(BO4,BO41)/2+BF101) -> 6.02327189 | BP103: =(BT20*BT35-((0.5*BT20*BT35^2-BW31-BQ32)/BT35))-BT20*(MIN(BO4,BO41)/2+BP101) -> 11.29128121 | BW103: =((0.5*BT20*BT35^2-BW31-BQ32)/BT35)-BT20*(MIN(BY4,BY41)/2+BP101) -> 12.10871879
B105: kiriş kolon yüzünden 2*h mesafede kesme kuvveti (KN) | H105: =(L20*L35-((0.5*L20*L35^2-O31-I32)/L35))-L20*(MIN(G4,G41)/2+2*O46) -> 13.53769842 | O105: =((0.5*L20*L35^2-O31-I32)/L35)-L20*(MIN(Q4,Q41)/2+2*O46) -> 19.46230158 | R105: =(V20*V35-((0.5*V20*V35^2-Y32-S31)/V35))-V20*(MIN(Q4,Q41)/2+2*Y46) -> 17.63638786 | Y105: =((0.5*V20*V35^2-Y32-S31)/V35)-V20*(MIN(AA4,AA41)/2+2*Y46) -> 14.36361214 | AB105: =(AF20*AF35-((0.5*AF20*AF35^2-AI31-AC32)/AF35))-AF20*(MIN(AA4,AA41)/2+2*AI46) -> 4.397094491 | AI105: =((0.5*AF20*AF35^2-AI31-AC32)/AF35)-AF20*(MIN(AK4,AK41)/2+2*AI46) -> -2.397094491 | AL105: =(AP20*AP35-((0.5*AP20*AP35^2-AS32-AM31)/AP35))-AP20*(MIN(AK4,AK41)/2+2*AS46) -> 1.403312274 | AS105: =((0.5*AP20*AP35^2-AS32-AM31)/AP35)-AP20*(MIN(AU4,AU41)/2+2*AS46) -> 1.596687726 | AV105: =(AZ20*AZ35-((0.5*AZ20*AZ35^2-BC31-AW32)/AZ35))-AZ20*(MIN(AU4,AU41)/2+2*BC46) -> 2.041234314 | BC105: =((0.5*AZ20*AZ35^2-BC31-AW32)/AZ35)-AZ20*(MIN(BE4,BE41)/2+2*BC46) -> 0.3587656859 | BF105: =(BJ20*BJ35-((0.5*BJ20*BJ35^2-BM32-BG31)/BJ35))-BJ20*(MIN(BE4,BE41)/2+2*BM46) -> 0.02672811011 | BM105: =((0.5*BJ20*BJ35^2-BM32-BG31)/BJ35)-BJ20*(MIN(BO4,BO41)/2+2*BM46) -> 2.37327189 | BP105: =(BT20*BT35-((0.5*BT20*BT35^2-BW31-BQ32)/BT35))-BT20*(MIN(BO4,BO41)/2+2*BW46) -> 0.3412812067 | BW105: =((0.5*BT20*BT35^2-BW31-BQ32)/BT35)-BT20*(MIN(BY4,BY41)/2+2*BW46) -> 1.158718793
B107: kiriş kolon yüzü kesme kuvveti (KN) | H107: =(L20*L35-((0.5*L20*L35^2-O31-I32)/L35))-L20*MIN(G4,G41)/2 -> 34.53769842 | O107: =((0.5*L20*L35^2-O31-I32)/L35)-L20*MIN(Q4,Q41)/2 -> 40.46230158 | R107: =(V20*V35-((0.5*V20*V35^2-Y32-S31)/V35))-V20*MIN(Q4,Q41)/2 -> 31.63638786 | Y107: =((0.5*V20*V35^2-Y32-S31)/V35)-V20*MIN(AA4,AA41)/2 -> 28.36361214 | AB107: =(AF20*AF35-((0.5*AF20*AF35^2-AI31-AC32)/AF35))-AF20*MIN(AA4,AA41)/2 -> 18.39709449 | AI107: =((0.5*AF20*AF35^2-AI31-AC32)/AF35)-AF20*MIN(AK4,AK41)/2 -> 11.60290551 | AL107: =(AP20*AP35-((0.5*AP20*AP35^2-AS32-AM31)/AP35))-AP20*MIN(AK4,AK41)/2 -> 15.40331227 | AS107: =((0.5*AP20*AP35^2-AS32-AM31)/AP35)-AP20*MIN(AU4,AU41)/2 -> 15.59668773 | AV107: =(AZ20*AZ35-((0.5*AZ20*AZ35^2-BC31-AW32)/AZ35))-AZ20*MIN(AU4,AU41)/2 -> 9.041234314 | BC107: =((0.5*AZ20*AZ35^2-BC31-AW32)/AZ35)-AZ20*MIN(BE4,BE41)/2 -> 7.358765686 | BF107: =(BJ20*BJ35-((0.5*BJ20*BJ35^2-BM32-BG31)/BJ35))-BJ20*MIN(BE4,BE41)/2 -> 7.02672811 | BM107: =((0.5*BJ20*BJ35^2-BM32-BG31)/BJ35)-BJ20*MIN(BO4,BO41)/2 -> 9.37327189 | BP107: =(BT20*BT35-((0.5*BT20*BT35^2-BW31-BQ32)/BT35))-BT20*MIN(BO4,BO41)/2 -> 21.34128121 | BW107: =((0.5*BT20*BT35^2-BW31-BQ32)/BT35)-BT20*MIN(BY4,BY41)/2 -> 22.15871879
B109: kiriş kolon yüzü moment (KNm) | H109: =+I32-(L20*L35-((0.5*L20*L35^2-O31-I32)/L35))*MIN(G4,G41)/3 -> 19.6344918 | O109: =-O31-((0.5*L20*L35^2-O31-I32)/L35)*MIN(Q4,Q41)/3 -> 34.9397166 | R109: =+S31-(V20*V35-((0.5*V20*V35^2-Y32-S31)/V35))*MIN(Q4,Q41)/3 -> 33.85555209 | Y109: =-Y32-((0.5*V20*V35^2-Y32-S31)/V35)*MIN(AA4,AA41)/3 -> 23.76449365 | AB109: =+AC32-(AF20*AF35-((0.5*AF20*AF35^2-AI31-AC32)/AF35))*MIN(AA4,AA41)/3 -> 15.80407044 | AI109: =-AI31-((0.5*AF20*AF35^2-AI31-AC32)/AF35)*MIN(AK4,AK41)/3 -> 5.046604555 | AL109: =+AM31-(AP20*AP35-((0.5*AP20*AP35^2-AS32-AM31)/AP35))*MIN(AK4,AK41)/3 -> 6.580071702 | AS109: =-AS32-((0.5*AP20*AP35^2-AS32-AM31)/AP35)*MIN(AU4,AU41)/3 -> 6.895918274 | AV109: =+AW32-(AZ20*AZ35-((0.5*AZ20*AZ35^2-BC31-AW32)/AZ35))*MIN(AU4,AU41)/3 -> 6.254432732 | BC109: =-BC31-((0.5*AZ20*AZ35^2-BC31-AW32)/AZ35)*MIN(BE4,BE41)/3 -> 3.354978463 | BF109: =+BG31-(BJ20*BJ35-((0.5*BJ20*BJ35^2-BM32-BG31)/BJ35))*MIN(BE4,BE41)/3 -> 3.199522689 | BM109: =-BM32-((0.5*BJ20*BJ35^2-BM32-BG31)/BJ35)*MIN(BO4,BO41)/3 -> 7.243399803 | BP109: =+BQ32-(BT20*BT35-((0.5*BT20*BT35^2-BW31-BQ32)/BT35))*MIN(BO4,BO41)/3 -> 8.04595717 | BW109: =-BW31-((0.5*BT20*BT35^2-BW31-BQ32)/BT35)*MIN(BY4,BY41)/3 -> 9.29936147
